Workbook

Sheet Main
B10: 2019-03-07
B12: Sheet No. | C12: Template Name | D12: Summary
B13: 1 | C13: Future Intra | D13: For Intraday trading in F&O segment
B14: 2 | C14: Cash Intra | D14: For Intraday trading in cash market segment
B15: 3 | C15: Mid-cap Intra | D15: For Intraday trading in Mid-cap stocks
B16: 4 | C16: Bulk Deals | D16: Reveals Bulk Deals carried on NSE & BSE
B17: 5 | C17: Call Tracker

Sheet Future Intra
M5: Back to Main Page
A6: FOR INTRA DAY TRADING | L6: =Main!B10 -> 2019-03-07
A9: Sr.no | B9: Sector | C9: Scrip | D9: CLOSE RATE | E9: Pivot Point | F9: Supports | I9: Resistances
B10: Sector | D10: Point | E10: Point | F10: S1 | G10: S2 | H10: S3 | I10: R1 | J10: R2 | K10: R3 | L10: HIGH | M10: LOW | N10: OI | O10: % Change in OI
A11: 1 | B11: Index | C11: BANKNIFTY | D11: 27692.40 | E11: 27670.88 | F11: 27581.77 | G11: 27471.13 | H11: 27382.02 | I11: 27781.52 | J11: 27870.63 | K11: 27981.27 | L11: 27760 | M11: 27560.25 | N11: 1880360 | O11: 3.67%
A12: 2 | B12: Index | C12: NIFTY | D12: 11086.80 | E12: 11071.45 | F12: 11048.40 | G12: 11010.00 | H12: 10986.95 | I12: 11109.85 | J12: 11132.90 | K12: 11171.30 | L12: 11094.5 | M12: 11033.05 | N12: 15640875 | O12: 2.50%
A13: 3 | B13: Index | C13: NIFTYIT | D13: 15835.00 | E13: 15822.00 | F13: 15749.00 | G13: 15663.00 | H13: 15590.00 | I13: 15908.00 | J13: 15981.00 | K13: 16067.00 | L13: 15895 | M13: 15736 | N13: 15150 | O13: -3.50%
A14: 4 | B14: Cement | C14: ACC | D14: 1558.85 | E14: 1553.98 | F14: 1542.07 | G14: 1525.28 | H14: 1513.37 | I14: 1570.77 | J14: 1582.68 | K14: 1599.47 | L14: 1565.9 | M14: 1537.2 | N14: 2278000 | O14: -16.25%
A15: 5 | B15: Others | C15: ADANIENT | D15: 140.20 | E15: 140.83 | F15: 137.97 | G15: 135.73 | H15: 132.87 | I15: 143.07 | J15: 145.93 | K15: 148.17 | L15: 143.7 | M15: 138.6 | N15: 38404000 | O15: 1.04%
A16: 6 | B16: Others | C16: ADANIPORTS | D16: 339.25 | E16: 342.30 | F16: 333.20 | G16: 327.15 | H16: 318.05 | I16: 348.35 | J16: 357.45 | K16: 363.50 | L16: 351.4 | M16: 336.25 | N16: 25277500 | O16: 3.33%
A17: 7 | B17: Power | C17: ADANIPOWER | D17: 50.95 | E17: 50.88 | F17: 49.97 | G17: 48.98 | H17: 48.07 | I17: 51.87 | J17: 52.78 | K17: 53.77 | L17: 51.8 | M17: 49.9 | N17: 158240000 | O17: -0.18%
A18: 8 | B18: Pharma | C18: AJANTPHARM | D18: 996.45 | E18: 996.55 | F18: 986.90 | G18: 977.35 | H18: 967.70 | I18: 1006.10 | J18: 1015.75 | K18: 1025.30 | L18: 1006.2 | M18: 987 | N18: 882500 | O18: 7.03%
A19: 9 | B19: Banking | C19: ALBK | D19: 51.35 | E19: 51.53 | F19: 50.12 | G19: 48.88 | H19: 47.47 | I19: 52.77 | J19: 54.18 | K19: 55.42 | L19: 52.95 | M19: 50.3 | N19: 21151000 | O19: -1.87%
A20: 10 | B20: Automobile | C20: AMARAJABAT | D20: 750.75 | E20: 749.37 | F20: 741.08 | G20: 731.42 | H20: 723.13 | I20: 759.03 | J20: 767.32 | K20: 776.98 | L20: 757.65 | M20: 739.7 | N20: 723800 | O20: 25.33%
A21: 11 | B21: Cement | C21: AMBUJACEM | D21: 221.85 | E21: 223.57 | F21: 219.38 | G21: 216.92 | H21: 212.73 | I21: 226.03 | J21: 230.22 | K21: 232.68 | L21: 227.75 | M21: 221.1 | N21: 14367500 | O21: 15.22%
A22: 12 | B22: Others | C22: APOLLOHOSP | D22: 1200.00 | E22: 1202.73 | F22: 1189.27 | G22: 1178.53 | H22: 1165.07 | I22: 1213.47 | J22: 1226.93 | K22: 1237.67 | L22: 1216.2 | M22: 1192 | N22: 1263500 | O22: 7.49%
A23: 13 | B23: Automobile | C23: APOLLOTYRE | D23: 220.95 | E23: 222.43 | F23: 218.67 | G23: 216.38 | H23: 212.62 | I23: 224.72 | J23: 228.48 | K23: 230.77 | L23: 226.2 | M23: 220.15 | N23: 9801000 | O23: 4.58%
A24: 14 | B24: Textile | C24: ARVIND | D24: 85.95 | E24: 86.07 | F24: 84.98 | G24: 84.02 | H24: 82.93 | I24: 87.03 | J24: 88.12 | K24: 89.08 | L24: 87.15 | M24: 85.1 | N24: 5534000 | O24: -9.84%
A25: 15 | B25: Automobile | C25: ASHOKLEY | D25: 91.05 | E25: 91.60 | F25: 90.00 | G25: 88.95 | H25: 87.35 | I25: 92.65 | J25: 94.25 | K25: 95.30 | L25: 93.2 | M25: 90.55 | N25: 64404000 | O25: -5.77%
A26: 16 | B26: FMCG | C26: ASIANPAINT | D26: 1401.95 | E26: 1405.62 | F26: 1392.63 | G26: 1383.32 | H26: 1370.33 | I26: 1414.93 | J26: 1427.92 | K26: 1437.23 | L26: 1418.6 | M26: 1396.3 | N26: 5517600 | O26: -0.68%
A27: 17 | B27: Pharma | C27: AUROPHARMA | D27: 738.25 | E27: 739.85 | F27: 732.50 | G27: 726.75 | H27: 719.40 | I27: 745.60 | J27: 752.95 | K27: 758.70 | L27: 747.2 | M27: 734.1 | N27: 18467000 | O27: -0.21%
A28: 18 | B28: Banking | C28: AXISBANK | D28: 723.35 | E28: 725.33 | F28: 714.67 | G28: 705.98 | H28: 695.32 | I28: 734.02 | J28: 744.68 | K28: 753.37 | L28: 736 | M28: 716.65 | N28: 34190400 | O28: 1.33%
A29: 19 | B29: Automobile | C29: BAJAJ-AUTO | D29: 2932.45 | E29: 2915.50 | F29: 2888.00 | G29: 2843.55 | H29: 2816.05 | I29: 2959.95 | J29: 2987.45 | K29: 3031.90 | L29: 2943 | M29: 2871.05 | N29: 2598500 | O29: 4.89%
A30: 20 | B30: Others | C30: BAJAJFINSV | D30: 6646.60 | E30: 6618.50 | F30: 6571.30 | G30: 6496.00 | H30: 6448.80 | I30: 6693.80 | J30: 6741.00 | K30: 6816.30 | L30: 6665.7 | M30: 6543.2 | N30: 648250 | O30: -0.52%
A31: 21 | B31: Finance | C31: BAJFINANCE | D31: 2780.25 | E31: 2758.93 | F31: 2732.87 | G31: 2685.48 | H31: 2659.42 | I31: 2806.32 | J31: 2832.38 | K31: 2879.77 | L31: 2785 | M31: 2711.55 | N31: 5873000 | O31: 2.43%
A32: 22 | B32: Others | C32: BALKRISIND | D32: 916.50 | E32: 918.78 | F32: 907.12 | G32: 897.73 | H32: 886.07 | I32: 928.17 | J32: 939.83 | K32: 949.22 | L32: 930.45 | M32: 909.4 | N32: 1736000 | O32: 2.17%
A33: 23 | B33: Banking | C33: BANKBARODA | D33: 112.70 | E33: 112.67 | F33: 111.28 | G33: 109.87 | H33: 108.48 | I33: 114.08 | J33: 115.47 | K33: 116.88 | L33: 114.05 | M33: 111.25 | N33: 57916000 | O33: 1.32%
A34: 24 | B34: Banking | C34: BANKINDIA | D34: 90.15 | E34: 90.78 | F34: 88.77 | G34: 87.38 | H34: 85.37 | I34: 92.17 | J34: 94.18 | K34: 95.57 | L34: 92.8 | M34: 89.4 | N34: 22596000 | O34: -0.34%
A35: 25 | B35: FMCG | C35: BATAINDIA | D35: 1341.65 | E35: 1332.50 | F35: 1317.10 | G35: 1292.55 | H35: 1277.15 | I35: 1357.05 | J35: 1372.45 | K35: 1397.00 | L35: 1347.9 | M35: 1307.95 | N35: 2404600 | O35: 8.89%
A36: 26 | B36: Capital_Goods | C36: BEL | D36: 91.80 | E36: 91.75 | F36: 89.80 | G36: 87.80 | H36: 85.85 | I36: 93.75 | J36: 95.70 | K36: 97.70 | L36: 93.7 | M36: 89.75 | N36: 33630000 | O36: -1.89%
A37: 27 | B37: Infrastructure | C37: BEML | D37: 914.40 | E37: 925.37 | F37: 895.93 | G37: 877.47 | H37: 848.03 | I37: 943.83 | J37: 973.27 | K37: 991.73 | L37: 954.8 | M37: 906.9 | N37: 1560300 | O37: 6.35%
A38: 28 | B38: Others | C38: BERGEPAINT | D38: 305.80 | E38: 306.03 | F38: 303.27 | G38: 300.73 | H38: 297.97 | I38: 308.57 | J38: 311.33 | K38: 313.87 | L38: 308.8 | M38: 303.5 | N38: 3676200 | O38: -2.68%
A39: 29 | B39: Finance | C39: BHARATFIN | D39: 967.85 | E39: 967.53 | F39: 962.32 | G39: 956.78 | H39: 951.57 | I39: 973.07 | J39: 978.28 | K39: 983.82 | L39: 972.75 | M39: 962 | N39: 4895000 | O39: -0.44%
A40: 30 | B40: Automobile | C40: BHARATFORG | D40: 521.05 | E40: 522.23 | F40: 515.22 | G40: 509.38 | H40: 502.37 | I40: 528.07 | J40: 535.08 | K40: 540.92 | L40: 529.25 | M40: 516.4 | N40: 10573200 | O40: 2.61%
A41: 31 | B41: Telecom | C41: BHARTIARTL | D41: 310.20 | E41: 311.02 | F41: 307.68 | G41: 305.17 | H41: 301.83 | I41: 313.53 | J41: 316.87 | K41: 319.38 | L41: 314.35 | M41: 308.5 | N41: 37656700 | O41: 1.86%
A42: 32 | B42: Capital_Goods | C42: BHEL | D42: 69.35 | E42: 69.30 | F42: 68.00 | G42: 66.65 | H42: 65.35 | I42: 70.65 | J42: 71.95 | K42: 73.30 | L42: 70.6 | M42: 67.95 | N42: 26917500 | O42: 2.08%
A43: 33 | B43: Pharma | C43: BIOCON | D43: 629.70 | E43: 630.80 | F43: 625.90 | G43: 622.10 | H43: 617.20 | I43: 634.60 | J43: 639.50 | K43: 643.30 | L43: 635.7 | M43: 627 | N43: 5337000 | O43: -0.62%
A44: 34 | B44: Automobile | C44: BOSCHLTD | D44: 19000.00 | E44: 19017.93 | F44: 18847.42 | G44: 18694.83 | H44: 18524.32 | I44: 19170.52 | J44: 19341.03 | K44: 19493.62 | L44: 19188.45 | M44: 18865.35 | N44: 138600 | O44: 0.90%
A45: 35 | B45: Oil_Gas | C45: BPCL | D45: 370.70 | E45: 368.82 | F45: 365.88 | G45: 361.07 | H45: 358.13 | I45: 373.63 | J45: 376.57 | K45: 381.38 | L45: 371.75 | M45: 364 | N45: 6136200 | O45: -2.01%
A46: 36 | B46: FMCG | C46: BRITANNIA | D46: 3047.65 | E46: 3059.75 | F46: 3014.90 | G46: 2982.15 | H46: 2937.30 | I46: 3092.50 | J46: 3137.35 | K46: 3170.10 | L46: 3104.6 | M46: 3027 | N46: 3052000 | O46: 0.58%
A47: 37 | B47: Pharma | C47: CADILAHC | D47: 331.90 | E47: 333.63 | F47: 327.12 | G47: 322.33 | H47: 315.82 | I47: 338.42 | J47: 344.93 | K47: 349.72 | L47: 340.15 | M47: 328.85 | N47: 11107200 | O47: 4.85%
A48: 38 | B48: Banking | C48: CANBK | D48: 253.95 | E48: 254.53 | F48: 251.07 | G48: 248.18 | H48: 244.72 | I48: 257.42 | J48: 260.88 | K48: 263.77 | L48: 258 | M48: 251.65 | N48: 10586000 | O48: -4.49%
A49: 39 | B49: Others | C49: CANFINHOME | D49: 290.60 | E49: 296.12 | F49: 283.98 | G49: 277.37 | H49: 265.23 | I49: 302.73 | J49: 314.87 | K49: 321.48 | L49: 308.25 | M49: 289.5 | N49: 5279400 | O49: 6.11%
A50: 40 | B50: Oil_Gas | C50: CASTROLIND | D50: 164.90 | E50: 163.53 | F50: 161.42 | G50: 157.93 | H50: 155.82 | I50: 167.02 | J50: 169.13 | K50: 172.62 | L50: 165.65 | M50: 160.05 | N50: 5528400 | O50: 0.12%
A51: 41 | B51: Automobile | C51: CEATLTD | D51: 1131.50 | E51: 1137.02 | F51: 1115.78 | G51: 1100.07 | H51: 1078.83 | I51: 1152.73 | J51: 1173.97 | K51: 1189.68 | L51: 1158.25 | M51: 1121.3 | N51: 1090400 | O51: 1.19%
A52: 42 | B52: Textile | C52: CENTURYTEX | D52: 854.85 | E52: 860.83 | F52: 845.37 | G52: 835.88 | H52: 820.42 | I52: 870.32 | J52: 885.78 | K52: 895.27 | L52: 876.3 | M52: 851.35 | N52: 4545600 | O52: 1.31%
A53: 43 | B53: Power | C53: CESC | D53: 713.95 | E53: 715.28 | F53: 708.12 | G53: 702.28 | H53: 695.12 | I53: 721.12 | J53: 728.28 | K53: 734.12 | L53: 722.45 | M53: 709.45 | N53: 1272700 | O53: -1.66%
A54: 44 | B54: Power | C54: CGPOWER | D54: 37.20 | E54: 37.62 | F54: 36.33 | G54: 35.47 | H54: 34.18 | I54: 38.48 | J54: 39.77 | K54: 40.63 | L54: 38.9 | M54: 36.75 | N54: 48888000 | O54: -2.11%
A55: 45 | B55: Others | C55: CHENNPETRO | D55: 256.90 | E55: 257.80 | F55: 254.35 | G55: 251.80 | H55: 248.35 | I55: 260.35 | J55: 263.80 | K55: 266.35 | L55: 261.25 | M55: 255.25 | N55: 1402200 | O55: -2.99%
A56: 46 | B56: Others | C56: CHOLAFIN | D56: 1312.60 | E56: 1315.20 | F56: 1298.40 | G56: 1284.20 | H56: 1267.40 | I56: 1329.40 | J56: 1346.20 | K56: 1360.40 | L56: 1332 | M56: 1301 | N56: 872000 | O56: 22.82%
A57: 47 | B57: Pharma | C57: CIPLA | D57: 550.00 | E57: 549.78 | F57: 545.32 | G57: 540.63 | H57: 536.17 | I57: 554.47 | J57: 558.93 | K57: 563.62 | L57: 554.25 | M57: 545.1 | N57: 8637000 | O57: 1.85%
A58: 48 | B58: Others | C58: COALINDIA | D58: 236.20 | E58: 236.88 | F58: 233.47 | G58: 230.73 | H58: 227.32 | I58: 239.62 | J58: 243.03 | K58: 245.77 | L58: 240.3 | M58: 234.15 | N58: 17215000 | O58: -4.86%
A59: 49 | B59: FMCG | C59: COLPAL | D59: 1278.60 | E59: 1270.47 | F59: 1257.08 | G59: 1235.57 | H59: 1222.18 | I59: 1291.98 | J59: 1305.37 | K59: 1326.88 | L59: 1283.85 | M59: 1248.95 | N59: 1718500 | O59: -1.25%
A60: 50 | B60: Others | C60: CONCOR | D60: 489.30 | E60: 489.78 | F60: 484.72 | G60: 480.13 | H60: 475.07 | I60: 494.37 | J60: 499.43 | K60: 504.02 | L60: 494.85 | M60: 485.2 | N60: 1739619 | O60: 3.53%
A61: 51 | B61: Capital_Goods | C61: CUMMINSIND | D61: 736.70 | E61: 738.20 | F61: 724.50 | G61: 712.30 | H61: 698.60 | I61: 750.40 | J61: 764.10 | K61: 776.30 | L61: 751.9 | M61: 726 | N61: 1316000 | O61: -2.74%
A62: 52 | B62: FMCG | C62: DABUR | D62: 439.75 | E62: 441.87 | F62: 435.98 | G62: 432.22 | H62: 426.33 | I62: 445.63 | J62: 451.52 | K62: 455.28 | L62: 447.75 | M62: 438.1 | N62: 10320000 | O62: -1.00%
A63: 53 | B63: Banking | C63: DCBBANK | D63: 198.00 | E63: 196.63 | F63: 193.87 | G63: 189.73 | H63: 186.97 | I63: 200.77 | J63: 203.53 | K63: 207.67 | L63: 199.4 | M63: 192.5 | N63: 3568500 | O63: -0.38%
A64: 54 | B64: Finance | C64: DHFL | D64: 149.65 | E64: 153.58 | F64: 144.17 | G64: 138.68 | H64: 129.27 | I64: 159.07 | J64: 168.48 | K64: 173.97 | L64: 163 | M64: 148.1 | N64: 19774500 | O64: 4.76%
A65: 55 | B65: Media | C65: DISHTV | D65: 40.65 | E65: 40.78 | F65: 39.67 | G65: 38.68 | H65: 37.57 | I65: 41.77 | J65: 42.88 | K65: 43.87 | L65: 41.9 | M65: 39.8 | N65: 54688000 | O65: -1.11%
A66: 56 | B66: Pharma | C66: DIVISLAB | D66: 1713.10 | E66: 1698.12 | F66: 1672.43 | G66: 1631.77 | H66: 1606.08 | I66: 1738.78 | J66: 1764.47 | K66: 1805.13 | L66: 1723.8 | M66: 1657.45 | N66: 2966400 | O66: 2.77%
A67: 57 | B67: Realty | C67: DLF | D67: 177.70 | E67: 177.77 | F67: 174.28 | G67: 170.87 | H67: 167.38 | I67: 181.18 | J67: 184.67 | K67: 188.08 | L67: 181.25 | M67: 174.35 | N67: 22300200 | O67: -1.33%
A68: 58 | B68: Pharma | C68: DRREDDY | D68: 2701.45 | E68: 2695.02 | F68: 2674.33 | G68: 2647.22 | H68: 2626.53 | I68: 2722.13 | J68: 2742.82 | K68: 2769.93 | L68: 2715.7 | M68: 2667.9 | N68: 4096000 | O68: -1.27%
A69: 59 | B69: Automobile | C69: EICHERMOT | D69: 21415.00 | E69: 21468.37 | F69: 21247.68 | G69: 21080.37 | H69: 20859.68 | I69: 21635.68 | J69: 21856.37 | K69: 22023.68 | L69: 21689.05 | M69: 21301.05 | N69: 384550 | O69: 0.35%
A70: 60 | B70: Infrastructure | C70: ENGINERSIN | D70: 114.80 | E70: 115.65 | F70: 113.20 | G70: 111.60 | H70: 109.15 | I70: 117.25 | J70: 119.70 | K70: 121.30 | L70: 118.1 | M70: 114.05 | N70: 7691600 | O70: 2.63%
A71: 61 | B71: Finance | C71: EQUITAS | D71: 128.70 | E71: 129.38 | F71: 125.42 | G71: 122.13 | H71: 118.17 | I71: 132.67 | J71: 136.63 | K71: 139.92 | L71: 133.35 | M71: 126.1 | N71: 13996000 | O71: 0.60%
A72: 62 | B72: Automobile | C72: ESCORTS | D72: 738.05 | E72: 734.92 | F72: 721.48 | G72: 704.92 | H72: 691.48 | I72: 751.48 | J72: 764.92 | K72: 781.48 | L72: 748.35 | M72: 718.35 | N72: 2989800 | O72: -4.63%
A73: 63 | B73: Automobile | C73: EXIDEIND | D73: 225.95 | E73: 226.15 | F73: 224.30 | G73: 222.65 | H73: 220.80 | I73: 227.80 | J73: 229.65 | K73: 231.30 | L73: 228 | M73: 224.5 | N73: 7794000 | O73: -2.36%
A74: 64 | B74: Banking | C74: FEDERALBNK | D74: 87.75 | E74: 88.40 | F74: 86.55 | G74: 85.35 | H74: 83.50 | I74: 89.60 | J74: 91.45 | K74: 92.65 | L74: 90.25 | M74: 87.2 | N74: 50211000 | O74: 5.27%
A75: 65 | B75: Oil_Gas | C75: GAIL | D75: 346.65 | E75: 346.83 | F75: 343.67 | G75: 340.68 | H75: 337.52 | I75: 349.82 | J75: 352.98 | K75: 355.97 | L75: 350 | M75: 343.85 | N75: 9673209 | O75: 2.31%
A76: 66 | B76: Pharma | C76: GLENMARK | D76: 606.65 | E76: 605.98 | F76: 599.97 | G76: 593.28 | H76: 587.27 | I76: 612.67 | J76: 618.68 | K76: 625.37 | L76: 612 | M76: 599.3 | N76: 4033000 | O76: 5.30%
A77: 67 | B77: Infrastructure | C77: GMRINFRA | D77: 17.00 | E77: 16.98 | F77: 16.72 | G77: 16.43 | H77: 16.17 | I77: 17.27 | J77: 17.53 | K77: 17.82 | L77: 17.25 | M77: 16.7 | N77: 144675000 | O77: -1.95%
A78: 68 | B78: Others | C78: GODFRYPHLP | D78: 932.90 | E78: 946.53 | F78: 914.22 | G78: 895.53 | H78: 863.22 | I78: 965.22 | J78: 997.53 | K78: 1016.22 | L78: 978.85 | M78: 927.85 | N78: 443800 | O78: 0.96%
A79: 69 | B79: FMCG | C79: GODREJCP | D79: 707.75 | E79: 707.68 | F79: 701.47 | G79: 695.18 | H79: 688.97 | I79: 713.97 | J79: 720.18 | K79: 726.47 | L79: 713.9 | M79: 701.4 | N79: 6325200 | O79: -2.71%
A80: 70 | B80: FMCG | C80: GODREJIND | D80: 511.25 | E80: 512.98 | F80: 504.12 | G80: 496.98 | H80: 488.12 | I80: 520.12 | J80: 528.98 | K80: 536.12 | L80: 521.85 | M80: 505.85 | N80: 1288500 | O80: -4.34%
A81: 71 | B81: Cement | C81: GRASIM | D81: 823.05 | E81: 820.03 | F81: 811.82 | G81: 800.58 | H81: 792.37 | I81: 831.27 | J81: 839.48 | K81: 850.72 | L81: 828.25 | M81: 808.8 | N81: 11815500 | O81: 0.47%
A82: 72 | B82: Others | C82: GSFC | D82: 99.35 | E82: 99.90 | F82: 98.25 | G82: 97.15 | H82: 95.50 | I82: 101.00 | J82: 102.65 | K82: 103.75 | L82: 101.55 | M82: 98.8 | N82: 11059100 | O82: -1.18%
A83: 73 | B83: Others | C83: HAVELLS | D83: 718.30 | E83: 722.65 | F83: 711.65 | G83: 705.00 | H83: 694.00 | I83: 729.30 | J83: 740.30 | K83: 746.95 | L83: 733.65 | M83: 716 | N83: 5369000 | O83: 2.13%
A84: 74 | B84: Technology | C84: HCLTECH | D84: 1050.10 | E84: 1054.03 | F84: 1041.07 | G84: 1032.03 | H84: 1019.07 | I84: 1063.07 | J84: 1076.03 | K84: 1085.07 | L84: 1067 | M84: 1045 | N84: 8570100 | O84: 3.74%
A85: 75 | B85: Finance | C85: HDFC | D85: 1887.55 | E85: 1880.93 | F85: 1870.87 | G85: 1854.18 | H85: 1844.12 | I85: 1897.62 | J85: 1907.68 | K85: 1924.37 | L85: 1891 | M85: 1864.25 | N85: 28323000 | O85: -0.83%
A86: 76 | B86: Banking | C86: HDFCBANK | D86: 2106.80 | E86: 2107.28 | F86: 2095.57 | G86: 2084.33 | H86: 2072.62 | I86: 2118.52 | J86: 2130.23 | K86: 2141.47 | L86: 2119 | M86: 2096.05 | N86: 11192000 | O86: 9.99%
A87: 77 | B87: Automobile | C87: HEROMOTOCO | D87: 2778.95 | E87: 2786.42 | F87: 2744.73 | G87: 2710.52 | H87: 2668.83 | I87: 2820.63 | J87: 2862.32 | K87: 2896.53 | L87: 2828.1 | M87: 2752.2 | N87: 2140800 | O87: -2.36%
A88: 78 | B88: Technology | C88: HEXAWARE | D88: 358.35 | E88: 360.15 | F88: 354.80 | G88: 351.25 | H88: 345.90 | I88: 363.70 | J88: 369.05 | K88: 372.60 | L88: 365.5 | M88: 356.6 | N88: 2958000 | O88: 2.60%
A89: 79 | B89: Metals | C89: HINDALCO | D89: 203.75 | E89: 202.92 | F89: 201.33 | G89: 198.92 | H89: 197.33 | I89: 205.33 | J89: 206.92 | K89: 209.33 | L89: 204.5 | M89: 200.5 | N89: 34464500 | O89: -2.84%
A90: 80 | B90: Oil_Gas | C90: HINDPETRO | D90: 246.70 | E90: 248.38 | F90: 241.87 | G90: 237.03 | H90: 230.52 | I90: 253.22 | J90: 259.73 | K90: 264.57 | L90: 254.9 | M90: 243.55 | N90: 12990600 | O90: -2.26%
A91: 81 | B91: FMCG | C91: HINDUNILVR | D91: 1711.35 | E91: 1719.92 | F91: 1700.73 | G91: 1690.12 | H91: 1670.93 | I91: 1730.53 | J91: 1749.72 | K91: 1760.33 | L91: 1739.1 | M91: 1709.3 | N91: 11086800 | O91: 7.46%
A92: 82 | B92: Metals | C92: HINDZINC | D92: 267.80 | E92: 268.62 | F92: 265.28 | G92: 262.77 | H92: 259.43 | I92: 271.13 | J92: 274.47 | K92: 276.98 | L92: 271.95 | M92: 266.1 | N92: 4134400 | O92: 0.16%
A93: 83 | B93: Finance | C93: IBULHSGFIN | D93: 735.40 | E93: 745.87 | F93: 720.58 | G93: 705.77 | H93: 680.48 | I93: 760.68 | J93: 785.97 | K93: 800.78 | L93: 771.15 | M93: 731.05 | N93: 17008000 | O93: 3.43%
A94: 84 | B94: Banking | C94: ICICIBANK | D94: 372.45 | E94: 370.82 | F94: 367.83 | G94: 363.22 | H94: 360.23 | I94: 375.43 | J94: 378.42 | K94: 383.03 | L94: 373.8 | M94: 366.2 | N94: 84466250 | O94: -1.99%
A95: 85 | B95: Others | C95: ICICIPRULI | D95: 338.65 | E95: 338.32 | F95: 333.33 | G95: 328.02 | H95: 323.03 | I95: 343.63 | J95: 348.62 | K95: 353.93 | L95: 343.3 | M95: 333 | N95: 7396500 | O95: 21.27%
A96: 86 | B96: Banking | C96: IDBI | D96: 46.05 | E96: 46.25 | F96: 45.15 | G96: 44.25 | H96: 43.15 | I96: 47.15 | J96: 48.25 | K96: 49.15 | L96: 47.35 | M96: 45.35 | N96: 33620000 | O96: 7.21%
A97: 87 | B97: Telecom | C97: IDEA | D97: 30.95 | E97: 30.35 | F97: 29.35 | G97: 27.75 | H97: 26.75 | I97: 31.95 | J97: 32.95 | K97: 34.55 | L97: 31.35 | M97: 28.75 | N97: 189492000 | O97: 11.16%
A98: 88 | B98: Finance | C98: IDFC | D98: 41.25 | E98: 41.47 | F98: 40.48 | G98: 39.72 | H98: 38.73 | I98: 42.23 | J98: 43.22 | K98: 43.98 | L98: 42.45 | M98: 40.7 | N98: 105402000 | O98: 1.14%
A99: 89 | B99: Banking | C99: IDFCFIRSTB | D99: 51.35 | E99: 51.45 | F99: 50.40 | G99: 49.45 | H99: 48.40 | I99: 52.40 | J99: 53.45 | K99: 54.40 | L99: 52.5 | M99: 50.5 | N99: 127236000 | O99: -1.67%
A100: 90 | B100: Finance | C100: IFCI | D100: 14.10 | E100: 14.17 | F100: 13.93 | G100: 13.77 | H100: 13.53 | I100: 14.33 | J100: 14.57 | K100: 14.73 | L100: 14.4 | M100: 14 | N100: 49420000 | O100: 0.14%
A101: 91 | B101: Oil_Gas | C101: IGL | D101: 292.10 | E101: 295.45 | F101: 286.95 | G101: 281.80 | H101: 273.30 | I101: 300.60 | J101: 309.10 | K101: 314.25 | L101: 303.95 | M101: 290.3 | N101: 3214750 | O101: -10.49%
A102: 92 | B102: Cement | C102: INDIACEM | D102: 98.00 | E102: 98.53 | F102: 96.37 | G102: 94.73 | H102: 92.57 | I102: 100.17 | J102: 102.33 | K102: 103.97 | L102: 100.7 | M102: 96.9 | N102: 22302000 | O102: 2.91%
A103: 93 | B103: Banking | C103: INDIANB | D103: 248.30 | E103: 245.55 | F103: 240.00 | G103: 231.70 | H103: 226.15 | I103: 253.85 | J103: 259.40 | K103: 267.70 | L103: 251.1 | M103: 237.25 | N103: 3500000 | O103: 3.06%
A104: 94 | B104: Others | C104: INDIGO | D104: 1237.05 | E104: 1221.03 | F104: 1197.07 | G104: 1157.08 | H104: 1133.12 | I104: 1261.02 | J104: 1284.98 | K104: 1324.97 | L104: 1245 | M104: 1181.05 | N104: 2283600 | O104: -4.03%
A105: 95 | B105: Banking | C105: INDUSINDBK | D105: 1539.55 | E105: 1539.57 | F105: 1529.13 | G105: 1518.72 | H105: 1508.28 | I105: 1549.98 | J105: 1560.42 | K105: 1570.83 | L105: 1550 | M105: 1529.15 | N105: 7857900 | O105: 4.00%
A106: 96 | B106: Technology | C106: INFIBEAM | D106: 42.60 | E106: 42.27 | F106: 39.83 | G106: 37.07 | H106: 34.63 | I106: 45.03 | J106: 47.47 | K106: 50.23 | L106: 44.7 | M106: 39.5 | N106: 18132000 | O106: 7.93%
A107: 97 | B107: Telecom | C107: INFRATEL | D107: 304.35 | E107: 303.27 | F107: 298.18 | G107: 292.02 | H107: 286.93 | I107: 309.43 | J107: 314.52 | K107: 320.68 | L107: 308.35 | M107: 297.1 | N107: 7648000 | O107: 21.78%
A108: 98 | B108: Technology | C108: INFY | D108: 737.25 | E108: 735.90 | F108: 732.55 | G108: 727.85 | H108: 724.50 | I108: 740.60 | J108: 743.95 | K108: 748.65 | L108: 739.25 | M108: 731.2 | N108: 44496000 | O108: 1.73%
A109: 99 | B109: Oil_Gas | C109: IOC | D109: 154.60 | E109: 155.13 | F109: 152.87 | G109: 151.13 | H109: 148.87 | I109: 156.87 | J109: 159.13 | K109: 160.87 | L109: 157.4 | M109: 153.4 | N109: 34471500 | O109: -1.69%
A110: 100 | B110: Infrastructure | C110: IRB | D110: 150.80 | E110: 150.72 | F110: 147.53 | G110: 144.27 | H110: 141.08 | I110: 153.98 | J110: 157.17 | K110: 160.43 | L110: 153.9 | M110: 147.45 | N110: 6825600 | O110: -3.31%
A111: 101 | B111: FMCG | C111: ITC | D111: 286.60 | E111: 287.32 | F111: 284.98 | G111: 283.37 | H111: 281.03 | I111: 288.93 | J111: 291.27 | K111: 292.88 | L111: 289.65 | M111: 285.7 | N111: 60300000 | O111: -2.61%
A112: 102 | B112: Others | C112: JETAIRWAYS | D112: 237.85 | E112: 237.40 | F112: 231.45 | G112: 225.05 | H112: 219.10 | I112: 243.80 | J112: 249.75 | K112: 256.15 | L112: 243.35 | M112: 231 | N112: 6553800 | O112: 5.86%
A113: 103 | B113: Metals | C113: JINDALSTEL | D113: 166.80 | E113: 168.08 | F113: 163.72 | G113: 160.63 | H113: 156.27 | I113: 171.17 | J113: 175.53 | K113: 178.62 | L113: 172.45 | M113: 165 | N113: 26316000 | O113: -2.30%
A114: 104 | B114: Others | C114: JISLJALEQS | D114: 62.35 | E114: 62.78 | F114: 61.02 | G114: 59.68 | H114: 57.92 | I114: 64.12 | J114: 65.88 | K114: 67.22 | L114: 64.55 | M114: 61.45 | N114: 36981000 | O114: -1.23%
A115: 105 | B115: Realty | C115: JPASSOCIAT | D115: 6.65 | E115: 6.73 | F115: 6.37 | G115: 6.08 | H115: 5.72 | I115: 7.02 | J115: 7.38 | K115: 7.67 | L115: 7.1 | M115: 6.45 | N115: 79090000 | O115: -5.02%
A116: 106 | B116: Metals | C116: JSWSTEEL | D116: 291.60 | E116: 291.63 | F116: 287.97 | G116: 284.33 | H116: 280.67 | I116: 295.27 | J116: 298.93 | K116: 302.57 | L116: 295.3 | M116: 288 | N116: 61951500 | O116: 0.80%
A117: 107 | B117: Others | C117: JUBLFOOD | D117: 1336.10 | E117: 1317.17 | F117: 1292.33 | G117: 1248.57 | H117: 1223.73 | I117: 1360.93 | J117: 1385.77 | K117: 1429.53 | L117: 1342 | M117: 1273.4 | N117: 3109000 | O117: 14.43%
A118: 108 | B118: Others | C118: JUSTDIAL | D118: 538.75 | E118: 542.68 | F118: 529.47 | G118: 520.18 | H118: 506.97 | I118: 551.97 | J118: 565.18 | K118: 574.47 | L118: 555.9 | M118: 533.4 | N118: 2350600 | O118: -7.90%
A119: 109 | B119: Others | C119: KAJARIACER | D119: 565.50 | E119: 565.02 | F119: 561.28 | G119: 557.07 | H119: 553.33 | I119: 569.23 | J119: 572.97 | K119: 577.18 | L119: 568.75 | M119: 560.8 | N119: 2236000 | O119: 19.61%
A120: 110 | B120: Banking | C120: KOTAKBANK | D120: 1244.55 | E120: 1245.18 | F120: 1239.27 | G120: 1233.98 | H120: 1228.07 | I120: 1250.47 | J120: 1256.38 | K120: 1261.67 | L120: 1251.1 | M120: 1239.9 | N120: 12868000 | O120: 0.55%
A121: 111 | B121: Technology | C121: BSOFT | D121: 116.40 | E121: 114.33 | F121: 110.07 | G121: 103.73 | H121: 99.47 | I121: 120.67 | J121: 124.93 | K121: 131.27 | L121: 118.6 | M121: 108 | N121: 5652000 | O121: 55.06%
A122: 112 | B122: Others | C122: KSCL | D122: 428.00 | E122: 429.45 | F122: 423.55 | G122: 419.10 | H122: 413.20 | I122: 433.90 | J122: 439.80 | K122: 444.25 | L122: 435.35 | M122: 425 | N122: 1750500 | O122: -0.17%
A123: 113 | B123: Banking | C123: KTKBANK | D123: 121.75 | E123: 121.88 | F123: 119.37 | G123: 116.98 | H123: 114.47 | I123: 124.27 | J123: 126.78 | K123: 129.17 | L123: 124.4 | M123: 119.5 | N123: 13202300 | O123: 6.97%
A124: 114 | B124: Finance | C124: L&TFH | D124: 141.65 | E124: 140.98 | F124: 138.37 | G124: 135.08 | H124: 132.47 | I124: 144.27 | J124: 146.88 | K124: 150.17 | L124: 143.6 | M124: 137.7 | N124: 22225500 | O124: -10.10%
A125: 115 | B125: Finance | C125: LICHSGFIN | D125: 492.40 | E125: 492.10 | F125: 486.80 | G125: 481.20 | H125: 475.90 | I125: 497.70 | J125: 503.00 | K125: 508.60 | L125: 497.4 | M125: 486.5 | N125: 8523900 | O125: -4.36%
A126: 116 | B126: Capital_Goods | C126: LT | D126: 1317.00 | E126: 1318.37 | F126: 1311.73 | G126: 1306.47 | H126: 1299.83 | I126: 1323.63 | J126: 1330.27 | K126: 1335.53 | L126: 1325 | M126: 1313.1 | N126: 7327500 | O126: -2.16%
A127: 117 | B127: Pharma | C127: LUPIN | D127: 793.95 | E127: 792.77 | F127: 785.68 | G127: 777.42 | H127: 770.33 | I127: 801.03 | J127: 808.12 | K127: 816.38 | L127: 799.85 | M127: 784.5 | N127: 8910300 | O127: 0.35%
A128: 118 | B128: Automobile | C128: M&M | D128: 663.80 | E128: 663.35 | F128: 657.70 | G128: 651.60 | H128: 645.95 | I128: 669.45 | J128: 675.10 | K128: 681.20 | L128: 669 | M128: 657.25 | N128: 23690000 | O128: 4.19%
A129: 119 | B129: Finance | C129: M&MFIN | D129: 443.20 | E129: 440.87 | F129: 437.03 | G129: 430.87 | H129: 427.03 | I129: 447.03 | J129: 450.87 | K129: 457.03 | L129: 444.7 | M129: 434.7 | N129: 11120000 | O129: 1.15%
A130: 120 | B130: Others | C130: MANAPPURAM | D130: 120.65 | E130: 120.75 | F130: 119.45 | G130: 118.25 | H130: 116.95 | I130: 121.95 | J130: 123.25 | K130: 124.45 | L130: 122.05 | M130: 119.55 | N130: 9870000 | O130: -0.78%
A131: 121 | B131: FMCG | C131: MARICO | D131: 338.50 | E131: 338.80 | F131: 335.00 | G131: 331.50 | H131: 327.70 | I131: 342.30 | J131: 346.10 | K131: 349.60 | L131: 342.6 | M131: 335.3 | N131: 7631000 | O131: 5.54%
A132: 122 | B132: Automobile | C132: MARUTI | D132: 7095.80 | E132: 7111.40 | F132: 7034.80 | G132: 6973.80 | H132: 6897.20 | I132: 7172.40 | J132: 7249.00 | K132: 7310.00 | L132: 7188 | M132: 7050.4 | N132: 2714625 | O132: 0.12%
A133: 123 | B133: FMCG | C133: MCDOWELL-N | D133: 565.80 | E133: 568.60 | F133: 559.50 | G133: 553.20 | H133: 544.10 | I133: 574.90 | J133: 584.00 | K133: 590.30 | L133: 577.7 | M133: 562.3 | N133: 10835000 | O133: -2.94%
A134: 124 | B134: Others | C134: MCX | D134: 749.50 | E134: 745.47 | F134: 732.08 | G134: 714.67 | H134: 701.28 | I134: 762.88 | J134: 776.27 | K134: 793.68 | L134: 758.85 | M134: 728.05 | N134: 2415000 | O134: 13.90%
A135: 125 | B135: Finance | C135: MFSL | D135: 410.85 | E135: 413.40 | F135: 404.45 | G135: 398.05 | H135: 389.10 | I135: 419.80 | J135: 428.75 | K135: 435.15 | L135: 422.35 | M135: 407 | N135: 2059200 | O135: -0.58%
A136: 126 | B136: Others | C136: MGL | D136: 892.50 | E136: 896.70 | F136: 882.50 | G136: 872.50 | H136: 858.30 | I136: 906.70 | J136: 920.90 | K136: 930.90 | L136: 910.9 | M136: 886.7 | N136: 744600 | O136: -2.36%
A137: 127 | B137: Technology | C137: MINDTREE | D137: 923.05 | E137: 923.40 | F137: 916.80 | G137: 910.55 | H137: 903.95 | I137: 929.65 | J137: 936.25 | K137: 942.50 | L137: 930 | M137: 917.15 | N137: 3025200 | O137: 1.20%
A138: 128 | B138: Automobile | C138: MOTHERSUMI | D138: 168.25 | E138: 167.63 | F138: 165.47 | G138: 162.68 | H138: 160.52 | I138: 170.42 | J138: 172.58 | K138: 175.37 | L138: 169.8 | M138: 164.85 | N138: 28876200 | O138: 0.29%
A139: 129 | B139: Automobile | C139: MRF | D139: 58738.35 | E139: 58481.92 | F139: 57986.43 | G139: 57234.52 | H139: 56739.03 | I139: 59233.83 | J139: 59729.32 | K139: 60481.23 | L139: 58977.4 | M139: 57730 | N139: 34680 | O139: -7.91%
A140: 130 | B140: Others | C140: MRPL | D140: 71.40 | E140: 71.50 | F140: 70.55 | G140: 69.70 | H140: 68.75 | I140: 72.35 | J140: 73.30 | K140: 74.15 | L140: 72.45 | M140: 70.65 | N140: 5544000 | O140: -0.63%
A141: 131 | B141: Finance | C141: MUTHOOTFIN | D141: 566.35 | E141: 565.32 | F141: 557.63 | G141: 548.92 | H141: 541.23 | I141: 574.03 | J141: 581.72 | K141: 590.43 | L141: 573 | M141: 556.6 | N141: 1984500 | O141: -1.05%
A142: 132 | B142: Others | C142: NATIONALUM | D142: 57.55 | E142: 57.35 | F142: 56.80 | G142: 56.05 | H142: 55.50 | I142: 58.10 | J142: 58.65 | K142: 59.40 | L142: 57.9 | M142: 56.6 | N142: 32208000 | O142: -7.24%
A143: 133 | B143: Others | C143: NBCC | D143: 59.95 | E143: 60.05 | F143: 58.00 | G143: 56.05 | H143: 54.00 | I143: 62.00 | J143: 64.05 | K143: 66.00 | L143: 62.1 | M143: 58.1 | N143: 29816000 | O143: 4.90%
A144: 134 | B144: Infrastructure | C144: NCC | D144: 99.45 | E144: 99.25 | F144: 97.70 | G144: 95.95 | H144: 94.40 | I144: 101.00 | J144: 102.55 | K144: 104.30 | L144: 100.8 | M144: 97.5 | N144: 47000000 | O144: 1.43%
A145: 135 | B145: Others | C145: NESTLEIND | D145: 10392.85 | E145: 10427.82 | F145: 10231.03 | G145: 10069.22 | H145: 9872.43 | I145: 10589.63 | J145: 10786.42 | K145: 10948.23 | L145: 10624.6 | M145: 10266 | N145: 331150 | O145: 10.72%
A146: 136 | B146: Power | C146: NHPC | D146: 24.10 | E146: 24.03 | F146: 23.82 | G146: 23.53 | H146: 23.32 | I146: 24.32 | J146: 24.53 | K146: 24.82 | L146: 24.25 | M146: 23.75 | N146: 21546000 | O146: -1.36%
A147: 137 | B147: Technology | C147: NIITTECH | D147: 1325.60 | E147: 1324.55 | F147: 1316.15 | G147: 1306.70 | H147: 1298.30 | I147: 1334.00 | J147: 1342.40 | K147: 1351.85 | L147: 1332.95 | M147: 1315.1 | N147: 1332750 | O147: -1.93%
A148: 138 | B148: Metals | C148: NMDC | D148: 105.40 | E148: 105.18 | F148: 103.82 | G148: 102.23 | H148: 100.87 | I148: 106.77 | J148: 108.13 | K148: 109.72 | L148: 106.55 | M148: 103.6 | N148: 16812000 | O148: 0.21%
A149: 139 | B149: Power | C149: NTPC | D149: 148.95 | E149: 148.30 | F149: 147.30 | G149: 145.65 | H149: 144.65 | I149: 149.95 | J149: 150.95 | K149: 152.60 | L149: 149.3 | M149: 146.65 | N149: 34164000 | O149: -2.12%
A150: 140 | B150: Technology | C150: OFSS | D150: 3526.30 | E150: 3550.43 | F150: 3480.87 | G150: 3435.43 | H150: 3365.87 | I150: 3595.87 | J150: 3665.43 | K150: 3710.87 | L150: 3620 | M150: 3505 | N150: 163650 | O150: -0.09%
A151: 141 | B151: Oil_Gas | C151: OIL | D151: 183.55 | E151: 183.47 | F151: 182.43 | G151: 181.32 | H151: 180.28 | I151: 184.58 | J151: 185.62 | K151: 186.73 | L151: 184.5 | M151: 182.35 | N151: 6464898 | O151: -4.33%
A152: 142 | B152: Oil_Gas | C152: ONGC | D152: 155.35 | E152: 155.57 | F152: 153.48 | G152: 151.62 | H152: 149.53 | I152: 157.43 | J152: 159.52 | K152: 161.38 | L152: 157.65 | M152: 153.7 | N152: 25488750 | O152: -3.62%
A153: 143 | B153: Banking | C153: ORIENTBANK | D153: 94.90 | E153: 94.95 | F153: 93.25 | G153: 91.60 | H153: 89.90 | I153: 96.60 | J153: 98.30 | K153: 99.95 | L153: 96.65 | M153: 93.3 | N153: 13804000 | O153: 0.92%
A154: 144 | B154: Textile | C154: PAGEIND | D154: 23304.75 | E154: 23229.92 | F154: 22904.83 | G154: 22504.92 | H154: 22179.83 | I154: 23629.83 | J154: 23954.92 | K154: 24354.83 | L154: 23555 | M154: 22830 | N154: 137400 | O154: -2.08%
A155: 145 | B155: Others | C155: PCJEWELLER | D155: 78.45 | E155: 79.72 | F155: 76.38 | G155: 74.32 | H155: 70.98 | I155: 81.78 | J155: 85.12 | K155: 87.18 | L155: 83.05 | M155: 77.65 | N155: 11316500 | O155: 2.59%
A156: 146 | B156: Pharma | C156: PEL | D156: 2589.95 | E156: 2564.40 | F156: 2514.55 | G156: 2439.15 | H156: 2389.30 | I156: 2639.80 | J156: 2689.65 | K156: 2765.05 | L156: 2614.25 | M156: 2489 | N156: 3418942 | O156: -2.64%
A157: 147 | B157: Oil_Gas | C157: PETRONET | D157: 228.30 | E157: 228.85 | F157: 224.60 | G157: 220.90 | H157: 216.65 | I157: 232.55 | J157: 236.80 | K157: 240.50 | L157: 233.1 | M157: 225.15 | N157: 11574000 | O157: 0.94%
A158: 148 | B158: Finance | C158: PFC | D158: 115.20 | E158: 116.18 | F158: 113.22 | G158: 111.23 | H158: 108.27 | I158: 118.17 | J158: 121.13 | K158: 123.12 | L158: 119.15 | M158: 114.2 | N158: 23603400 | O158: -3.60%
A159: 149 | B159: FMCG | C159: PIDILITIND | D159: 1149.25 | E159: 1157.15 | F159: 1137.50 | G159: 1125.75 | H159: 1106.10 | I159: 1168.90 | J159: 1188.55 | K159: 1200.30 | L159: 1176.8 | M159: 1145.4 | N159: 2193500 | O159: 9.59%
A160: 150 | B160: Banking | C160: PNB | D160: 82.75 | E160: 82.83 | F160: 81.57 | G160: 80.38 | H160: 79.12 | I160: 84.02 | J160: 85.28 | K160: 86.47 | L160: 84.1 | M160: 81.65 | N160: 109564000 | O160: 2.09%
A161: 151 | B161: Power | C161: POWERGRID | D161: 183.20 | E161: 182.60 | F161: 180.60 | G161: 178.00 | H161: 176.00 | I161: 185.20 | J161: 187.20 | K161: 189.80 | L161: 184.6 | M161: 180 | N161: 16868000 | O161: -20.21%
A162: 152 | B162: Others | C162: PVR | D162: 1527.65 | E162: 1529.55 | F162: 1512.10 | G162: 1496.55 | H162: 1479.10 | I162: 1545.10 | J162: 1562.55 | K162: 1578.10 | L162: 1547 | M162: 1514 | N162: 1313200 | O162: -2.18%
A163: 153 | B163: Cement | C163: RAMCOCEM | D163: 724.95 | E163: 724.98 | F163: 717.67 | G163: 710.38 | H163: 703.07 | I163: 732.27 | J163: 739.58 | K163: 746.87 | L163: 732.3 | M163: 717.7 | N163: 704800 | O163: -16.18%
A164: 154 | B164: Others | C164: RAYMOND | D164: 820.05 | E164: 817.45 | F164: 798.50 | G164: 776.95 | H164: 758.00 | I164: 839.00 | J164: 857.95 | K164: 879.50 | L164: 836.4 | M164: 795.9 | N164: 3456800 | O164: -4.34%
A165: 155 | B165: Banking | C165: RBLBANK | D165: 626.10 | E165: 621.73 | F165: 615.87 | G165: 605.63 | H165: 599.77 | I165: 631.97 | J165: 637.83 | K165: 648.07 | L165: 627.6 | M165: 611.5 | N165: 5314800 | O165: 13.24%
A166: 157 | B166: Power | C166: RECLTD | D166: 144.00 | E166: 144.52 | F166: 141.88 | G166: 139.77 | H166: 137.13 | I166: 146.63 | J166: 149.27 | K166: 151.38 | L166: 147.15 | M166: 142.4 | N166: 32808000 | O166: -4.89%
A167: 158 | B167: Finance | C167: RELCAPITAL | D167: 190.15 | E167: 191.58 | F167: 186.67 | G167: 183.18 | H167: 178.27 | I167: 195.07 | J167: 199.98 | K167: 203.47 | L167: 196.5 | M167: 188.1 | N167: 7749000 | O167: -1.49%
A168: 159 | B168: Oil_Gas | C168: RELIANCE | D168: 1271.10 | E168: 1263.90 | F168: 1248.40 | G168: 1225.70 | H168: 1210.20 | I168: 1286.60 | J168: 1302.10 | K168: 1324.80 | L168: 1279.4 | M168: 1241.2 | N168: 52386000 | O168: 1.35%
A169: 160 | B169: Power | C169: RELINFRA | D169: 135.50 | E169: 136.73 | F169: 130.07 | G169: 124.63 | H169: 117.97 | I169: 142.17 | J169: 148.83 | K169: 154.27 | L169: 143.4 | M169: 131.3 | N169: 14865500 | O169: 2.98%
A170: 161 | B170: Others | C170: REPCOHOME | D170: 434.85 | E170: 434.23 | F170: 411.62 | G170: 388.38 | H170: 365.77 | I170: 457.47 | J170: 480.08 | K170: 503.32 | L170: 456.85 | M170: 411 | N170: 1202300 | O170: 5.81%
A171: 162 | B171: Power | C171: RPOWER | D171: 12.55 | E171: 12.67 | F171: 12.08 | G171: 11.62 | H171: 11.03 | I171: 13.13 | J171: 13.72 | K171: 14.18 | L171: 13.25 | M171: 12.2 | N171: 100784000 | O171: -13.19%
A172: 163 | B172: Metals | C172: SAIL | D172: 55.65 | E172: 55.83 | F172: 54.92 | G172: 54.18 | H172: 53.27 | I172: 56.57 | J172: 57.48 | K172: 58.22 | L172: 56.75 | M172: 55.1 | N172: 78096000 | O172: -0.15%
A173: 164 | B173: Banking | C173: SBIN | D173: 279.75 | E173: 280.60 | F173: 277.15 | G173: 274.55 | H173: 271.10 | I173: 283.20 | J173: 286.65 | K173: 289.25 | L173: 284.05 | M173: 278 | N173: 78678000 | O173: 6.70%
A174: 165 | B174: Cement | C174: SHREECEM | D174: 17577.25 | E174: 17492.47 | F174: 17284.93 | G174: 16992.62 | H174: 16785.08 | I174: 17784.78 | J174: 17992.32 | K174: 18284.63 | L174: 17700 | M174: 17200.15 | N174: 86850 | O174: 1.40%
A175: 166 | B175: Capital_Goods | C175: SIEMENS | D175: 1024.95 | E175: 1033.33 | F175: 1012.72 | G175: 1000.48 | H175: 979.87 | I175: 1045.57 | J175: 1066.18 | K175: 1078.42 | L175: 1053.95 | M175: 1021.1 | N175: 1685200 | O175: 0.00%
A176: 167 | B176: Banking | C176: SOUTHBANK | D176: 15.20 | E176: 15.13 | F176: 14.62 | G176: 14.03 | H176: 13.52 | I176: 15.72 | J176: 16.23 | K176: 16.82 | L176: 15.65 | M176: 14.55 | N176: 143434248 | O176: 2.27%
A177: 169 | B177: Textile | C177: SRF | D177: 2364.80 | E177: 2349.60 | F177: 2322.20 | G177: 2279.60 | H177: 2252.20 | I177: 2392.20 | J177: 2419.60 | K177: 2462.20 | L177: 2377 | M177: 2307 | N177: 728500 | O177: 9.06%
A178: 170 | B178: Finance | C178: SRTRANSFIN | D178: 1243.70 | E178: 1248.38 | F178: 1226.77 | G178: 1209.83 | H178: 1188.22 | I178: 1265.32 | J178: 1286.93 | K178: 1303.87 | L178: 1270 | M178: 1231.45 | N178: 3898200 | O178: 1.17%
A179: 171 | B179: Pharma | C179: STAR | D179: 439.55 | E179: 439.23 | F179: 431.87 | G179: 424.18 | H179: 416.82 | I179: 446.92 | J179: 454.28 | K179: 461.97 | L179: 446.6 | M179: 431.55 | N179: 4228400 | O179: 0.73%
A180: 172 | B180: Pharma | C180: SUNPHARMA | D180: 461.95 | E180: 460.67 | F180: 449.83 | G180: 437.72 | H180: 426.88 | I180: 472.78 | J180: 483.62 | K180: 495.73 | L180: 471.5 | M180: 448.55 | N180: 49835500 | O180: -2.27%
A181: 173 | B181: Media | C181: SUNTV | D181: 622.90 | E181: 624.75 | F181: 614.60 | G181: 606.30 | H181: 596.15 | I181: 633.05 | J181: 643.20 | K181: 651.50 | L181: 634.9 | M181: 616.45 | N181: 6204000 | O181: -0.48%
A182: 174 | B182: Power | C182: SUZLON | D182: 7.95 | E182: 7.97 | F182: 7.53 | G182: 7.12 | H182: 6.68 | I182: 8.38 | J182: 8.82 | K182: 9.23 | L182: 8.4 | M182: 7.55 | N182: 239020000 | O182: -0.85%
A183: 175 | B183: Banking | C183: SYNDIBANK | D183: 36.95 | E183: 37.07 | F183: 36.33 | G183: 35.72 | H183: 34.98 | I183: 37.68 | J183: 38.42 | K183: 39.03 | L183: 37.8 | M183: 36.45 | N183: 22920000 | O183: -1.29%
A184: 176 | B184: Fertilisers | C184: TATACHEM | D184: 580.35 | E184: 582.93 | F184: 575.62 | G184: 570.88 | H184: 563.57 | I184: 587.67 | J184: 594.98 | K184: 599.72 | L184: 590.25 | M184: 578.2 | N184: 4071000 | O184: 2.55%
A185: 177 | B185: Telecom | C185: TATACOMM | D185: 614.50 | E185: 614.12 | F185: 603.73 | G185: 592.97 | H185: 582.58 | I185: 624.88 | J185: 635.27 | K185: 646.03 | L185: 624.5 | M185: 603.35 | N185: 2882000 | O185: -1.81%
A186: 178 | B186: Technology | C186: TATAELXSI | D186: 955.90 | E186: 949.78 | F186: 938.07 | G186: 920.23 | H186: 908.52 | I186: 967.62 | J186: 979.33 | K186: 997.17 | L186: 961.5 | M186: 931.95 | N186: 1364400 | O186: 1.85%
A187: 179 | B187: FMCG | C187: TATAGLOBAL | D187: 199.05 | E187: 200.13 | F187: 195.87 | G187: 192.68 | H187: 188.42 | I187: 203.32 | J187: 207.58 | K187: 210.77 | L187: 204.4 | M187: 196.95 | N187: 9492750 | O187: 4.12%
A188: 180 | B188: Automobile | C188: TATAMOTORS | D188: 190.15 | E188: 191.72 | F188: 187.48 | G188: 184.82 | H188: 180.58 | I188: 194.38 | J188: 198.62 | K188: 201.28 | L188: 195.95 | M188: 189.05 | N188: 53212000 | O188: -0.67%
A189: 181 | B189: Automobile | C189: TATAMTRDVR | D189: 95.00 | E189: 95.50 | F189: 94.00 | G189: 93.00 | H189: 91.50 | I189: 96.50 | J189: 98.00 | K189: 99.00 | L189: 97 | M189: 94.5 | N189: 30681200 | O189: -0.42%
A190: 182 | B190: Power | C190: TATAPOWER | D190: 71.65 | E190: 71.25 | F190: 69.90 | G190: 68.15 | H190: 66.80 | I190: 73.00 | J190: 74.35 | K190: 76.10 | L190: 72.6 | M190: 69.5 | N190: 48258000 | O190: 2.48%
A191: 183 | B191: Metals | C191: TATASTEEL | D191: 522.05 | E191: 521.92 | F191: 517.33 | G191: 512.62 | H191: 508.03 | I191: 526.63 | J191: 531.22 | K191: 535.93 | L191: 526.5 | M191: 517.2 | N191: 31473504 | O191: 0.11%
A192: 184 | B192: Technology | C192: TCS | D192: 2011.55 | E192: 2010.27 | F192: 1992.78 | G192: 1974.02 | H192: 1956.53 | I192: 2029.03 | J192: 2046.52 | K192: 2065.28 | L192: 2027.75 | M192: 1991.5 | N192: 14648000 | O192: 0.14%
A193: 185 | B193: Technology | C193: TECHM | D193: 828.75 | E193: 825.67 | F193: 818.43 | G193: 808.12 | H193: 800.88 | I193: 835.98 | J193: 843.22 | K193: 853.53 | L193: 832.9 | M193: 815.35 | N193: 11592000 | O193: -0.53%
A194: 186 | B194: FMCG | C194: TITAN | D194: 1059.45 | E194: 1052.62 | F194: 1040.33 | G194: 1021.22 | H194: 1008.93 | I194: 1071.73 | J194: 1084.02 | K194: 1103.13 | L194: 1064.9 | M194: 1033.5 | N194: 12085500 | O194: 0.19%
A195: 187 | B195: Pharma | C195: TORNTPHARM | D195: 1814.10 | E195: 1807.20 | F195: 1785.40 | G195: 1756.70 | H195: 1734.90 | I195: 1835.90 | J195: 1857.70 | K195: 1886.40 | L195: 1829 | M195: 1778.5 | N195: 542000 | O195: 9.16%
A196: 188 | B196: Power | C196: TORNTPOWER | D196: 249.55 | E196: 250.95 | F196: 247.15 | G196: 244.75 | H196: 240.95 | I196: 253.35 | J196: 257.15 | K196: 259.55 | L196: 254.75 | M196: 248.55 | N196: 2175000 | O196: 5.38%
A197: 189 | B197: Media | C197: TV18BRDCST | D197: 36.95 | E197: 37.20 | F197: 36.40 | G197: 35.85 | H197: 35.05 | I197: 37.75 | J197: 38.55 | K197: 39.10 | L197: 38 | M197: 36.65 | N197: 53157000 | O197: -1.35%
A198: 190 | B198: Automobile | C198: TVSMOTOR | D198: 490.80 | E198: 492.52 | F198: 485.73 | G198: 480.67 | H198: 473.88 | I198: 497.58 | J198: 504.37 | K198: 509.43 | L198: 499.3 | M198: 487.45 | N198: 5230000 | O198: -3.95%
A199: 191 | B199: FMCG | C199: UBL | D199: 1400.25 | E199: 1400.67 | F199: 1386.08 | G199: 1371.92 | H199: 1357.33 | I199: 1414.83 | J199: 1429.42 | K199: 1443.58 | L199: 1415.25 | M199: 1386.5 | N199: 2624300 | O199: -0.27%
A200: 192 | B200: Finance | C200: UJJIVAN | D200: 316.85 | E200: 317.32 | F200: 311.58 | G200: 306.32 | H200: 300.58 | I200: 322.58 | J200: 328.32 | K200: 333.58 | L200: 323.05 | M200: 312.05 | N200: 3683200 | O200: 14.13%
A201: 193 | B201: Cement | C201: ULTRACEMCO | D201: 3978.65 | E201: 3982.98 | F201: 3936.67 | G201: 3894.68 | H201: 3848.37 | I201: 4024.97 | J201: 4071.28 | K201: 4113.27 | L201: 4029.3 | M201: 3941 | N201: 2114800 | O201: 2.73%
A202: 194 | B202: Banking | C202: UNIONBANK | D202: 79.50 | E202: 80.08 | F202: 78.12 | G202: 76.73 | H202: 74.77 | I202: 81.47 | J202: 83.43 | K202: 84.82 | L202: 82.05 | M202: 78.7 | N202: 31976000 | O202: -3.42%
A203: 195 | B203: Fertilisers | C203: UPL | D203: 880.00 | E203: 879.93 | F203: 871.37 | G203: 862.73 | H203: 854.17 | I203: 888.57 | J203: 897.13 | K203: 905.77 | L203: 888.5 | M203: 871.3 | N203: 15175200 | O203: -1.43%
A204: 196 | B204: Metals | C204: VEDL | D204: 177.65 | E204: 177.02 | F204: 175.43 | G204: 173.22 | H204: 171.63 | I204: 179.23 | J204: 180.82 | K204: 183.03 | L204: 178.6 | M204: 174.8 | N204: 29396300 | O204: -2.72%
A205: 197 | B205: Others | C205: VGUARD | D205: 214.10 | E205: 213.97 | F205: 212.28 | G205: 210.47 | H205: 208.78 | I205: 215.78 | J205: 217.47 | K205: 219.28 | L205: 215.65 | M205: 212.15 | N205: 3180000 | O205: 2.22%
A206: 198 | B206: Capital_Goods | C206: VOLTAS | D206: 594.10 | E206: 593.87 | F206: 587.73 | G206: 581.37 | H206: 575.23 | I206: 600.23 | J206: 606.37 | K206: 612.73 | L206: 600 | M206: 587.5 | N206: 5641000 | O206: -0.74%
... 19 more rows

Sheet Cash Intra
M5: Back to Main Page
A6: FOR INTRA DAY TRADING | K6: =Main!B10 -> 2019-03-07
A8: Sr.no | B8: Scrip | C8: CLOSE RATE | D8: Pivot Point | E8: Supports | H8: Resistances
C9: Point | E9: S1 | F9: S2 | G9: S3 | H9: R1 | I9: R2 | J9: R3 | K9: HIGH | L9: LOW | M9: Total Trade Quanity in Lakhs
A10: 1 | B10: Nifty 50 | C10: 11053 | D10: 11038.05 | E10: 11013.80 | F10: 10974.60 | G10: 10950.35 | H10: 11077.25 | I10: 11101.50 | J10: 11140.70 | K10: 11062.3 | L10: 10998.85
A11: 2 | B11: Nifty Bank | C11: 27625.65 | D11: 27599.78 | E11: 27517.92 | F11: 27410.18 | G11: 27328.32 | H11: 27707.52 | I11: 27789.38 | J11: 27897.12 | K11: 27681.65 | L11: 27492.05
A12: 3 | B12: Nifty CPSE | C12: 2168.9 | D12: 2168.33 | E12: 2154.67 | F12: 2140.43 | G12: 2126.77 | H12: 2182.57 | I12: 2196.23 | J12: 2210.47 | K12: 2182 | L12: 2154.1
A13: 4 | B13: Nifty Infra | C13: 3009.05 | D13: 3008.32 | E13: 2994.83 | F13: 2980.62 | G13: 2967.13 | H13: 3022.53 | I13: 3036.02 | J13: 3050.23 | K13: 3021.8 | L13: 2994.1
A14: 5 | B14: Nifty IT | C14: 15735.05 | D14: 15743.62 | E14: 15672.53 | F14: 15610.02 | G14: 15538.93 | H14: 15806.13 | I14: 15877.22 | J14: 15939.73 | K14: 15814.7 | L14: 15681.1
A15: 6 | B15: Nifty PSE | C15: 3417.7 | D15: 3416.05 | E15: 3398.95 | F15: 3380.20 | G15: 3363.10 | H15: 3434.80 | I15: 3451.90 | J15: 3470.65 | K15: 3433.15 | L15: 3397.3
A16: 7 | B16: Nifty Midcap 50 | C16: 4847.25 | D16: 4845.23 | E16: 4821.92 | F16: 4796.58 | G16: 4773.27 | H16: 4870.57 | I16: 4893.88 | J16: 4919.22 | K16: 4868.55 | L16: 4819.9
A17: 8 | B17: ABB | C17: 1244.55 | D17: 1240.18 | E17: 1229.37 | F17: 1214.18 | G17: 1203.37 | H17: 1255.37 | I17: 1266.18 | J17: 1281.37 | K17: 1251 | L17: 1225 | M17: 1.69943
A18: 9 | B18: ACC | C18: 1554.4 | D18: 1549.77 | E18: 1537.63 | F18: 1520.87 | G18: 1508.73 | H18: 1566.53 | I18: 1578.67 | J18: 1595.43 | K18: 1561.9 | L18: 1533 | M18: 20.3588
A19: 10 | B19: AIAENG | C19: 1798.5 | D19: 1804.23 | E19: 1774.27 | F19: 1750.03 | G19: 1720.07 | H19: 1828.47 | I19: 1858.43 | J19: 1882.67 | K19: 1834.2 | L19: 1780 | M19: 0.66056
A20: 11 | B20: AUBANK | C20: 589.15 | D20: 587.33 | E20: 579.77 | F20: 570.38 | G20: 562.82 | H20: 596.72 | I20: 604.28 | J20: 613.67 | K20: 594.9 | L20: 577.95 | M20: 2.27989
A21: 12 | B21: ADANIENT | C21: 139.25 | D21: 140.40 | E21: 137.05 | F21: 134.85 | G21: 131.50 | H21: 142.60 | I21: 145.95 | J21: 148.15 | K21: 143.75 | L21: 138.2 | M21: 48.56085
A22: 13 | B22: ADANIPORTS | C22: 337.05 | D22: 340.10 | E22: 331.00 | F22: 324.95 | G22: 315.85 | H22: 346.15 | I22: 355.25 | J22: 361.30 | K22: 349.2 | L22: 334.05 | M22: 79.49482
A23: 14 | B23: ADANIPOWER | C23: 50.7 | D23: 50.73 | E23: 49.77 | F23: 48.83 | G23: 47.87 | H23: 51.67 | I23: 52.63 | J23: 53.57 | K23: 51.7 | L23: 49.8 | M23: 178.76199
A24: 15 | B24: ABFRL | C24: 219.85 | D24: 221.57 | E24: 217.03 | F24: 214.22 | G24: 209.68 | H24: 224.38 | I24: 228.92 | J24: 231.73 | K24: 226.1 | L24: 218.75 | M24: 6.12206
A25: 16 | B25: AJANTPHARM | C25: 991.95 | D25: 993.18 | E25: 982.92 | F25: 973.88 | G25: 963.62 | H25: 1002.22 | I25: 1012.48 | J25: 1021.52 | K25: 1003.45 | L25: 984.15 | M25: 3.68274
A26: 17 | B26: ALKEM | C26: 1746.8 | D26: 1754.93 | E26: 1731.87 | F26: 1716.93 | G26: 1693.87 | H26: 1769.87 | I26: 1792.93 | J26: 1807.87 | K26: 1778 | L26: 1740 | M26: 0.52958
A27: 18 | B27: AMARAJABAT | C27: 747.05 | D27: 745.23 | E27: 738.47 | F27: 729.88 | G27: 723.12 | H27: 753.82 | I27: 760.58 | J27: 769.17 | K27: 752 | L27: 736.65 | M27: 6.26767
A28: 19 | B28: AMBUJACEM | C28: 220.25 | D28: 222.07 | E28: 217.73 | F28: 215.22 | G28: 210.88 | H28: 224.58 | I28: 228.92 | J28: 231.43 | K28: 226.4 | L28: 219.55 | M28: 42.40764
A29: 20 | B29: APOLLOHOSP | C29: 1192.75 | D29: 1196.37 | E29: 1179.88 | F29: 1167.02 | G29: 1150.53 | H29: 1209.23 | I29: 1225.72 | J29: 1238.58 | K29: 1212.85 | L29: 1183.5 | M29: 16.79631
A30: 21 | B30: APOLLOTYRE | C30: 219.45 | D30: 221.03 | E30: 217.07 | F30: 214.68 | G30: 210.72 | H30: 223.42 | I30: 227.38 | J30: 229.77 | K30: 225 | L30: 218.65 | M30: 22.97209
A31: 22 | B31: ARVIND | C31: 85.55 | D31: 85.67 | E31: 84.63 | F31: 83.72 | G31: 82.68 | H31: 86.58 | I31: 87.62 | J31: 88.53 | K31: 86.7 | L31: 84.75 | M31: 26.02946
A32: 23 | B32: ASHOKLEY | C32: 90.6 | D32: 91.12 | E32: 89.38 | F32: 88.17 | G32: 86.43 | H32: 92.33 | I32: 94.07 | J32: 95.28 | K32: 92.85 | L32: 89.9 | M32: 375.09378
A33: 24 | B33: ASIANPAINT | C33: 1393.7 | D33: 1396.75 | E33: 1383.50 | F33: 1373.30 | G33: 1360.05 | H33: 1406.95 | I33: 1420.20 | J33: 1430.40 | K33: 1410 | L33: 1386.55 | M33: 7.20335
A34: 25 | B34: AUROPHARMA | C34: 733.35 | D34: 736.52 | E34: 727.68 | F34: 722.02 | G34: 713.18 | H34: 742.18 | I34: 751.02 | J34: 756.68 | K34: 745.35 | L34: 730.85 | M34: 18.46913
A35: 26 | B35: DMART | C35: 1470.35 | D35: 1472.62 | E35: 1460.23 | F35: 1450.12 | G35: 1437.73 | H35: 1482.73 | I35: 1495.12 | J35: 1505.23 | K35: 1485 | L35: 1462.5 | M35: 2.21967
A36: 27 | B36: AXISBANK | C36: 720.6 | D36: 722.35 | E36: 710.80 | F36: 701.00 | G36: 689.45 | H36: 732.15 | I36: 743.70 | J36: 753.50 | K36: 733.9 | L36: 712.55 | M36: 105.1067
A37: 28 | B37: BAJAJ-AUTO | C37: 2927.6 | D37: 2915.28 | E37: 2888.57 | F37: 2849.53 | G37: 2822.82 | H37: 2954.32 | I37: 2981.03 | J37: 3020.07 | K37: 2942 | L37: 2876.25 | M37: 7.48391
A38: 29 | B38: BAJFINANCE | C38: 2766.7 | D38: 2746.97 | E38: 2719.73 | F38: 2672.77 | G38: 2645.53 | H38: 2793.93 | I38: 2821.17 | J38: 2868.13 | K38: 2774.2 | L38: 2700 | M38: 15.43424
A39: 30 | B39: BAJAJFINSV | C39: 6609.15 | D39: 6584.17 | E39: 6543.33 | F39: 6477.52 | G39: 6436.68 | H39: 6649.98 | I39: 6690.82 | J39: 6756.63 | K39: 6625 | L39: 6518.35 | M39: 2.36921
A40: 31 | B40: BALKRISIND | C40: 911.95 | D40: 914.90 | E40: 902.85 | F40: 893.75 | G40: 881.70 | H40: 924.00 | I40: 936.05 | J40: 945.15 | K40: 926.95 | L40: 905.8 | M40: 3.15202
A41: 32 | B41: BANKBARODA | C41: 112.1 | D41: 112.22 | E41: 110.88 | F41: 109.67 | G41: 108.33 | H41: 113.43 | I41: 114.77 | J41: 115.98 | K41: 113.55 | L41: 111 | M41: 114.74316
A42: 33 | B42: BANKINDIA | C42: 89.8 | D42: 90.48 | E42: 88.52 | F42: 87.23 | G42: 85.27 | H42: 91.77 | I42: 93.73 | J42: 95.02 | K42: 92.45 | L42: 89.2 | M42: 95.93204
A43: 34 | B43: BATAINDIA | C43: 1344.35 | D43: 1328.53 | E43: 1308.47 | F43: 1272.58 | G43: 1252.52 | H43: 1364.42 | I43: 1384.48 | J43: 1420.37 | K43: 1348.6 | L43: 1292.65 | M43: 15.47417
A44: 35 | B44: BERGEPAINT | C44: 304.55 | D44: 304.78 | E44: 301.27 | F44: 297.98 | G44: 294.47 | H44: 308.07 | I44: 311.58 | J44: 314.87 | K44: 308.3 | L44: 301.5 | M44: 4.73998
A45: 36 | B45: BEL | C45: 92.1 | D45: 92.02 | E45: 90.13 | F45: 88.17 | G45: 86.28 | H45: 93.98 | I45: 95.87 | J45: 97.83 | K45: 93.9 | L45: 90.05 | M45: 170.65207
A46: 37 | B46: BHARATFIN | C46: 964.05 | D46: 964.85 | E46: 958.60 | F46: 953.15 | G46: 946.90 | H46: 970.30 | I46: 976.55 | J46: 982.00 | K46: 971.1 | L46: 959.4 | M46: 3.03884
A47: 38 | B47: BHARATFORG | C47: 518.55 | D47: 519.37 | E47: 512.23 | F47: 505.92 | G47: 498.78 | H47: 525.68 | I47: 532.82 | J47: 539.13 | K47: 526.5 | L47: 513.05 | M47: 21.06915
A48: 39 | B48: BHEL | C48: 69.1 | D48: 68.92 | E48: 67.68 | F48: 66.27 | G48: 65.03 | H48: 70.33 | I48: 71.57 | J48: 72.98 | K48: 70.15 | L48: 67.5 | M48: 130.04838
A49: 40 | B49: BPCL | C49: 372.7 | D49: 369.95 | E49: 366.10 | F49: 359.50 | G49: 355.65 | H49: 376.55 | I49: 380.40 | J49: 387.00 | K49: 373.8 | L49: 363.35 | M49: 60.98612
A50: 41 | B50: BHARTIARTL | C50: 309.4 | D50: 310.32 | E50: 307.38 | F50: 305.37 | G50: 302.43 | H50: 312.33 | I50: 315.27 | J50: 317.28 | K50: 313.25 | L50: 308.3 | M50: 63.92974
A51: 42 | B51: INFRATEL | C51: 302.55 | D51: 301.47 | E51: 296.43 | F51: 290.32 | G51: 285.28 | H51: 307.58 | I51: 312.62 | J51: 318.73 | K51: 306.5 | L51: 295.35 | M51: 42.05863
A52: 43 | B52: BIOCON | C52: 626.1 | D52: 628.25 | E52: 622.10 | F52: 618.10 | G52: 611.95 | H52: 632.25 | I52: 638.40 | J52: 642.40 | K52: 634.4 | L52: 624.25 | M52: 11.57958
A53: 44 | B53: BOSCHLTD | C53: 18875.2 | D53: 18880.83 | E53: 18722.37 | F53: 18569.53 | G53: 18411.07 | H53: 19033.67 | I53: 19192.13 | J53: 19344.97 | K53: 19039.3 | L53: 18728 | M53: 0.12834
A54: 45 | B54: BRITANNIA | C54: 3026.85 | D54: 3040.93 | E54: 2994.92 | F54: 2962.98 | G54: 2916.97 | H54: 3072.87 | I54: 3118.88 | J54: 3150.82 | K54: 3086.95 | L54: 3009 | M54: 3.83038
A55: 46 | B55: CRISIL | C55: 1509.45 | D55: 1504.43 | E55: 1486.07 | F55: 1462.68 | G55: 1444.32 | H55: 1527.82 | I55: 1546.18 | J55: 1569.57 | K55: 1522.8 | L55: 1481.05 | M55: 0.19025
A56: 47 | B56: CADILAHC | C56: 330.35 | D56: 332.05 | E56: 325.80 | F56: 321.25 | G56: 315.00 | H56: 336.60 | I56: 342.85 | J56: 347.40 | K56: 338.3 | L56: 327.5 | M56: 13.55928
A57: 48 | B57: CANBK | C57: 252.8 | D57: 253.77 | E57: 250.03 | F57: 247.27 | G57: 243.53 | H57: 256.53 | I57: 260.27 | J57: 263.03 | K57: 257.5 | L57: 251 | M57: 49.41825
A58: 49 | B58: CASTROLIND | C58: 164.05 | D58: 162.77 | E58: 160.53 | F58: 157.02 | G58: 154.78 | H58: 166.28 | I58: 168.52 | J58: 172.03 | K58: 165 | L58: 159.25 | M58: 13.86658
A59: 50 | B59: CENTRALBK | C59: 32.15 | D59: 32.15 | E59: 31.80 | F59: 31.45 | G59: 31.10 | H59: 32.50 | I59: 32.85 | J59: 33.20 | K59: 32.5 | L59: 31.8 | M59: 4.95206
A60: 51 | B60: CENTURYTEX | C60: 851.65 | D60: 857.23 | E60: 840.17 | F60: 828.68 | G60: 811.62 | H60: 868.72 | I60: 885.78 | J60: 897.27 | K60: 874.3 | L60: 845.75 | M60: 7.04978
A61: 52 | B61: CHOLAFIN | C61: 1307.7 | D61: 1310.85 | E61: 1291.85 | F61: 1276.00 | G61: 1257.00 | H61: 1326.70 | I61: 1345.70 | J61: 1361.55 | K61: 1329.85 | L61: 1295 | M61: 2.89521
A62: 53 | B62: CIPLA | C62: 547.55 | D62: 547.17 | E62: 542.33 | F62: 537.12 | G62: 532.28 | H62: 552.38 | I62: 557.22 | J62: 562.43 | K62: 552 | L62: 541.95 | M62: 15.87182
A63: 54 | B63: COALINDIA | C63: 242.75 | D63: 242.32 | E63: 238.43 | F63: 234.12 | G63: 230.23 | H63: 246.63 | I63: 250.52 | J63: 254.83 | K63: 246.2 | L63: 238 | M63: 95.35153
A64: 55 | B64: COLPAL | C64: 1275.75 | D64: 1266.93 | E64: 1251.87 | F64: 1227.98 | G64: 1212.92 | H64: 1290.82 | I64: 1305.88 | J64: 1329.77 | K64: 1282 | L64: 1243.05 | M64: 5.82752
A65: 56 | B65: CONCOR | C65: 486.9 | D65: 487.83 | E65: 482.22 | F65: 477.53 | G65: 471.92 | H65: 492.52 | I65: 498.13 | J65: 502.82 | K65: 493.45 | L65: 483.15 | M65: 7.83592
A66: 57 | B66: COROMANDEL | C66: 461.5 | D66: 458.57 | E66: 452.13 | F66: 442.77 | G66: 436.33 | H66: 467.93 | I66: 474.37 | J66: 483.73 | K66: 465 | L66: 449.2 | M66: 1.04995
A67: 58 | B67: CROMPTON | C67: 218.8 | D67: 218.73 | E67: 215.02 | F67: 211.23 | G67: 207.52 | H67: 222.52 | I67: 226.23 | J67: 230.02 | K67: 222.45 | L67: 214.95 | M67: 5.33991
A68: 59 | B68: CUMMINSIND | C68: 731.8 | D68: 734.32 | E68: 720.48 | F68: 709.17 | G68: 695.33 | H68: 745.63 | I68: 759.47 | J68: 770.78 | K68: 748.15 | L68: 723 | M68: 6.49839
A69: 60 | B69: DLF | C69: 177.35 | D69: 177.48 | E69: 174.22 | F69: 171.08 | G69: 167.82 | H69: 180.62 | I69: 183.88 | J69: 187.02 | K69: 180.75 | L69: 174.35 | M69: 65.13459
A70: 61 | B70: DABUR | C70: 436.75 | D70: 439.00 | E70: 433.00 | F70: 429.25 | G70: 423.25 | H70: 442.75 | I70: 448.75 | J70: 452.50 | K70: 445 | L70: 435.25 | M70: 16.99096
A71: 62 | B71: DHFL | C71: 148.75 | D71: 152.77 | E71: 143.23 | F71: 137.72 | G71: 128.18 | H71: 158.28 | I71: 167.82 | J71: 173.33 | K71: 162.3 | L71: 147.25 | M71: 511.06855
A72: 63 | B72: DISHTV | C72: 40.5 | D72: 40.68 | E72: 39.57 | F72: 38.63 | G72: 37.52 | H72: 41.62 | I72: 42.73 | J72: 43.67 | K72: 41.8 | L72: 39.75 | M72: 127.30469
A73: 64 | B73: DIVISLAB | C73: 1705.9 | D73: 1694.32 | E73: 1663.63 | F73: 1621.37 | G73: 1590.68 | H73: 1736.58 | I73: 1767.27 | J73: 1809.53 | K73: 1725 | L73: 1652.05 | M73: 6.92075
A74: 65 | B74: LALPATHLAB | C74: 1019.65 | D74: 1021.57 | E74: 1014.13 | F74: 1008.62 | G74: 1001.18 | H74: 1027.08 | I74: 1034.52 | J74: 1040.03 | K74: 1029 | L74: 1016.05 | M74: 0.54226
A75: 66 | B75: DRREDDY | C75: 2693.65 | D75: 2686.27 | E75: 2664.03 | F75: 2634.42 | G75: 2612.18 | H75: 2715.88 | I75: 2738.12 | J75: 2767.73 | K75: 2708.5 | L75: 2656.65 | M75: 8.52395
A76: 67 | B76: EDELWEISS | C76: 164.15 | D76: 166.55 | E76: 159.80 | F76: 155.45 | G76: 148.70 | H76: 170.90 | I76: 177.65 | J76: 182.00 | K76: 173.3 | L76: 162.2 | M76: 75.29835
A77: 68 | B77: EICHERMOT | C77: 21503.95 | D77: 21569.65 | E77: 21339.30 | F77: 21174.65 | G77: 20944.30 | H77: 21734.30 | I77: 21964.65 | J77: 22129.30 | K77: 21800 | L77: 21405 | M77: 1.26586
A78: 69 | B78: EMAMILTD | C78: 398.75 | D78: 400.42 | E78: 395.83 | F78: 392.92 | G78: 388.33 | H78: 403.33 | I78: 407.92 | J78: 410.83 | K78: 405 | L78: 397.5 | M78: 1.3185
A79: 70 | B79: ENDURANCE | C79: 1146.5 | D79: 1147.17 | E79: 1130.53 | F79: 1114.57 | G79: 1097.93 | H79: 1163.13 | I79: 1179.77 | J79: 1195.73 | K79: 1163.8 | L79: 1131.2 | M79: 25.49407
A80: 71 | B80: ENGINERSIN | C80: 114.3 | D80: 115.22 | E80: 112.73 | F80: 111.17 | G80: 108.68 | H80: 116.78 | I80: 119.27 | J80: 120.83 | K80: 117.7 | L80: 113.65 | M80: 26.71717
A81: 72 | B81: EXIDEIND | C81: 225.2 | D81: 225.07 | E81: 223.33 | F81: 221.47 | G81: 219.73 | H81: 226.93 | I81: 228.67 | J81: 230.53 | K81: 226.8 | L81: 223.2 | M81: 16.74424
A82: 73 | B82: FEDERALBNK | C82: 87.25 | D82: 87.95 | E82: 86.15 | F82: 85.05 | G82: 83.25 | H82: 89.05 | I82: 90.85 | J82: 91.95 | K82: 89.75 | L82: 86.85 | M82: 119.22216
A83: 74 | B83: GAIL | C83: 345.35 | D83: 345.62 | E83: 342.33 | F83: 339.32 | G83: 336.03 | H83: 348.63 | I83: 351.92 | J83: 354.93 | K83: 348.9 | L83: 342.6 | M83: 25.34626
A84: 75 | B84: GMRINFRA | C84: 16.9 | D84: 16.87 | E84: 16.58 | F84: 16.27 | G84: 15.98 | H84: 17.18 | I84: 17.47 | J84: 17.78 | K84: 17.15 | L84: 16.55 | M84: 279.43696
A85: 76 | B85: GSKCONS | C85: 7080.6 | D85: 7119.67 | E85: 7012.33 | F85: 6944.07 | G85: 6836.73 | H85: 7187.93 | I85: 7295.27 | J85: 7363.53 | K85: 7227 | L85: 7051.4 | M85: 0.22785
A86: 77 | B86: GLAXO | C86: 1301.1 | D86: 1311.95 | E86: 1285.90 | F86: 1270.70 | G86: 1244.65 | H86: 1327.15 | I86: 1353.20 | J86: 1368.40 | K86: 1338 | L86: 1296.75 | M86: 0.30534
A87: 78 | B87: GLENMARK | C87: 603.65 | D87: 603.65 | E87: 597.30 | F87: 590.95 | G87: 584.60 | H87: 610.00 | I87: 616.35 | J87: 622.70 | K87: 610 | L87: 597.3 | M87: 5.93887
A88: 79 | B88: GODREJCP | C88: 705.7 | D88: 705.03 | E88: 698.07 | F88: 690.43 | G88: 683.47 | H88: 712.67 | I88: 719.63 | J88: 727.27 | K88: 712 | L88: 697.4 | M88: 14.29976
A89: 80 | B89: GODREJIND | C89: 509.6 | D89: 511.45 | E89: 502.25 | F89: 494.90 | G89: 485.70 | H89: 518.80 | I89: 528.00 | J89: 535.35 | K89: 520.65 | L89: 504.1 | M89: 13.32256
A90: 81 | B90: GRUH | C90: 264.3 | D90: 260.88 | E90: 255.22 | F90: 246.13 | G90: 240.47 | H90: 269.97 | I90: 275.63 | J90: 284.72 | K90: 266.55 | L90: 251.8 | M90: 16.8865
A91: 82 | B91: GPPL | C91: 89.05 | D91: 88.93 | E91: 88.17 | F91: 87.28 | G91: 86.52 | H91: 89.82 | I91: 90.58 | J91: 91.47 | K91: 89.7 | L91: 88.05 | M91: 4.52574
A92: 83 | B92: GSPL | C92: 170.85 | D92: 168.65 | E92: 164.30 | F92: 157.75 | G92: 153.40 | H92: 175.20 | I92: 179.55 | J92: 186.10 | K92: 173 | L92: 162.1 | M92: 24.30001
A93: 84 | B93: HCLTECH | C93: 1043.25 | D93: 1047.95 | E93: 1033.90 | F93: 1024.55 | G93: 1010.50 | H93: 1057.30 | I93: 1071.35 | J93: 1080.70 | K93: 1062 | L93: 1038.6 | M93: 14.03626
A94: 85 | B94: HDFCBANK | C94: 2104.25 | D94: 2101.70 | E94: 2093.10 | F94: 2081.95 | G94: 2073.35 | H94: 2112.85 | I94: 2121.45 | J94: 2132.60 | K94: 2110.3 | L94: 2090.55 | M94: 21.14511
A95: 86 | B95: HAVELLS | C95: 713.7 | D95: 718.78 | E95: 706.62 | F95: 699.53 | G95: 687.37 | H95: 725.87 | I95: 738.03 | J95: 745.12 | K95: 730.95 | L95: 711.7 | M95: 12.22862
A96: 87 | B96: HEROMOTOCO | C96: 2765.85 | D96: 2774.28 | E96: 2733.57 | F96: 2701.28 | G96: 2660.57 | H96: 2806.57 | I96: 2847.28 | J96: 2879.57 | K96: 2815 | L96: 2742 | M96: 6.31138
A97: 88 | B97: HEXAWARE | C97: 356.15 | D97: 358.25 | E97: 352.45 | F97: 348.75 | G97: 342.95 | H97: 361.95 | I97: 367.75 | J97: 371.45 | K97: 364.05 | L97: 354.55 | M97: 7.45335
A98: 89 | B98: HINDALCO | C98: 202.75 | D98: 202.12 | E98: 200.28 | F98: 197.82 | G98: 195.98 | H98: 204.58 | I98: 206.42 | J98: 208.88 | K98: 203.95 | L98: 199.65 | M98: 136.83897
A99: 90 | B99: HINDPETRO | C99: 246.45 | D99: 248.38 | E99: 241.42 | F99: 236.38 | G99: 229.42 | H99: 253.42 | I99: 260.38 | J99: 265.42 | K99: 255.35 | L99: 243.35 | M99: 76.82669
A100: 91 | B100: HINDUNILVR | C100: 1699.8 | D100: 1709.25 | E100: 1688.50 | F100: 1677.20 | G100: 1656.45 | H100: 1720.55 | I100: 1741.30 | J100: 1752.60 | K100: 1730 | L100: 1697.95 | M100: 21.93045
A101: 92 | B101: HINDZINC | C101: 268.1 | D101: 269.67 | E101: 265.33 | F101: 262.57 | G101: 258.23 | H101: 272.43 | I101: 276.77 | J101: 279.53 | K101: 274 | L101: 266.9 | M101: 8.90999
A102: 93 | B102: HUDCO | C102: 46.3 | D102: 46.03 | E102: 44.27 | F102: 42.23 | G102: 40.47 | H102: 48.07 | I102: 49.83 | J102: 51.87 | K102: 47.8 | L102: 44 | M102: 44.21624
A103: 94 | B103: HDFC | C103: 1885.2 | D103: 1877.83 | E103: 1866.17 | F103: 1847.13 | G103: 1835.47 | H103: 1896.87 | I103: 1908.53 | J103: 1927.57 | K103: 1889.5 | L103: 1858.8 | M103: 18.28916
A104: 95 | B104: ITC | C104: 285.75 | D104: 286.57 | E104: 283.93 | F104: 282.12 | G104: 279.48 | H104: 288.38 | I104: 291.02 | J104: 292.83 | K104: 289.2 | L104: 284.75 | M104: 200.45621
A105: 96 | B105: ICICIBANK | C105: 371.95 | D105: 370.02 | E105: 367.18 | F105: 362.42 | G105: 359.58 | H105: 374.78 | I105: 377.62 | J105: 382.38 | K105: 372.85 | L105: 365.25 | M105: 314.3619
A106: 97 | B106: ICICIPRULI | C106: 341.4 | D106: 338.78 | E106: 332.87 | F106: 324.33 | G106: 318.42 | H106: 347.32 | I106: 353.23 | J106: 361.77 | K106: 344.7 | L106: 330.25 | M106: 47.28396
A107: 98 | B107: IDBI | C107: 45.7 | D107: 45.98 | E107: 44.82 | F107: 43.93 | G107: 42.77 | H107: 46.87 | I107: 48.03 | J107: 48.92 | K107: 47.15 | L107: 45.1 | M107: 110.13193
A108: 99 | B108: IDFCFIRSTB | C108: 51.25 | D108: 51.30 | E108: 50.30 | F108: 49.35 | G108: 48.35 | H108: 52.25 | I108: 53.25 | J108: 54.20 | K108: 52.3 | L108: 50.35 | M108: 303.1101
A109: 100 | B109: IDFC | C109: 40.85 | D109: 41.20 | E109: 40.10 | F109: 39.35 | G109: 38.25 | H109: 41.95 | I109: 43.05 | J109: 43.80 | K109: 42.3 | L109: 40.45 | M109: 56.92725
A110: 101 | B110: IRB | C110: 150.35 | D110: 150.23 | E110: 147.02 | F110: 143.68 | G110: 140.47 | H110: 153.57 | I110: 156.78 | J110: 160.12 | K110: 153.45 | L110: 146.9 | M110: 29.20827
A111: 102 | B111: IDEA | C111: 31.25 | D111: 31.02 | E111: 30.13 | F111: 29.02 | G111: 28.13 | H111: 32.13 | I111: 33.02 | J111: 34.13 | K111: 31.9 | L111: 29.9 | M111: 574.5104
A112: 103 | B112: IBULHSGFIN | C112: 730.5 | D112: 740.87 | E112: 715.23 | F112: 699.97 | G112: 674.33 | H112: 756.13 | I112: 781.77 | J112: 797.03 | K112: 766.5 | L112: 725.6 | M112: 112.22755
A113: 104 | B113: INDIANB | C113: 255.1 | D113: 250.15 | E113: 242.05 | F113: 229.00 | G113: 220.90 | H113: 263.20 | I113: 271.30 | J113: 284.35 | K113: 258.25 | L113: 237.1 | M113: 63.91707
A114: 105 | B114: INDHOTEL | C114: 139.75 | D114: 139.77 | E114: 138.03 | F114: 136.32 | G114: 134.58 | H114: 141.48 | I114: 143.22 | J114: 144.93 | K114: 141.5 | L114: 138.05 | M114: 24.33855
A115: 106 | B115: IOC | C115: 154.9 | D115: 155.22 | E115: 153.18 | F115: 151.47 | G115: 149.43 | H115: 156.93 | I115: 158.97 | J115: 160.68 | K115: 157.25 | L115: 153.5 | M115: 112.17264
A116: 107 | B116: IGL | C116: 290.4 | D116: 293.97 | E116: 284.93 | F116: 279.47 | G116: 270.43 | H116: 299.43 | I116: 308.47 | J116: 313.93 | K116: 303 | L116: 288.5 | M116: 31.13445
A117: 108 | B117: INDUSINDBK | C117: 1534.85 | D117: 1532.70 | E117: 1524.40 | F117: 1513.95 | G117: 1505.65 | H117: 1543.15 | I117: 1551.45 | J117: 1561.90 | K117: 1541 | L117: 1522.25 | M117: 16.94922
A118: 109 | B118: NAUKRI | C118: 1733.5 | D118: 1745.68 | E118: 1707.82 | F118: 1682.13 | G118: 1644.27 | H118: 1771.37 | I118: 1809.23 | J118: 1834.92 | K118: 1783.55 | L118: 1720 | M118: 6.56487
A119: 110 | B119: INFY | C119: 732.5 | D119: 731.87 | E119: 727.63 | F119: 722.77 | G119: 718.53 | H119: 736.73 | I119: 740.97 | J119: 745.83 | K119: 736.1 | L119: 727 | M119: 60.76668
A120: 111 | B120: INDIGO | C120: 1228.7 | D120: 1216.02 | E120: 1192.43 | F120: 1156.17 | G120: 1132.58 | H120: 1252.28 | I120: 1275.87 | J120: 1312.13 | K120: 1239.6 | L120: 1179.75 | M120: 11.78834
A121: 112 | B121: IPCALAB | C121: 872.8 | D121: 875.28 | E121: 862.87 | F121: 852.93 | G121: 840.52 | H121: 885.22 | I121: 897.63 | J121: 907.57 | K121: 887.7 | L121: 865.35 | M121: 2.58075
A122: 113 | B122: JSWENERGY | C122: 68.5 | D122: 68.63 | E122: 67.12 | F122: 65.73 | G122: 64.22 | H122: 70.02 | I122: 71.53 | J122: 72.92 | K122: 70.15 | L122: 67.25 | M122: 12.54889
A123: 114 | B123: JSWSTEEL | C123: 289.95 | D123: 290.23 | E123: 286.47 | F123: 282.98 | G123: 279.22 | H123: 293.72 | I123: 297.48 | J123: 300.97 | K123: 294 | L123: 286.75 | M123: 67.18322
A124: 115 | B124: JINDALSTEL | C124: 165.9 | D124: 167.30 | E124: 163.10 | F124: 160.30 | G124: 156.10 | H124: 170.10 | I124: 174.30 | J124: 177.10 | K124: 171.5 | L124: 164.5 | M124: 84.15007
A125: 116 | B125: JUBLFOOD | C125: 1327.25 | D125: 1312.08 | E125: 1290.17 | F125: 1253.08 | G125: 1231.17 | H125: 1349.17 | I125: 1371.08 | J125: 1408.17 | K125: 1334 | L125: 1275 | M125: 32.92385
A126: 117 | B126: JUBILANT | C126: 765.55 | D126: 758.73 | E126: 727.82 | F126: 690.08 | G126: 659.17 | H126: 796.47 | I126: 827.38 | J126: 865.12 | K126: 789.65 | L126: 721 | M126: 4.97858
A127: 118 | B127: KARURVYSYA | C127: 71.05 | D127: 71.98 | E127: 69.72 | F127: 68.38 | G127: 66.12 | H127: 73.32 | I127: 75.58 | J127: 76.92 | K127: 74.25 | L127: 70.65 | M127: 27.24657
A128: 119 | B128: KOTAKBANK | C128: 1241.3 | D128: 1241.63 | E128: 1236.27 | F128: 1231.23 | G128: 1225.87 | H128: 1246.67 | I128: 1252.03 | J128: 1257.07 | K128: 1247 | L128: 1236.6 | M128: 23.06834
A129: 120 | B129: L&TFH | C129: 141.05 | D129: 140.30 | E129: 137.65 | F129: 134.25 | G129: 131.60 | H129: 143.70 | I129: 146.35 | J129: 149.75 | K129: 142.95 | L129: 136.9 | M129: 131.62078
A130: 121 | B130: LICHSGFIN | C130: 489.95 | D130: 489.43 | E130: 484.32 | F130: 478.68 | G130: 473.57 | H130: 495.07 | I130: 500.18 | J130: 505.82 | K130: 494.55 | L130: 483.8 | M130: 17.52882
A131: 122 | B131: LT | C131: 1317 | D131: 1318.35 | E131: 1309.15 | F131: 1301.30 | G131: 1292.10 | H131: 1326.20 | I131: 1335.40 | J131: 1343.25 | K131: 1327.55 | L131: 1310.5 | M131: 27.76738
A132: 123 | B132: LUPIN | C132: 789.05 | D132: 788.23 | E132: 781.87 | F132: 774.68 | G132: 768.32 | H132: 795.42 | I132: 801.78 | J132: 808.97 | K132: 794.6 | L132: 781.05 | M132: 13.95812
A133: 124 | B133: MRF | C133: 58566.4 | D133: 58303.80 | E133: 57817.60 | F133: 57068.80 | G133: 56582.60 | H133: 59052.60 | I133: 59538.80 | J133: 60287.60 | K133: 58790 | L133: 57555 | M133: 0.07261
A134: 125 | B134: MGL | C134: 889.2 | D134: 894.67 | E134: 879.53 | F134: 869.87 | G134: 854.73 | H134: 904.33 | I134: 919.47 | J134: 929.13 | K134: 909.8 | L134: 885 | M134: 2.66385
A135: 126 | B135: M&MFIN | C135: 440.45 | D135: 438.25 | E135: 434.50 | F135: 428.55 | G135: 424.80 | H135: 444.20 | I135: 447.95 | J135: 453.90 | K135: 442 | L135: 432.3 | M135: 15.18233
A136: 127 | B136: M&M | C136: 658.9 | D136: 659.25 | E136: 653.65 | F136: 648.40 | G136: 642.80 | H136: 664.50 | I136: 670.10 | J136: 675.35 | K136: 664.85 | L136: 654 | M136: 74.95708
A137: 128 | B137: MANAPPURAM | C137: 119.9 | D137: 120.30 | E137: 118.90 | F137: 117.90 | G137: 116.50 | H137: 121.30 | I137: 122.70 | J137: 123.70 | K137: 121.7 | L137: 119.3 | M137: 31.36122
A138: 129 | B138: MRPL | C138: 71.05 | D138: 71.08 | E138: 70.02 | F138: 68.98 | G138: 67.92 | H138: 72.12 | I138: 73.18 | J138: 74.22 | K138: 72.15 | L138: 70.05 | M138: 11.07848
A139: 130 | B139: MARICO | C139: 336.85 | D139: 336.90 | E139: 332.95 | F139: 329.05 | G139: 325.10 | H139: 340.80 | I139: 344.75 | J139: 348.65 | K139: 340.85 | L139: 333 | M139: 15.0581
A140: 131 | B140: MARUTI | C140: 7056.9 | D140: 7070.60 | E140: 6996.30 | F140: 6935.70 | G140: 6861.40 | H140: 7131.20 | I140: 7205.50 | J140: 7266.10 | K140: 7144.9 | L140: 7010 | M140: 5.57197
A141: 132 | B141: MFSL | C141: 408.25 | D141: 410.97 | E141: 401.08 | F141: 393.92 | G141: 384.03 | H141: 418.13 | I141: 428.02 | J141: 435.18 | K141: 420.85 | L141: 403.8 | M141: 9.88792
A142: 133 | B142: MINDTREE | C142: 917.1 | D142: 918.85 | E142: 910.95 | F142: 904.80 | G142: 896.90 | H142: 925.00 | I142: 932.90 | J142: 939.05 | K142: 926.75 | L142: 912.7 | M142: 5.48075
A143: 134 | B143: MOTHERSUMI | C143: 168.3 | D143: 167.30 | E143: 165.40 | F143: 162.50 | G143: 160.60 | H143: 170.20 | I143: 172.10 | J143: 175.00 | K143: 169.2 | L143: 164.4 | M143: 69.20579
A144: 135 | B144: MPHASIS | C144: 990.95 | D144: 995.63 | E144: 974.32 | F144: 957.68 | G144: 936.37 | H144: 1012.27 | I144: 1033.58 | J144: 1050.22 | K144: 1016.95 | L144: 979 | M144: 2.47656
A145: 136 | B145: MUTHOOTFIN | C145: 567.65 | D145: 567.58 | E145: 558.32 | F145: 548.98 | G145: 539.72 | H145: 576.92 | I145: 586.18 | J145: 595.52 | K145: 576.85 | L145: 558.25 | M145: 9.68467
A146: 137 | B146: NATCOPHARM | C146: 561 | D146: 564.52 | E146: 554.03 | F146: 547.07 | G146: 536.58 | H146: 571.48 | I146: 581.97 | J146: 588.93 | K146: 575 | L146: 557.55 | M146: 3.40728
A147: 138 | B147: NBCC | C147: 59.7 | D147: 59.80 | E147: 57.70 | F147: 55.70 | G147: 53.60 | H147: 61.80 | I147: 63.90 | J147: 65.90 | K147: 61.9 | L147: 57.8 | M147: 154.09526
A148: 139 | B148: NHPC | C148: 23.9 | D148: 23.87 | E148: 23.63 | F148: 23.37 | G148: 23.13 | H148: 24.13 | I148: 24.37 | J148: 24.63 | K148: 24.1 | L148: 23.6 | M148: 39.24459
A149: 140 | B149: NMDC | C149: 107 | D149: 106.87 | E149: 105.53 | F149: 104.07 | G149: 102.73 | H149: 108.33 | I149: 109.67 | J149: 111.13 | K149: 108.2 | L149: 105.4 | M149: 70.86937
A150: 141 | B150: NTPC | C150: 148.95 | D150: 148.52 | E150: 147.53 | F150: 146.12 | G150: 145.13 | H150: 149.93 | I150: 150.92 | J150: 152.33 | K150: 149.5 | L150: 147.1 | M150: 85.94413
A151: 142 | B151: NATIONALUM | C151: 57.7 | D151: 57.70 | E151: 57.00 | F151: 56.30 | G151: 55.60 | H151: 58.40 | I151: 59.10 | J151: 59.80 | K151: 58.4 | L151: 57 | M151: 208.3899
A152: 143 | B152: OBEROIRLTY | C152: 481.15 | D152: 484.97 | E152: 476.18 | F152: 471.22 | G152: 462.43 | H152: 489.93 | I152: 498.72 | J152: 503.68 | K152: 493.75 | L152: 480 | M152: 3.63816
A153: 144 | B153: ONGC | C153: 154.8 | D153: 154.87 | E153: 152.73 | F153: 150.67 | G153: 148.53 | H153: 156.93 | I153: 159.07 | J153: 161.13 | K153: 157 | L153: 152.8 | M153: 156.48948
A154: 145 | B154: OIL | C154: 182.75 | D154: 182.55 | E154: 181.50 | F154: 180.25 | G154: 179.20 | H154: 183.80 | I154: 184.85 | J154: 186.10 | K154: 183.6 | L154: 181.3 | M154: 11.16902
A155: 146 | B155: OFSS | C155: 3510.5 | D155: 3537.17 | E155: 3464.33 | F155: 3418.17 | G155: 3345.33 | H155: 3583.33 | I155: 3656.17 | J155: 3702.33 | K155: 3610 | L155: 3491 | M155: 0.26176
A156: 147 | B156: PCJEWELLER | C156: 78.35 | D156: 79.60 | E156: 76.35 | F156: 74.35 | G156: 71.10 | H156: 81.60 | I156: 84.85 | J156: 86.85 | K156: 82.85 | L156: 77.6 | M156: 205.20701
A157: 148 | B157: PIIND | C157: 963.8 | D157: 964.63 | E157: 954.27 | F157: 944.73 | G157: 934.37 | H157: 974.17 | I157: 984.53 | J157: 994.07 | K157: 975 | L157: 955.1 | M157: 1.39377
A158: 149 | B158: PNBHOUSING | C158: 901.65 | D158: 909.20 | E158: 889.65 | F158: 877.65 | G158: 858.10 | H158: 921.20 | I158: 940.75 | J158: 952.75 | K158: 928.75 | L158: 897.2 | M158: 1.99314
A159: 150 | B159: PAGEIND | C159: 23254.1 | D159: 23149.78 | E159: 22850.57 | F159: 22447.03 | G159: 22147.82 | H159: 23553.32 | I159: 23852.53 | J159: 24256.07 | K159: 23449 | L159: 22746.25 | M159: 0.72001
A160: 151 | B160: PETRONET | C160: 227.35 | D160: 227.75 | E160: 223.70 | F160: 220.05 | G160: 216.00 | H160: 231.40 | I160: 235.45 | J160: 239.10 | K160: 231.8 | L160: 224.1 | M160: 19.34306
A161: 152 | B161: PIDILITIND | C161: 1142.05 | D161: 1149.52 | E161: 1129.33 | F161: 1116.62 | G161: 1096.43 | H161: 1162.23 | I161: 1182.42 | J161: 1195.13 | K161: 1169.7 | L161: 1136.8 | M161: 9.44322
A162: 153 | B162: PEL | C162: 2577.05 | D162: 2548.68 | E162: 2498.37 | F162: 2419.68 | G162: 2369.37 | H162: 2627.37 | I162: 2677.68 | J162: 2756.37 | K162: 2599 | L162: 2470 | M162: 10.26683
A163: 154 | B163: PFC | C163: 114.65 | D163: 115.63 | E163: 112.67 | F163: 110.68 | G163: 107.72 | H163: 117.62 | I163: 120.58 | J163: 122.57 | K163: 118.6 | L163: 113.65 | M163: 63.59536
A164: 155 | B164: POWERGRID | C164: 184.5 | D164: 184.20 | E164: 182.00 | F164: 179.50 | G164: 177.30 | H164: 186.70 | I164: 188.90 | J164: 191.40 | K164: 186.4 | L164: 181.7 | M164: 114.39434
A165: 156 | B165: PRESTIGE | C165: 205.25 | D165: 205.35 | E165: 203.00 | F165: 200.75 | G165: 198.40 | H165: 207.60 | I165: 209.95 | J165: 212.20 | K165: 207.7 | L165: 203.1 | M165: 8.15269
A166: 157 | B166: PGHH | C166: 10668.5 | D166: 10839.70 | E166: 10434.40 | F166: 10200.30 | G166: 9795.00 | H166: 11073.80 | I166: 11479.10 | J166: 11713.20 | K166: 11245 | L166: 10605.6 | M166: 0.03293
A167: 158 | B167: PNB | C167: 82.4 | D167: 82.53 | E167: 81.27 | F167: 80.13 | G167: 78.87 | H167: 83.67 | I167: 84.93 | J167: 86.07 | K167: 83.8 | L167: 81.4 | M167: 273.81377
A168: 159 | B168: RBLBANK | C168: 627.5 | D168: 622.80 | E168: 616.70 | F168: 605.90 | G168: 599.80 | H168: 633.60 | I168: 639.70 | J168: 650.50 | K168: 628.9 | L168: 612 | M168: 38.06078
A169: 160 | B169: RAJESHEXPO | C169: 569.9 | D169: 571.82 | E169: 566.28 | F169: 562.67 | G169: 557.13 | H169: 575.43 | I169: 580.97 | J169: 584.58 | K169: 577.35 | L169: 568.2 | M169: 1.6574
A170: 161 | B170: RELCAPITAL | C170: 190.15 | D170: 191.07 | E170: 186.33 | F170: 182.52 | G170: 177.78 | H170: 194.88 | I170: 199.62 | J170: 203.43 | K170: 195.8 | L170: 187.25 | M170: 114.45239
A171: 162 | B171: RCOM | C171: 6.05 | D171: 6.23 | E171: 5.72 | F171: 5.38 | G171: 4.87 | H171: 6.57 | I171: 7.08 | J171: 7.42 | K171: 6.75 | L171: 5.9 | M171: 519.75776
A172: 163 | B172: RELIANCE | C172: 1264.8 | D172: 1257.67 | E172: 1242.23 | F172: 1219.67 | G172: 1204.23 | H172: 1280.23 | I172: 1295.67 | J172: 1318.23 | K172: 1273.1 | L172: 1235.1 | M172: 120.38231
A173: 164 | B173: RELINFRA | C173: 134.7 | D173: 135.95 | E173: 129.50 | F173: 124.30 | G173: 117.85 | H173: 141.15 | I173: 147.60 | J173: 152.80 | K173: 142.4 | L173: 130.75 | M173: 257.9759
A174: 165 | B174: RPOWER | C174: 12.45 | D174: 12.58 | E174: 11.97 | F174: 11.48 | G174: 10.87 | H174: 13.07 | I174: 13.68 | J174: 14.17 | K174: 13.2 | L174: 12.1 | M174: 936.1146
A175: 166 | B175: RECLTD | C175: 143.65 | D175: 144.25 | E175: 141.60 | F175: 139.55 | G175: 136.90 | H175: 146.30 | I175: 148.95 | J175: 151.00 | K175: 146.9 | L175: 142.2 | M175: 100.40397
A176: 167 | B176: SRF | C176: 2360.8 | D176: 2348.80 | E176: 2322.30 | F176: 2283.80 | G176: 2257.30 | H176: 2387.30 | I176: 2413.80 | J176: 2452.30 | K176: 2375.3 | L176: 2310.3 | M176: 3.94188
A177: 168 | B177: SHREECEM | C177: 17474.2 | D177: 17426.23 | E177: 17208.02 | F177: 16941.83 | G177: 16723.62 | H177: 17692.42 | I177: 17910.63 | J177: 18176.82 | K177: 17644.45 | L177: 17160.05 | M177: 0.30011
A178: 169 | B178: SRTRANSFIN | C178: 1240.45 | D178: 1244.47 | E178: 1222.18 | F178: 1203.92 | G178: 1181.63 | H178: 1262.73 | I178: 1285.02 | J178: 1303.28 | K178: 1266.75 | L178: 1226.2 | M178: 11.28999
A179: 170 | B179: SIEMENS | C179: 1019.2 | D179: 1027.23 | E179: 1005.62 | F179: 992.03 | G179: 970.42 | H179: 1040.82 | I179: 1062.43 | J179: 1076.02 | K179: 1048.85 | L179: 1013.65 | M179: 4.4983
A180: 171 | B180: SBIN | C180: 278.1 | D180: 279.03 | E180: 275.52 | F180: 272.93 | G180: 269.42 | H180: 281.62 | I180: 285.13 | J180: 287.72 | K180: 282.55 | L180: 276.45 | M180: 221.61376
A181: 172 | B181: SAIL | C181: 55.45 | D181: 55.65 | E181: 54.70 | F181: 53.95 | G181: 53.00 | H181: 56.40 | I181: 57.35 | J181: 58.10 | K181: 56.6 | L181: 54.9 | M181: 268.36423
A182: 173 | B182: SPARC | C182: 195.75 | D182: 192.33 | E182: 184.77 | F182: 173.78 | G182: 166.22 | H182: 203.32 | I182: 210.88 | J182: 221.87 | K182: 199.9 | L182: 181.35 | M182: 42.81105
A183: 174 | B183: SUNPHARMA | C183: 460.55 | D183: 458.95 | E183: 448.55 | F183: 436.55 | G183: 426.15 | H183: 470.95 | I183: 481.35 | J183: 493.35 | K183: 469.35 | L183: 446.95 | M183: 130.04184
A184: 175 | B184: SUNTV | C184: 621.75 | D184: 623.63 | E184: 613.52 | F184: 605.28 | G184: 595.17 | H184: 631.87 | I184: 641.98 | J184: 650.22 | K184: 633.75 | L184: 615.4 | M184: 29.74338
A185: 176 | B185: SUZLON | C185: 7.9 | D185: 7.95 | E185: 7.50 | F185: 7.10 | G185: 6.65 | H185: 8.35 | I185: 8.80 | J185: 9.20 | K185: 8.4 | L185: 7.55 | M185: 2527.86629
A186: 177 | B186: SYNDIBANK | C186: 36.75 | D186: 36.87 | E186: 36.13 | F186: 35.52 | G186: 34.78 | H186: 37.48 | I186: 38.22 | J186: 38.83 | K186: 37.6 | L186: 36.25 | M186: 48.07721
A187: 178 | B187: SYNGENE | C187: 590.45 | D187: 591.52 | E187: 587.03 | F187: 583.62 | G187: 579.13 | H187: 594.93 | I187: 599.42 | J187: 602.83 | K187: 596 | L187: 588.1 | M187: 0.11796
A188: 179 | B188: TV18BRDCST | C188: 36.75 | D188: 37.05 | E188: 36.20 | F188: 35.65 | G188: 34.80 | H188: 37.60 | I188: 38.45 | J188: 39.00 | K188: 37.9 | L188: 36.5 | M188: 35.82057
A189: 180 | B189: TVSMOTOR | C189: 490.7 | D189: 492.77 | E189: 486.03 | F189: 481.37 | G189: 474.63 | H189: 497.43 | I189: 504.17 | J189: 508.83 | K189: 499.5 | L189: 488.1 | M189: 10.10273
A190: 181 | B190: TATACHEM | C190: 577 | D190: 580.17 | E190: 572.33 | F190: 567.67 | G190: 559.83 | H190: 584.83 | I190: 592.67 | J190: 597.33 | K190: 588 | L190: 575.5 | M190: 13.36357
A191: 182 | B191: TATACOMM | C191: 613.95 | D191: 613.35 | E191: 602.80 | F191: 591.65 | G191: 581.10 | H191: 624.50 | I191: 635.05 | J191: 646.20 | K191: 623.9 | L191: 602.2 | M191: 8.28566
A192: 183 | B192: TCS | C192: 1999.6 | D192: 1999.88 | E192: 1984.77 | F192: 1969.93 | G192: 1954.82 | H192: 2014.72 | I192: 2029.83 | J192: 2044.67 | K192: 2015 | L192: 1985.05 | M192: 26.35047
A193: 184 | B193: TATAGLOBAL | C193: 197.95 | D193: 199.10 | E193: 194.95 | F193: 191.95 | G193: 187.80 | H193: 202.10 | I193: 206.25 | J193: 209.25 | K193: 203.25 | L193: 196.1 | M193: 17.16592
A194: 185 | B194: TATAMTRDVR | C194: 94.45 | D194: 95.00 | E194: 93.35 | F194: 92.25 | G194: 90.60 | H194: 96.10 | I194: 97.75 | J194: 98.85 | K194: 96.65 | L194: 93.9 | M194: 34.03451
A195: 186 | B195: TATAMOTORS | C195: 188.8 | D195: 190.65 | E195: 185.90 | F195: 183.00 | G195: 178.25 | H195: 193.55 | I195: 198.30 | J195: 201.20 | K195: 195.4 | L195: 187.75 | M195: 224.68702
A196: 187 | B196: TATAPOWER | C196: 71.3 | D196: 70.88 | E196: 69.62 | F196: 67.93 | G196: 66.67 | H196: 72.57 | I196: 73.83 | J196: 75.52 | K196: 72.15 | L196: 69.2 | M196: 110.46556
A197: 188 | B197: TATASTEEL | C197: 520.85 | D197: 520.55 | E197: 515.75 | F197: 510.65 | G197: 505.85 | H197: 525.65 | I197: 530.45 | J197: 535.55 | K197: 525.35 | L197: 515.45 | M197: 63.11227
A198: 189 | B198: TECHM | C198: 823.55 | D198: 821.75 | E198: 813.80 | F198: 804.05 | G198: 796.10 | H198: 831.50 | I198: 839.45 | J198: 849.20 | K198: 829.7 | L198: 812 | M198: 39.99053
A199: 190 | B199: RAMCOCEM | C199: 723.85 | D199: 722.03 | E199: 716.07 | F199: 708.28 | G199: 702.32 | H199: 729.82 | I199: 735.78 | J199: 743.57 | K199: 728 | L199: 714.25 | M199: 5.99455
A200: 191 | B200: TITAN | C200: 1055.95 | D200: 1048.38 | E200: 1035.87 | F200: 1015.78 | G200: 1003.27 | H200: 1068.47 | I200: 1080.98 | J200: 1101.07 | K200: 1060.9 | L200: 1028.3 | M200: 27.58056
A201: 192 | B201: TORNTPHARM | C201: 1800.5 | D201: 1794.67 | E201: 1770.83 | F201: 1741.17 | G201: 1717.33 | H201: 1824.33 | I201: 1848.17 | J201: 1877.83 | K201: 1818.5 | L201: 1765 | M201: 4.51134
A202: 193 | B202: TORNTPOWER | C202: 248.15 | D202: 249.58 | E202: 245.67 | F202: 243.18 | G202: 239.27 | H202: 252.07 | I202: 255.98 | J202: 258.47 | K202: 253.5 | L202: 247.1 | M202: 8.89091
A203: 194 | B203: UPL | C203: 877.35 | D203: 876.22 | E203: 867.83 | F203: 858.32 | G203: 849.93 | H203: 885.73 | I203: 894.12 | J203: 903.63 | K203: 884.6 | L203: 866.7 | M203: 20.96752
A204: 195 | B204: ULTRACEMCO | C204: 3978.65 | D204: 3978.15 | E204: 3936.30 | F204: 3893.95 | G204: 3852.10 | H204: 4020.50 | I204: 4062.35 | J204: 4104.70 | K204: 4020 | L204: 3935.8 | M204: 3.49217
A205: 196 | B205: UNIONBANK | C205: 79.25 | D205: 79.82 | E205: 77.83 | F205: 76.42 | G205: 74.43 | H205: 81.23 | I205: 83.22 | J205: 84.63 | K205: 81.8 | L205: 78.4 | M205: 125.56714
... 29 more rows

Sheet MidCap Intra
L5: Back To Main Page
A6: FOR INTRA DAY TRADING | K6: =Main!B10 -> 2019-03-07
A9: Sr.no | B9: Scrip | C9: CLOSE RATE | D9: Pivot Point | E9: Supports | H9: Resistances
C10: Point | E10: S1 | F10: S2 | G10: S3 | H10: R1 | I10: R2 | J10: R3 | K10: HIGH | L10: LOW | M10: Total Trade Quanity in Lakhs
A11: 1 | B11: 3MINDIA | C11: 23252.1 | D11: 23401.05 | E11: 22802.05 | F11: 22352.00 | G11: 21753.00 | H11: 23851.10 | I11: 24450.10 | J11: 24900.15 | K11: 24000.05 | L11: 22951 | M11: 0.06683
A12: 2 | B12: 8KMILES | C12: 110 | D12: 111.67 | E12: 107.33 | F12: 104.67 | G12: 100.33 | H12: 114.33 | I12: 118.67 | J12: 121.33 | K12: 116 | L12: 109 | M12: 4.52309
A13: 3 | B13: AARTIIND | C13: 1517.35 | D13: 1505.13 | E13: 1490.27 | F13: 1463.18 | G13: 1448.32 | H13: 1532.22 | I13: 1547.08 | J13: 1574.17 | K13: 1520 | L13: 1478.05 | M13: 1.605
A14: 4 | B14: ABAN | C14: 72.1 | D14: 68.17 | E14: 64.23 | F14: 56.37 | G14: 52.43 | H14: 76.03 | I14: 79.97 | J14: 87.83 | K14: 72.1 | L14: 60.3 | M14: 33.86567
A15: 5 | B15: ABB | C15: 1244.55 | D15: 1240.18 | E15: 1229.37 | F15: 1214.18 | G15: 1203.37 | H15: 1255.37 | I15: 1266.18 | J15: 1281.37 | K15: 1251 | L15: 1225 | M15: 1.69943
A16: 6 | B16: ABCAPITAL | C16: 99.8 | D16: 100.20 | E16: 98.90 | F16: 98.00 | G16: 96.70 | H16: 101.10 | I16: 102.40 | J16: 103.30 | K16: 101.5 | L16: 99.3 | M16: 31.18084
A17: 7 | B17: ABFRL | C17: 219.85 | D17: 221.57 | E17: 217.03 | F17: 214.22 | G17: 209.68 | H17: 224.38 | I17: 228.92 | J17: 231.73 | K17: 226.1 | L17: 218.75 | M17: 6.12206
A18: 8 | B18: ACC | C18: 1554.4 | D18: 1549.77 | E18: 1537.63 | F18: 1520.87 | G18: 1508.73 | H18: 1566.53 | I18: 1578.67 | J18: 1595.43 | K18: 1561.9 | L18: 1533 | M18: 20.3588
A19: 9 | B19: ADANIPORTS | C19: 337.05 | D19: 340.10 | E19: 331.00 | F19: 324.95 | G19: 315.85 | H19: 346.15 | I19: 355.25 | J19: 361.30 | K19: 349.2 | L19: 334.05 | M19: 79.49482
A20: 10 | B20: ADANIPOWER | C20: 50.7 | D20: 50.73 | E20: 49.77 | F20: 48.83 | G20: 47.87 | H20: 51.67 | I20: 52.63 | J20: 53.57 | K20: 51.7 | L20: 49.8 | M20: 178.76199
A21: 11 | B21: ADANITRANS | C21: 208.25 | D21: 211.27 | E21: 204.08 | F21: 199.92 | G21: 192.73 | H21: 215.43 | I21: 222.62 | J21: 226.78 | K21: 218.45 | L21: 207.1 | M21: 3.81332
A22: 12 | B22: ADVENZYMES | C22: 156.05 | D22: 156.18 | E22: 151.37 | F22: 146.68 | G22: 141.87 | H22: 160.87 | I22: 165.68 | J22: 170.37 | K22: 161 | L22: 151.5 | M22: 20.41451
A23: 13 | B23: AEGISCHEM | C23: 205.05 | D23: 204.80 | E23: 201.00 | F23: 196.95 | G23: 193.15 | H23: 208.85 | I23: 212.65 | J23: 216.70 | K23: 208.6 | L23: 200.75 | M23: 1.41766
A24: 14 | B24: AIAENG | C24: 1798.5 | D24: 1804.23 | E24: 1774.27 | F24: 1750.03 | G24: 1720.07 | H24: 1828.47 | I24: 1858.43 | J24: 1882.67 | K24: 1834.2 | L24: 1780 | M24: 0.66056
A25: 15 | B25: AJANTPHARM | C25: 991.95 | D25: 993.18 | E25: 982.92 | F25: 973.88 | G25: 963.62 | H25: 1002.22 | I25: 1012.48 | J25: 1021.52 | K25: 1003.45 | L25: 984.15 | M25: 3.68274
A26: 16 | B26: AKZOINDIA | C26: 1756.75 | D26: 1772.92 | E26: 1733.83 | F26: 1710.92 | G26: 1671.83 | H26: 1795.83 | I26: 1834.92 | J26: 1857.83 | K26: 1812 | L26: 1750 | M26: 0.06982
A27: 17 | B27: ALBK | C27: 51.45 | D27: 51.82 | E27: 50.43 | F27: 49.42 | G27: 48.03 | H27: 52.83 | I27: 54.22 | J27: 55.23 | K27: 53.2 | L27: 50.8 | M27: 80.59766
A28: 18 | B28: ALKEM | C28: 1746.8 | D28: 1754.93 | E28: 1731.87 | F28: 1716.93 | G28: 1693.87 | H28: 1769.87 | I28: 1792.93 | J28: 1807.87 | K28: 1778 | L28: 1740 | M28: 0.52958
A29: 19 | B29: ALLCARGO | C29: 108.35 | D29: 107.87 | E29: 106.73 | F29: 105.12 | G29: 103.98 | H29: 109.48 | I29: 110.62 | J29: 112.23 | K29: 109 | L29: 106.25 | M29: 1.8121
A30: 20 | B30: AMARAJABAT | C30: 747.05 | D30: 745.23 | E30: 738.47 | F30: 729.88 | G30: 723.12 | H30: 753.82 | I30: 760.58 | J30: 769.17 | K30: 752 | L30: 736.65 | M30: 6.26767
A31: 21 | B31: AMBUJACEM | C31: 220.25 | D31: 222.07 | E31: 217.73 | F31: 215.22 | G31: 210.88 | H31: 224.58 | I31: 228.92 | J31: 231.43 | K31: 226.4 | L31: 219.55 | M31: 42.40764
A32: 22 | B32: ANDHRABANK | C32: 26.4 | D32: 26.48 | E32: 26.12 | F32: 25.83 | G32: 25.47 | H32: 26.77 | I32: 27.13 | J32: 27.42 | K32: 26.85 | L32: 26.2 | M32: 10.20108
A33: 23 | B33: APLAPOLLO | C33: 1393 | D33: 1392.00 | E33: 1379.00 | F33: 1365.00 | G33: 1352.00 | H33: 1406.00 | I33: 1419.00 | J33: 1433.00 | K33: 1405 | L33: 1378 | M33: 0.25103
A34: 24 | B34: APLLTD | C34: 548.25 | D34: 548.35 | E34: 541.20 | F34: 534.15 | G34: 527.00 | H34: 555.40 | I34: 562.55 | J34: 569.60 | K34: 555.5 | L34: 541.3 | M34: 0.28297
A35: 25 | B35: APOLLOHOSP | C35: 1192.75 | D35: 1196.37 | E35: 1179.88 | F35: 1167.02 | G35: 1150.53 | H35: 1209.23 | I35: 1225.72 | J35: 1238.58 | K35: 1212.85 | L35: 1183.5 | M35: 16.79631
A36: 26 | B36: APOLLOTYRE | C36: 219.45 | D36: 221.03 | E36: 217.07 | F36: 214.68 | G36: 210.72 | H36: 223.42 | I36: 227.38 | J36: 229.77 | K36: 225 | L36: 218.65 | M36: 22.97209
A37: 27 | B37: ARVIND | C37: 85.55 | D37: 85.67 | E37: 84.63 | F37: 83.72 | G37: 82.68 | H37: 86.58 | I37: 87.62 | J37: 88.53 | K37: 86.7 | L37: 84.75 | M37: 26.02946
A38: 28 | B38: ASAHIINDIA | C38: 276.95 | D38: 278.67 | E38: 273.48 | F38: 270.02 | G38: 264.83 | H38: 282.13 | I38: 287.32 | J38: 290.78 | K38: 283.85 | L38: 275.2 | M38: 0.20515
A39: 29 | B39: ASHOKA | C39: 137.55 | D39: 136.47 | E39: 131.23 | F39: 124.92 | G39: 119.68 | H39: 142.78 | I39: 148.02 | J39: 154.33 | K39: 141.7 | L39: 130.15 | M39: 14.62862
A40: 30 | B40: ASHOKLEY | C40: 90.6 | D40: 91.12 | E40: 89.38 | F40: 88.17 | G40: 86.43 | H40: 92.33 | I40: 94.07 | J40: 95.28 | K40: 92.85 | L40: 89.9 | M40: 375.09378
A41: 31 | B41: ASIANPAINT | C41: 1393.7 | D41: 1396.75 | E41: 1383.50 | F41: 1373.30 | G41: 1360.05 | H41: 1406.95 | I41: 1420.20 | J41: 1430.40 | K41: 1410 | L41: 1386.55 | M41: 7.20335
A42: 32 | B42: ASTRAL | C42: 1165.8 | D42: 1150.27 | E42: 1125.53 | F42: 1085.27 | G42: 1060.53 | H42: 1190.53 | I42: 1215.27 | J42: 1255.53 | K42: 1175 | L42: 1110 | M42: 0.89589
A43: 33 | B43: ATUL | C43: 3415.95 | D43: 3421.62 | E43: 3394.43 | F43: 3372.92 | G43: 3345.73 | H43: 3443.13 | I43: 3470.32 | J43: 3491.83 | K43: 3448.8 | L43: 3400.1 | M43: 0.03933
A44: 34 | B44: AUBANK | C44: 589.15 | D44: 587.33 | E44: 579.77 | F44: 570.38 | G44: 562.82 | H44: 596.72 | I44: 604.28 | J44: 613.67 | K44: 594.9 | L44: 577.95 | M44: 2.27989
A45: 35 | B45: AUROPHARMA | C45: 733.35 | D45: 736.52 | E45: 727.68 | F45: 722.02 | G45: 713.18 | H45: 742.18 | I45: 751.02 | J45: 756.68 | K45: 745.35 | L45: 730.85 | M45: 18.46913
A46: 36 | B46: AVANTIFEED | C46: 384.7 | D46: 376.12 | E46: 363.23 | F46: 341.77 | G46: 328.88 | H46: 397.58 | I46: 410.47 | J46: 431.93 | K46: 389 | L46: 354.65 | M46: 9.77593
A47: 37 | B47: AXISBANK | C47: 720.6 | D47: 722.35 | E47: 710.80 | F47: 701.00 | G47: 689.45 | H47: 732.15 | I47: 743.70 | J47: 753.50 | K47: 733.9 | L47: 712.55 | M47: 105.1067
A48: 38 | B48: BAJAJ-AUTO | C48: 2927.6 | D48: 2915.28 | E48: 2888.57 | F48: 2849.53 | G48: 2822.82 | H48: 2954.32 | I48: 2981.03 | J48: 3020.07 | K48: 2942 | L48: 2876.25 | M48: 7.48391
A49: 39 | B49: BAJAJCON | C49: 352.85 | D49: 354.62 | E49: 348.23 | F49: 343.62 | G49: 337.23 | H49: 359.23 | I49: 365.62 | J49: 370.23 | K49: 361 | L49: 350 | M49: 3.40683
A50: 40 | B50: BAJAJELEC | C50: 476.9 | D50: 477.98 | E50: 471.97 | F50: 467.03 | G50: 461.02 | H50: 482.92 | I50: 488.93 | J50: 493.87 | K50: 484 | L50: 473.05 | M50: 2.53932
A51: 41 | B51: BAJAJFINSV | C51: 6609.15 | D51: 6584.17 | E51: 6543.33 | F51: 6477.52 | G51: 6436.68 | H51: 6649.98 | I51: 6690.82 | J51: 6756.63 | K51: 6625 | L51: 6518.35 | M51: 2.36921
A52: 42 | B52: BAJAJHIND | C52: 9.05 | D52: 9.05 | E52: 8.85 | F52: 8.65 | G52: 8.45 | H52: 9.25 | I52: 9.45 | J52: 9.65 | K52: 9.25 | L52: 8.85 | M52: 38.97646
A53: 43 | B53: BAJAJHLDNG | C53: 3220.1 | D53: 3210.77 | E53: 3173.53 | F53: 3126.97 | G53: 3089.73 | H53: 3257.33 | I53: 3294.57 | J53: 3341.13 | K53: 3248 | L53: 3164.2 | M53: 0.19548
A54: 44 | B54: BAJFINANCE | C54: 2766.7 | D54: 2746.97 | E54: 2719.73 | F54: 2672.77 | G54: 2645.53 | H54: 2793.93 | I54: 2821.17 | J54: 2868.13 | K54: 2774.2 | L54: 2700 | M54: 15.43424
A55: 45 | B55: BALKRISIND | C55: 911.95 | D55: 914.90 | E55: 902.85 | F55: 893.75 | G55: 881.70 | H55: 924.00 | I55: 936.05 | J55: 945.15 | K55: 926.95 | L55: 905.8 | M55: 3.15202
A56: 46 | B56: BALLARPUR | C56: 4 | D56: 4.05 | E56: 3.80 | F56: 3.60 | G56: 3.35 | H56: 4.25 | I56: 4.50 | J56: 4.70 | K56: 4.3 | L56: 3.85 | M56: 28.29411
A57: 47 | B57: BALMLAWRIE | C57: 192 | D57: 193.65 | E57: 189.35 | F57: 186.70 | G57: 182.40 | H57: 196.30 | I57: 200.60 | J57: 203.25 | K57: 197.95 | L57: 191 | M57: 1.24687
A58: 48 | B58: BALRAMCHIN | C58: 141.55 | D58: 141.25 | E58: 138.40 | F58: 135.25 | G58: 132.40 | H58: 144.40 | I58: 147.25 | J58: 150.40 | K58: 144.1 | L58: 138.1 | M58: 39.18285
A59: 49 | B59: BANKBARODA | C59: 112.1 | D59: 112.22 | E59: 110.88 | F59: 109.67 | G59: 108.33 | H59: 113.43 | I59: 114.77 | J59: 115.98 | K59: 113.55 | L59: 111 | M59: 114.74316
A60: 50 | B60: BANKINDIA | C60: 89.8 | D60: 90.48 | E60: 88.52 | F60: 87.23 | G60: 85.27 | H60: 91.77 | I60: 93.73 | J60: 95.02 | K60: 92.45 | L60: 89.2 | M60: 95.93204
A61: 51 | B61: BASF | C61: 1411.35 | D61: 1414.92 | E61: 1396.43 | F61: 1381.52 | G61: 1363.03 | H61: 1429.83 | I61: 1448.32 | J61: 1463.23 | K61: 1433.4 | L61: 1400 | M61: 0.07657
A62: 52 | B62: BATAINDIA | C62: 1344.35 | D62: 1328.53 | E62: 1308.47 | F62: 1272.58 | G62: 1252.52 | H62: 1364.42 | I62: 1384.48 | J62: 1420.37 | K62: 1348.6 | L62: 1292.65 | M62: 15.47417
A63: 53 | B63: BBTC | C63: 1282.2 | D63: 1285.73 | E63: 1256.47 | F63: 1230.73 | G63: 1201.47 | H63: 1311.47 | I63: 1340.73 | J63: 1366.47 | K63: 1315 | L63: 1260 | M63: 2.46593
A64: 54 | B64: BEL | C64: 92.1 | D64: 92.02 | E64: 90.13 | F64: 88.17 | G64: 86.28 | H64: 93.98 | I64: 95.87 | J64: 97.83 | K64: 93.9 | L64: 90.05 | M64: 170.65207
A65: 55 | B65: BEML | C65: 910.65 | D65: 920.93 | E65: 892.42 | F65: 874.18 | G65: 845.67 | H65: 939.17 | I65: 967.68 | J65: 985.92 | K65: 949.45 | L65: 902.7 | M65: 37.11618
A66: 56 | B66: BERGEPAINT | C66: 304.55 | D66: 304.78 | E66: 301.27 | F66: 297.98 | G66: 294.47 | H66: 308.07 | I66: 311.58 | J66: 314.87 | K66: 308.3 | L66: 301.5 | M66: 4.73998
A67: 57 | B67: BFUTILITIE | C67: 191.3 | D67: 191.90 | E67: 187.75 | F67: 184.20 | G67: 180.05 | H67: 195.45 | I67: 199.60 | J67: 203.15 | K67: 196.05 | L67: 188.35 | M67: 7.66767
A68: 58 | B68: BGRENERGY | C68: 60.95 | D68: 60.80 | E68: 58.25 | F68: 55.55 | G68: 53.00 | H68: 63.50 | I68: 66.05 | J68: 68.75 | K68: 63.35 | L68: 58.1 | M68: 3.4411
A69: 59 | B69: BHARATFIN | C69: 964.05 | D69: 964.85 | E69: 958.60 | F69: 953.15 | G69: 946.90 | H69: 970.30 | I69: 976.55 | J69: 982.00 | K69: 971.1 | L69: 959.4 | M69: 3.03884
A70: 60 | B70: BHARATFORG | C70: 518.55 | D70: 519.37 | E70: 512.23 | F70: 505.92 | G70: 498.78 | H70: 525.68 | I70: 532.82 | J70: 539.13 | K70: 526.5 | L70: 513.05 | M70: 21.06915
A71: 61 | B71: BHARTIARTL | C71: 309.4 | D71: 310.32 | E71: 307.38 | F71: 305.37 | G71: 302.43 | H71: 312.33 | I71: 315.27 | J71: 317.28 | K71: 313.25 | L71: 308.3 | M71: 63.92974
A72: 62 | B72: BHEL | C72: 69.1 | D72: 68.92 | E72: 67.68 | F72: 66.27 | G72: 65.03 | H72: 70.33 | I72: 71.57 | J72: 72.98 | K72: 70.15 | L72: 67.5 | M72: 130.04838
A73: 63 | B73: BIOCON | C73: 626.1 | D73: 628.25 | E73: 622.10 | F73: 618.10 | G73: 611.95 | H73: 632.25 | I73: 638.40 | J73: 642.40 | K73: 634.4 | L73: 624.25 | M73: 11.57958
A74: 64 | B74: BIRLACORPN | C74: 550.4 | D74: 544.80 | E74: 528.60 | F74: 506.80 | G74: 490.60 | H74: 566.60 | I74: 582.80 | J74: 604.60 | K74: 561 | L74: 523 | M74: 1.5158
A75: 65 | B75: BLISSGVS | C75: 177.15 | D75: 178.12 | E75: 174.93 | F75: 172.72 | G75: 169.53 | H75: 180.33 | I75: 183.52 | J75: 185.73 | K75: 181.3 | L75: 175.9 | M75: 8.55122
A76: 66 | B76: BLUEDART | C76: 3193.55 | D76: 3197.90 | E76: 3135.80 | F76: 3078.05 | G76: 3015.95 | H76: 3255.65 | I76: 3317.75 | J76: 3375.50 | K76: 3260 | L76: 3140.15 | M76: 0.03666
A77: 67 | B77: BLUESTARCO | C77: 654.7 | D77: 661.93 | E77: 644.87 | F77: 635.03 | G77: 617.97 | H77: 671.77 | I77: 688.83 | J77: 698.67 | K77: 679 | L77: 652.1 | M77: 0.44913
A78: 68 | B78: BOMDYEING | C78: 122.3 | D78: 122.17 | E78: 119.48 | F78: 116.67 | G78: 113.98 | H78: 124.98 | I78: 127.67 | J78: 130.48 | K78: 124.85 | L78: 119.35 | M78: 21.73178
A79: 69 | B79: BOSCHLTD | C79: 18875.2 | D79: 18880.83 | E79: 18722.37 | F79: 18569.53 | G79: 18411.07 | H79: 19033.67 | I79: 19192.13 | J79: 19344.97 | K79: 19039.3 | L79: 18728 | M79: 0.12834
A80: 70 | B80: BPCL | C80: 372.7 | D80: 369.95 | E80: 366.10 | F80: 359.50 | G80: 355.65 | H80: 376.55 | I80: 380.40 | J80: 387.00 | K80: 373.8 | L80: 363.35 | M80: 60.98612
A81: 71 | B81: BRFL | C81: 9 | D81: 9.05 | E81: 8.75 | F81: 8.50 | G81: 8.20 | H81: 9.30 | I81: 9.60 | J81: 9.85 | K81: 9.35 | L81: 8.8 | M81: 1.00657
A82: 72 | B82: BRIGADE | C82: 207.9 | D82: 207.45 | E82: 200.95 | F82: 194.00 | G82: 187.50 | H82: 214.40 | I82: 220.90 | J82: 227.85 | K82: 213.95 | L82: 200.5 | M82: 2.63779
A83: 73 | B83: BRITANNIA | C83: 3026.85 | D83: 3040.93 | E83: 2994.92 | F83: 2962.98 | G83: 2916.97 | H83: 3072.87 | I83: 3118.88 | J83: 3150.82 | K83: 3086.95 | L83: 3009 | M83: 3.83038
A84: 74 | B84: BSE | C84: 614.4 | D84: 613.35 | E84: 608.95 | F84: 603.50 | G84: 599.10 | H84: 618.80 | I84: 623.20 | J84: 628.65 | K84: 617.75 | L84: 607.9 | M84: 1.28891
A85: 75 | B85: BSOFT | C85: 115.5 | D85: 113.55 | E85: 109.30 | F85: 103.10 | G85: 98.85 | H85: 119.75 | I85: 124.00 | J85: 130.20 | K85: 117.8 | L85: 107.35 | M85: 29.28895
A86: 77 | B86: CADILAHC | C86: 330.35 | D86: 332.05 | E86: 325.80 | F86: 321.25 | G86: 315.00 | H86: 336.60 | I86: 342.85 | J86: 347.40 | K86: 338.3 | L86: 327.5 | M86: 13.55928
A87: 78 | B87: CANBK | C87: 252.8 | D87: 253.77 | E87: 250.03 | F87: 247.27 | G87: 243.53 | H87: 256.53 | I87: 260.27 | J87: 263.03 | K87: 257.5 | L87: 251 | M87: 49.41825
A88: 79 | B88: CANFINHOME | C88: 289.5 | D88: 294.47 | E88: 282.68 | F88: 275.87 | G88: 264.08 | H88: 301.28 | I88: 313.07 | J88: 319.88 | K88: 306.25 | L88: 287.65 | M88: 28.80739
A89: 80 | B89: CAPLIPOINT | C89: 406 | D89: 408.33 | E89: 402.67 | F89: 399.33 | G89: 393.67 | H89: 411.67 | I89: 417.33 | J89: 420.67 | K89: 414 | L89: 405 | M89: 0.22021
A90: 81 | B90: CARBORUNIV | C90: 382.1 | D90: 384.08 | E90: 379.17 | F90: 376.23 | G90: 371.32 | H90: 387.02 | I90: 391.93 | J90: 394.87 | K90: 389 | L90: 381.15 | M90: 0.25728
A91: 82 | B91: CARERATING | C91: 998.4 | D91: 991.82 | E91: 979.23 | F91: 960.07 | G91: 947.48 | H91: 1010.98 | I91: 1023.57 | J91: 1042.73 | K91: 1004.4 | L91: 972.65 | M91: 0.55865
A92: 83 | B92: CASTROLIND | C92: 164.05 | D92: 162.77 | E92: 160.53 | F92: 157.02 | G92: 154.78 | H92: 166.28 | I92: 168.52 | J92: 172.03 | K92: 165 | L92: 159.25 | M92: 13.86658
A93: 84 | B93: CCL | C93: 288.6 | D93: 288.25 | E93: 283.50 | F93: 278.40 | G93: 273.65 | H93: 293.35 | I93: 298.10 | J93: 303.20 | K93: 293 | L93: 283.15 | M93: 4.28722
A94: 85 | B94: CDSL | C94: 239 | D94: 237.75 | E94: 232.50 | F94: 226.00 | G94: 220.75 | H94: 244.25 | I94: 249.50 | J94: 256.00 | K94: 243 | L94: 231.25 | M94: 7.20122
A95: 86 | B95: CEATLTD | C95: 1127.35 | D95: 1133.80 | E95: 1112.60 | F95: 1097.85 | G95: 1076.65 | H95: 1148.55 | I95: 1169.75 | J95: 1184.50 | K95: 1155 | L95: 1119.05 | M95: 5.74522
A96: 87 | B96: CENTRALBK | C96: 32.15 | D96: 32.15 | E96: 31.80 | F96: 31.45 | G96: 31.10 | H96: 32.50 | I96: 32.85 | J96: 33.20 | K96: 32.5 | L96: 31.8 | M96: 4.95206
A97: 88 | B97: CENTURYPLY | C97: 187.35 | D97: 187.53 | E97: 185.07 | F97: 182.78 | G97: 180.32 | H97: 189.82 | I97: 192.28 | J97: 194.57 | K97: 190 | L97: 185.25 | M97: 1.55895
A98: 89 | B98: CENTURYTEX | C98: 851.65 | D98: 857.23 | E98: 840.17 | F98: 828.68 | G98: 811.62 | H98: 868.72 | I98: 885.78 | J98: 897.27 | K98: 874.3 | L98: 845.75 | M98: 7.04978
A99: 90 | B99: CERA | C99: 2496.1 | D99: 2500.35 | E99: 2465.75 | F99: 2435.40 | G99: 2400.80 | H99: 2530.70 | I99: 2565.30 | J99: 2595.65 | K99: 2534.95 | L99: 2470 | M99: 0.0248
A100: 91 | B100: CGPOWER | C100: 37.15 | D100: 37.50 | E100: 36.25 | F100: 35.35 | G100: 34.10 | H100: 38.40 | I100: 39.65 | J100: 40.55 | K100: 38.75 | L100: 36.6 | M100: 180.20416
A101: 92 | B101: CHAMBLFERT | C101: 163.75 | D101: 164.65 | E101: 162.10 | F101: 160.45 | G101: 157.90 | H101: 166.30 | I101: 168.85 | J101: 170.50 | K101: 167.2 | L101: 163 | M101: 3.20368
A102: 93 | B102: CHENNPETRO | C102: 256 | D102: 257.43 | E102: 252.27 | F102: 248.53 | G102: 243.37 | H102: 261.17 | I102: 266.33 | J102: 270.07 | K102: 262.6 | L102: 253.7 | M102: 5.22205
A103: 94 | B103: CHOLAFIN | C103: 1307.7 | D103: 1310.85 | E103: 1291.85 | F103: 1276.00 | G103: 1257.00 | H103: 1326.70 | I103: 1345.70 | J103: 1361.55 | K103: 1329.85 | L103: 1295 | M103: 2.89521
A104: 95 | B104: CIPLA | C104: 547.55 | D104: 547.17 | E104: 542.33 | F104: 537.12 | G104: 532.28 | H104: 552.38 | I104: 557.22 | J104: 562.43 | K104: 552 | L104: 541.95 | M104: 15.87182
A105: 96 | B105: COALINDIA | C105: 242.75 | D105: 242.32 | E105: 238.43 | F105: 234.12 | G105: 230.23 | H105: 246.63 | I105: 250.52 | J105: 254.83 | K105: 246.2 | L105: 238 | M105: 95.35153
A106: 97 | B106: COCHINSHIP | C106: 386.2 | D106: 388.75 | E106: 378.10 | F106: 370.00 | G106: 359.35 | H106: 396.85 | I106: 407.50 | J106: 415.60 | K106: 399.4 | L106: 380.65 | M106: 2.37036
A107: 98 | B107: COFFEEDAY | C107: 284.25 | D107: 283.18 | E107: 279.37 | F107: 274.48 | G107: 270.67 | H107: 288.07 | I107: 291.88 | J107: 296.77 | K107: 287 | L107: 278.3 | M107: 3.06433
A108: 99 | B108: COLPAL | C108: 1275.75 | D108: 1266.93 | E108: 1251.87 | F108: 1227.98 | G108: 1212.92 | H108: 1290.82 | I108: 1305.88 | J108: 1329.77 | K108: 1282 | L108: 1243.05 | M108: 5.82752
A109: 100 | B109: CONCOR | C109: 486.9 | D109: 487.83 | E109: 482.22 | F109: 477.53 | G109: 471.92 | H109: 492.52 | I109: 498.13 | J109: 502.82 | K109: 493.45 | L109: 483.15 | M109: 7.83592
A110: 101 | B110: COROMANDEL | C110: 461.5 | D110: 458.57 | E110: 452.13 | F110: 442.77 | G110: 436.33 | H110: 467.93 | I110: 474.37 | J110: 483.73 | K110: 465 | L110: 449.2 | M110: 1.04995
A111: 102 | B111: COX&KINGS | C111: 164.35 | D111: 163.75 | E111: 161.10 | F111: 157.85 | G111: 155.20 | H111: 167.00 | I111: 169.65 | J111: 172.90 | K111: 166.4 | L111: 160.5 | M111: 0.61743
A112: 103 | B112: CRISIL | C112: 1509.45 | D112: 1504.43 | E112: 1486.07 | F112: 1462.68 | G112: 1444.32 | H112: 1527.82 | I112: 1546.18 | J112: 1569.57 | K112: 1522.8 | L112: 1481.05 | M112: 0.19025
A113: 104 | B113: CROMPTON | C113: 218.8 | D113: 218.73 | E113: 215.02 | F113: 211.23 | G113: 207.52 | H113: 222.52 | I113: 226.23 | J113: 230.02 | K113: 222.45 | L113: 214.95 | M113: 5.33991
A114: 105 | B114: CUB | C114: 189.75 | D114: 189.38 | E114: 187.02 | F114: 184.28 | G114: 181.92 | H114: 192.12 | I114: 194.48 | J114: 197.22 | K114: 191.75 | L114: 186.65 | M114: 15.11961
A115: 106 | B115: CUMMINSIND | C115: 731.8 | D115: 734.32 | E115: 720.48 | F115: 709.17 | G115: 695.33 | H115: 745.63 | I115: 759.47 | J115: 770.78 | K115: 748.15 | L115: 723 | M115: 6.49839
A116: 107 | B116: CYIENT | C116: 664.85 | D116: 662.93 | E116: 651.92 | F116: 638.98 | G116: 627.97 | H116: 675.87 | I116: 686.88 | J116: 699.82 | K116: 673.95 | L116: 650 | M116: 2.4244
A117: 108 | B117: DABUR | C117: 436.75 | D117: 439.00 | E117: 433.00 | F117: 429.25 | G117: 423.25 | H117: 442.75 | I117: 448.75 | J117: 452.50 | K117: 445 | L117: 435.25 | M117: 16.99096
A118: 109 | B118: DBCORP | C118: 193.55 | D118: 191.20 | E118: 182.50 | F118: 171.45 | G118: 162.75 | H118: 202.25 | I118: 210.95 | J118: 222.00 | K118: 199.9 | L118: 180.15 | M118: 1.63629
A119: 110 | B119: DBL | C119: 597.9 | D119: 581.98 | E119: 555.97 | F119: 514.03 | G119: 488.02 | H119: 623.92 | I119: 649.93 | J119: 691.87 | K119: 608 | L119: 540.05 | M119: 37.37935
A120: 111 | B120: DBREALTY | C120: 21.5 | D120: 21.42 | E120: 20.83 | F120: 20.17 | G120: 19.58 | H120: 22.08 | I120: 22.67 | J120: 23.33 | K120: 22 | L120: 20.75 | M120: 4.42637
A121: 112 | B121: DCAL | C121: 208.65 | D121: 205.80 | E121: 200.95 | F121: 193.25 | G121: 188.40 | H121: 213.50 | I121: 218.35 | J121: 226.05 | K121: 210.65 | L121: 198.1 | M121: 4.13583
A122: 113 | B122: DCBBANK | C122: 197.1 | D122: 195.03 | E122: 191.07 | F122: 185.03 | G122: 181.07 | H122: 201.07 | I122: 205.03 | J122: 211.07 | K122: 199 | L122: 189 | M122: 32.18128
A123: 114 | B123: DCMSHRIRAM | C123: 476.95 | D123: 479.00 | E123: 458.00 | F123: 439.05 | G123: 418.05 | H123: 497.95 | I123: 518.95 | J123: 537.90 | K123: 500 | L123: 460.05 | M123: 5.3033
A124: 115 | B124: DEEPAKFERT | C124: 139.25 | D124: 139.67 | E124: 135.58 | F124: 131.92 | G124: 127.83 | H124: 143.33 | I124: 147.42 | J124: 151.08 | K124: 143.75 | L124: 136 | M124: 7.98713
A125: 116 | B125: DELTACORP | C125: 255.45 | D125: 258.53 | E125: 251.17 | F125: 246.88 | G125: 239.52 | H125: 262.82 | I125: 270.18 | J125: 274.47 | K125: 265.9 | L125: 254.25 | M125: 12.60662
A126: 117 | B126: DEN | C126: 73.8 | D126: 74.37 | E126: 72.03 | F126: 70.27 | G126: 67.93 | H126: 76.13 | I126: 78.47 | J126: 80.23 | K126: 76.7 | L126: 72.6 | M126: 0.76097
A127: 118 | B127: DENABANK | C127: 12.35 | D127: 12.38 | E127: 12.17 | F127: 11.98 | G127: 11.77 | H127: 12.57 | I127: 12.78 | J127: 12.97 | K127: 12.6 | L127: 12.2 | M127: 20.69381
A128: 119 | B128: DHFL | C128: 148.75 | D128: 152.77 | E128: 143.23 | F128: 137.72 | G128: 128.18 | H128: 158.28 | I128: 167.82 | J128: 173.33 | K128: 162.3 | L128: 147.25 | M128: 511.06855
A129: 120 | B129: DISHTV | C129: 40.5 | D129: 40.68 | E129: 39.57 | F129: 38.63 | G129: 37.52 | H129: 41.62 | I129: 42.73 | J129: 43.67 | K129: 41.8 | L129: 39.75 | M129: 127.30469
A130: 121 | B130: DIVISLAB | C130: 1705.9 | D130: 1694.32 | E130: 1663.63 | F130: 1621.37 | G130: 1590.68 | H130: 1736.58 | I130: 1767.27 | J130: 1809.53 | K130: 1725 | L130: 1652.05 | M130: 6.92075
A131: 122 | B131: DIXON | C131: 2348.85 | D131: 2356.67 | E131: 2307.33 | F131: 2265.82 | G131: 2216.48 | H131: 2398.18 | I131: 2447.52 | J131: 2489.03 | K131: 2406 | L131: 2315.15 | M131: 0.09168
A132: 123 | B132: DLF | C132: 177.35 | D132: 177.48 | E132: 174.22 | F132: 171.08 | G132: 167.82 | H132: 180.62 | I132: 183.88 | J132: 187.02 | K132: 180.75 | L132: 174.35 | M132: 65.13459
A133: 124 | B133: DMART | C133: 1470.35 | D133: 1472.62 | E133: 1460.23 | F133: 1450.12 | G133: 1437.73 | H133: 1482.73 | I133: 1495.12 | J133: 1505.23 | K133: 1485 | L133: 1462.5 | M133: 2.21967
A134: 125 | B134: DREDGECORP | C134: 446.55 | D134: 444.90 | E134: 432.25 | F134: 417.95 | G134: 405.30 | H134: 459.20 | I134: 471.85 | J134: 486.15 | K134: 457.55 | L134: 430.6 | M134: 27.76073
A135: 126 | B135: DRREDDY | C135: 2693.65 | D135: 2686.27 | E135: 2664.03 | F135: 2634.42 | G135: 2612.18 | H135: 2715.88 | I135: 2738.12 | J135: 2767.73 | K135: 2708.5 | L135: 2656.65 | M135: 8.52395
A136: 127 | B136: ECLERX | C136: 1037.35 | D136: 1045.88 | E136: 1019.57 | F136: 1001.78 | G136: 975.47 | H136: 1063.67 | I136: 1089.98 | J136: 1107.77 | K136: 1072.2 | L136: 1028.1 | M136: 0.10378
A137: 128 | B137: EDELWEISS | C137: 164.15 | D137: 166.55 | E137: 159.80 | F137: 155.45 | G137: 148.70 | H137: 170.90 | I137: 177.65 | J137: 182.00 | K137: 173.3 | L137: 162.2 | M137: 75.29835
A138: 129 | B138: EICHERMOT | C138: 21503.95 | D138: 21569.65 | E138: 21339.30 | F138: 21174.65 | G138: 20944.30 | H138: 21734.30 | I138: 21964.65 | J138: 22129.30 | K138: 21800 | L138: 21405 | M138: 1.26586
A139: 130 | B139: EIDPARRY | C139: 204.1 | D139: 206.22 | E139: 200.48 | F139: 196.87 | G139: 191.13 | H139: 209.83 | I139: 215.57 | J139: 219.18 | K139: 211.95 | L139: 202.6 | M139: 5.88136
A140: 131 | B140: EIHOTEL | C140: 188.15 | D140: 189.73 | E140: 186.17 | F140: 184.18 | G140: 180.62 | H140: 191.72 | I140: 195.28 | J140: 197.27 | K140: 193.3 | L140: 187.75 | M140: 3.26685
A141: 132 | B141: EMAMILTD | C141: 398.75 | D141: 400.42 | E141: 395.83 | F141: 392.92 | G141: 388.33 | H141: 403.33 | I141: 407.92 | J141: 410.83 | K141: 405 | L141: 397.5 | M141: 1.3185
A142: 133 | B142: ENDURANCE | C142: 1146.5 | D142: 1147.17 | E142: 1130.53 | F142: 1114.57 | G142: 1097.93 | H142: 1163.13 | I142: 1179.77 | J142: 1195.73 | K142: 1163.8 | L142: 1131.2 | M142: 25.49407
A143: 134 | B143: ENGINERSIN | C143: 114.3 | D143: 115.22 | E143: 112.73 | F143: 111.17 | G143: 108.68 | H143: 116.78 | I143: 119.27 | J143: 120.83 | K143: 117.7 | L143: 113.65 | M143: 26.71717
A144: 135 | B144: EQUITAS | C144: 128.15 | D144: 128.82 | E144: 124.93 | F144: 121.72 | G144: 117.83 | H144: 132.03 | I144: 135.92 | J144: 139.13 | K144: 132.7 | L144: 125.6 | M144: 49.53033
A145: 136 | B145: ERIS | C145: 615.15 | D145: 618.45 | E145: 607.00 | F145: 598.85 | G145: 587.40 | H145: 626.60 | I145: 638.05 | J145: 646.20 | K145: 629.9 | L145: 610.3 | M145: 0.77414
A146: 137 | B146: EROSMEDIA | C146: 85.4 | D146: 85.53 | E146: 82.37 | F146: 79.33 | G146: 76.17 | H146: 88.57 | I146: 91.73 | J146: 94.77 | K146: 88.7 | L146: 82.5 | M146: 11.20799
A147: 138 | B147: ESCORTS | C147: 737.8 | D147: 732.85 | E147: 719.05 | F147: 700.30 | G147: 686.50 | H147: 751.60 | I147: 765.40 | J147: 784.15 | K147: 746.65 | L147: 714.1 | M147: 26.17615
A148: 139 | B148: EVEREADY | C148: 212.9 | D148: 209.40 | E148: 199.50 | F148: 186.10 | G148: 176.20 | H148: 222.80 | I148: 232.70 | J148: 246.10 | K148: 219.3 | L148: 196 | M148: 66.15093
A149: 140 | B149: EXIDEIND | C149: 225.2 | D149: 225.07 | E149: 223.33 | F149: 221.47 | G149: 219.73 | H149: 226.93 | I149: 228.67 | J149: 230.53 | K149: 226.8 | L149: 223.2 | M149: 16.74424
A150: 141 | B150: FCONSUMER | C150: 49.55 | D150: 49.33 | E150: 48.67 | F150: 47.78 | G150: 47.12 | H150: 50.22 | I150: 50.88 | J150: 51.77 | K150: 50 | L150: 48.45 | M150: 31.93671
A151: 142 | B151: FEDERALBNK | C151: 87.25 | D151: 87.95 | E151: 86.15 | F151: 85.05 | G151: 83.25 | H151: 89.05 | I151: 90.85 | J151: 91.95 | K151: 89.75 | L151: 86.85 | M151: 119.22216
A152: 143 | B152: FINCABLES | C152: 430.35 | D152: 434.12 | E152: 421.23 | F152: 412.12 | G152: 399.23 | H152: 443.23 | I152: 456.12 | J152: 465.23 | K152: 447 | L152: 425 | M152: 1.74753
A153: 144 | B153: FINPIPE | C153: 537.2 | D153: 531.82 | E153: 523.68 | F153: 510.17 | G153: 502.03 | H153: 545.33 | I153: 553.47 | J153: 566.98 | K153: 539.95 | L153: 518.3 | M153: 0.24301
A154: 145 | B154: FLFL | C154: 427.5 | D154: 431.17 | E154: 421.33 | F154: 415.17 | G154: 405.33 | H154: 437.33 | I154: 447.17 | J154: 453.33 | K154: 441 | L154: 425 | M154: 0.40734
A155: 146 | B155: FSL | C155: 47.05 | D155: 47.22 | E155: 46.53 | F155: 46.02 | G155: 45.33 | H155: 47.73 | I155: 48.42 | J155: 48.93 | K155: 47.9 | L155: 46.7 | M155: 18.956
A156: 147 | B156: GAIL | C156: 345.35 | D156: 345.62 | E156: 342.33 | F156: 339.32 | G156: 336.03 | H156: 348.63 | I156: 351.92 | J156: 354.93 | K156: 348.9 | L156: 342.6 | M156: 25.34626
A157: 148 | B157: GATI | C157: 80.35 | D157: 80.97 | E157: 79.43 | F157: 78.52 | G157: 76.98 | H157: 81.88 | I157: 83.42 | J157: 84.33 | K157: 82.5 | L157: 80.05 | M157: 8.77423
A158: 149 | B158: GDL | C158: 125.3 | D158: 124.45 | E158: 117.30 | F158: 109.30 | G158: 102.15 | H158: 132.45 | I158: 139.60 | J158: 147.60 | K158: 131.6 | L158: 116.45 | M158: 4.35271
A159: 150 | B159: GEPIL | C159: 815.4 | D159: 818.15 | E159: 808.60 | F159: 801.80 | G159: 792.25 | H159: 824.95 | I159: 834.50 | J159: 841.30 | K159: 827.7 | L159: 811.35 | M159: 0.11191
A160: 151 | B160: GESHIP | C160: 286.35 | D160: 287.72 | E160: 280.63 | F160: 274.92 | G160: 267.83 | H160: 293.43 | I160: 300.52 | J160: 306.23 | K160: 294.8 | L160: 282 | M160: 0.61107
A161: 152 | B161: GET&D | C161: 295.6 | D161: 299.20 | E161: 290.40 | F161: 285.20 | G161: 276.40 | H161: 304.40 | I161: 313.20 | J161: 318.40 | K161: 308 | L161: 294 | M161: 0.24992
A162: 153 | B162: GHCL | C162: 236.35 | D162: 237.03 | E162: 232.32 | F162: 228.28 | G162: 223.57 | H162: 241.07 | I162: 245.78 | J162: 249.82 | K162: 241.75 | L162: 233 | M162: 1.49229
A163: 154 | B163: GICRE | C163: 250.45 | D163: 251.62 | E163: 247.63 | F163: 244.82 | G163: 240.83 | H163: 254.43 | I163: 258.42 | J163: 261.23 | K163: 255.6 | L163: 248.8 | M163: 1.12916
A164: 155 | B164: GILLETTE | C164: 6508.45 | D164: 6499.48 | E164: 6478.97 | F164: 6449.48 | G164: 6428.97 | H164: 6528.97 | I164: 6549.48 | J164: 6578.97 | K164: 6520 | L164: 6470 | M164: 0.04883
A165: 156 | B165: GLAXO | C165: 1301.1 | D165: 1311.95 | E165: 1285.90 | F165: 1270.70 | G165: 1244.65 | H165: 1327.15 | I165: 1353.20 | J165: 1368.40 | K165: 1338 | L165: 1296.75 | M165: 0.30534
A166: 157 | B166: GLENMARK | C166: 603.65 | D166: 603.65 | E166: 597.30 | F166: 590.95 | G166: 584.60 | H166: 610.00 | I166: 616.35 | J166: 622.70 | K166: 610 | L166: 597.3 | M166: 5.93887
A167: 158 | B167: GMDCLTD | C167: 85.6 | D167: 86.50 | E167: 84.10 | F167: 82.60 | G167: 80.20 | H167: 88.00 | I167: 90.40 | J167: 91.90 | K167: 88.9 | L167: 85 | M167: 5.26511
A168: 159 | B168: GMRINFRA | C168: 16.9 | D168: 16.87 | E168: 16.58 | F168: 16.27 | G168: 15.98 | H168: 17.18 | I168: 17.47 | J168: 17.78 | K168: 17.15 | L168: 16.55 | M168: 279.43696
A169: 160 | B169: GNFC | C169: 286.4 | D169: 288.30 | E169: 282.20 | F169: 278.00 | G169: 271.90 | H169: 292.50 | I169: 298.60 | J169: 302.80 | K169: 294.4 | L169: 284.1 | M169: 5.49242
A170: 161 | B170: GODFRYPHLP | C170: 933 | D170: 944.30 | E170: 913.70 | F170: 894.40 | G170: 863.80 | H170: 963.60 | I170: 994.20 | J170: 1013.50 | K170: 974.9 | L170: 925 | M170: 4.34239
A171: 162 | B171: GODREJAGRO | C171: 515.5 | D171: 513.55 | E171: 509.15 | F171: 502.80 | G171: 498.40 | H171: 519.90 | I171: 524.30 | J171: 530.65 | K171: 517.95 | L171: 507.2 | M171: 1.66811
A172: 163 | B172: GODREJCP | C172: 705.7 | D172: 705.03 | E172: 698.07 | F172: 690.43 | G172: 683.47 | H172: 712.67 | I172: 719.63 | J172: 727.27 | K172: 712 | L172: 697.4 | M172: 14.29976
A173: 164 | B173: GODREJIND | C173: 509.6 | D173: 511.45 | E173: 502.25 | F173: 494.90 | G173: 485.70 | H173: 518.80 | I173: 528.00 | J173: 535.35 | K173: 520.65 | L173: 504.1 | M173: 13.32256
A174: 165 | B174: GODREJPROP | C174: 699.45 | D174: 702.57 | E174: 690.23 | F174: 681.02 | G174: 668.68 | H174: 711.78 | I174: 724.12 | J174: 733.33 | K174: 714.9 | L174: 693.35 | M174: 1.37633
A175: 166 | B175: GPPL | C175: 89.05 | D175: 88.93 | E175: 88.17 | F175: 87.28 | G175: 86.52 | H175: 89.82 | I175: 90.58 | J175: 91.47 | K175: 89.7 | L175: 88.05 | M175: 4.52574
A176: 167 | B176: GRANULES | C176: 105.6 | D176: 105.75 | E176: 102.60 | F176: 99.60 | G176: 96.45 | H176: 108.75 | I176: 111.90 | J176: 114.90 | K176: 108.9 | L176: 102.75 | M176: 18.69667
A177: 168 | B177: GRAPHITE | C177: 451.55 | D177: 456.38 | E177: 438.87 | F177: 426.18 | G177: 408.67 | H177: 469.07 | I177: 486.58 | J177: 499.27 | K177: 473.9 | L177: 443.7 | M177: 28.10208
A178: 169 | B178: GRASIM | C178: 820.1 | D178: 815.60 | E178: 809.00 | F178: 797.90 | G178: 791.30 | H178: 826.70 | I178: 833.30 | J178: 844.40 | K178: 822.2 | L178: 804.5 | M178: 11.1997
A179: 170 | B179: GREAVESCOT | C179: 130.1 | D179: 129.43 | E179: 127.97 | F179: 125.83 | G179: 124.37 | H179: 131.57 | I179: 133.03 | J179: 135.17 | K179: 130.9 | L179: 127.3 | M179: 3.4119
A180: 171 | B180: GREENPLY | C180: 147.6 | D180: 149.23 | E180: 144.67 | F180: 141.73 | G180: 137.17 | H180: 152.17 | I180: 156.73 | J180: 159.67 | K180: 153.8 | L180: 146.3 | M180: 1.11685
A181: 172 | B181: GRUH | C181: 264.3 | D181: 260.88 | E181: 255.22 | F181: 246.13 | G181: 240.47 | H181: 269.97 | I181: 275.63 | J181: 284.72 | K181: 266.55 | L181: 251.8 | M181: 16.8865
A182: 173 | B182: GSFC | C182: 98.95 | D182: 99.40 | E182: 97.60 | F182: 96.25 | G182: 94.45 | H182: 100.75 | I182: 102.55 | J182: 103.90 | K182: 101.2 | L182: 98.05 | M182: 12.38707
A183: 174 | B183: GSKCONS | C183: 7080.6 | D183: 7119.67 | E183: 7012.33 | F183: 6944.07 | G183: 6836.73 | H183: 7187.93 | I183: 7295.27 | J183: 7363.53 | K183: 7227 | L183: 7051.4 | M183: 0.22785
A184: 175 | B184: GSPL | C184: 170.85 | D184: 168.65 | E184: 164.30 | F184: 157.75 | G184: 153.40 | H184: 175.20 | I184: 179.55 | J184: 186.10 | K184: 173 | L184: 162.1 | M184: 24.30001
A185: 176 | B185: GUJALKALI | C185: 513.35 | D185: 516.65 | E185: 505.80 | F185: 498.25 | G185: 487.40 | H185: 524.20 | I185: 535.05 | J185: 542.60 | K185: 527.5 | L185: 509.1 | M185: 0.66629
A186: 177 | B186: GUJFLUORO | C186: 971.75 | D186: 969.18 | E186: 956.42 | F186: 941.08 | G186: 928.32 | H186: 984.52 | I186: 997.28 | J186: 1012.62 | K186: 981.95 | L186: 953.85 | M186: 0.6256
A187: 178 | B187: GUJGASLTD | C187: 123.5 | D187: 123.40 | E187: 122.30 | F187: 121.10 | G187: 120.00 | H187: 124.60 | I187: 125.70 | J187: 126.90 | K187: 124.5 | L187: 122.2 | M187: 12.00736
A188: 179 | B188: GULFOILLUB | C188: 861.35 | D188: 865.72 | E188: 852.28 | F188: 843.22 | G188: 829.78 | H188: 874.78 | I188: 888.22 | J188: 897.28 | K188: 879.15 | L188: 856.65 | M188: 0.03237
A189: 180 | B189: GVKPIL | C189: 7.95 | D189: 8.08 | E189: 7.77 | F189: 7.58 | G189: 7.27 | H189: 8.27 | I189: 8.58 | J189: 8.77 | K189: 8.4 | L189: 7.9 | M189: 37.33507
A190: 181 | B190: HATHWAY | C190: 26.9 | D190: 27.17 | E190: 26.33 | F190: 25.77 | G190: 24.93 | H190: 27.73 | I190: 28.57 | J190: 29.13 | K190: 28 | L190: 26.6 | M190: 1.75447
A191: 182 | B191: HATSUN | C191: 667.55 | D191: 667.00 | E191: 661.05 | F191: 654.55 | G191: 648.60 | H191: 673.50 | I191: 679.45 | J191: 685.95 | K191: 672.95 | L191: 660.5 | M191: 0.05635
A192: 183 | B192: HAVELLS | C192: 713.7 | D192: 718.78 | E192: 706.62 | F192: 699.53 | G192: 687.37 | H192: 725.87 | I192: 738.03 | J192: 745.12 | K192: 730.95 | L192: 711.7 | M192: 12.22862
A193: 184 | B193: HCC | C193: 13.15 | D193: 13.37 | E193: 12.73 | F193: 12.32 | G193: 11.68 | H193: 13.78 | I193: 14.42 | J193: 14.83 | K193: 14 | L193: 12.95 | M193: 87.4211
A194: 185 | B194: HCL-INSYS | C194: 22.3 | D194: 22.17 | E194: 20.83 | F194: 19.37 | G194: 18.03 | H194: 23.63 | I194: 24.97 | J194: 26.43 | K194: 23.5 | L194: 20.7 | M194: 9.86779
A195: 186 | B195: HCLTECH | C195: 1043.25 | D195: 1047.95 | E195: 1033.90 | F195: 1024.55 | G195: 1010.50 | H195: 1057.30 | I195: 1071.35 | J195: 1080.70 | K195: 1062 | L195: 1038.6 | M195: 14.03626
A196: 187 | B196: HDFC | C196: 1885.2 | D196: 1877.83 | E196: 1866.17 | F196: 1847.13 | G196: 1835.47 | H196: 1896.87 | I196: 1908.53 | J196: 1927.57 | K196: 1889.5 | L196: 1858.8 | M196: 18.28916
A197: 188 | B197: HDFCBANK | C197: 2104.25 | D197: 2101.70 | E197: 2093.10 | F197: 2081.95 | G197: 2073.35 | H197: 2112.85 | I197: 2121.45 | J197: 2132.60 | K197: 2110.3 | L197: 2090.55 | M197: 21.14511
A198: 189 | B198: HDIL | C198: 24.95 | D198: 24.98 | E198: 24.32 | F198: 23.68 | G198: 23.02 | H198: 25.62 | I198: 26.28 | J198: 26.92 | K198: 25.65 | L198: 24.35 | M198: 52.71975
A199: 190 | B199: HEG | C199: 2205.4 | D199: 2223.47 | E199: 2166.93 | F199: 2128.47 | G199: 2071.93 | H199: 2261.93 | I199: 2318.47 | J199: 2356.93 | K199: 2280 | L199: 2185 | M199: 4.36159
A200: 191 | B200: HEIDELBERG | C200: 171.2 | D200: 171.72 | E200: 168.63 | F200: 166.07 | G200: 162.98 | H200: 174.28 | I200: 177.37 | J200: 179.93 | K200: 174.8 | L200: 169.15 | M200: 3.99595
A201: 192 | B201: HERITGFOOD | C201: 480.65 | D201: 483.20 | E201: 473.45 | F201: 466.25 | G201: 456.50 | H201: 490.40 | I201: 500.15 | J201: 507.35 | K201: 492.95 | L201: 476 | M201: 0.21038
A202: 193 | B202: HEROMOTOCO | C202: 2765.85 | D202: 2774.28 | E202: 2733.57 | F202: 2701.28 | G202: 2660.57 | H202: 2806.57 | I202: 2847.28 | J202: 2879.57 | K202: 2815 | L202: 2742 | M202: 6.31138
A203: 194 | B203: HEXAWARE | C203: 356.15 | D203: 358.25 | E203: 352.45 | F203: 348.75 | G203: 342.95 | H203: 361.95 | I203: 367.75 | J203: 371.45 | K203: 364.05 | L203: 354.55 | M203: 7.45335
A204: 195 | B204: HFCL | C204: 23.8 | D204: 23.80 | E204: 22.90 | F204: 22.00 | G204: 21.10 | H204: 24.70 | I204: 25.60 | J204: 26.50 | K204: 24.7 | L204: 22.9 | M204: 73.1369
A205: 196 | B205: HIMATSEIDE | C205: 176.35 | D205: 178.05 | E205: 173.10 | F205: 169.85 | G205: 164.90 | H205: 181.30 | I205: 186.25 | J205: 189.50 | K205: 183 | L205: 174.8 | M205: 1.13464
A206: 197 | B206: HINDALCO | C206: 202.75 | D206: 202.12 | E206: 200.28 | F206: 197.82 | G206: 195.98 | H206: 204.58 | I206: 206.42 | J206: 208.88 | K206: 203.95 | L206: 199.65 | M206: 136.83897
... 304 more rows

Sheet Bulk Deals
E6: Back To Main Page
A7: Subject : | B7: BULK DEAL | D7: =Main!B10 -> 2019-03-07
A9: Date | B9: Scrip code | C9: Scrip Name | D9: Client Name | E9: Buy / Sell | F9: Quantity Traded | G9: Trade Price / Wt.Avg.trade price | H9: Exchange
A10: 2019-03-06 | B10: 540615 | C10: 7NR | D10: RATHOD MANOJ CHHAGANLAL HUF | E10: SELL | F10: 84,000 | G10: 34.75 | H10: BSE
A11: 2019-03-06 | B11: 542437 | C11: ANMOL | D11: SUNIL KUMAR GUPTA | E11: SELL | F11: 64,000 | G11: 32.9 | H11: BSE
A12: 2019-03-06 | B12: 540024 | C12: ASHARI | D12: SWETA MAULIKKUMAR SHAH | E12: BUY | F12: 113750 | G12: 6.42 | H12: BSE
A13: 2019-03-06 | B13: 540024 | C13: ASHARI | D13: VIJAY KUMAR AGGARWAL | E13: SELL | F13: 184035 | G13: 6.42 | H13: BSE
A14: 2019-03-06 | B14: 537766 | C14: BCP | D14: ACHINTYA COMMODITIES PRIVATE LIMITED | E14: BUY | F14: 496678 | G14: 41.35 | H14: BSE
A15: 2019-03-06 | B15: 537766 | C15: BCP | D15: ACHINTYA COMMODITIES PRIVATE LIMITED | E15: SELL | F15: 398078 | G15: 41.33 | H15: BSE
A16: 2019-03-06 | B16: 537766 | C16: BCP | D16: DEEPEN BHARAT SHAH | E16: SELL | F16: 325000 | G16: 41.35 | H16: BSE
A17: 2019-03-06 | B17: 540903 | C17: CRPRISK | D17: PINKI AGARWAL | E17: BUY | F17: 106000 | G17: 23.55 | H17: BSE
A18: 2019-03-06 | B18: 540903 | C18: CRPRISK | D18: RAKESH HATHIBHAI PATEL | E18: SELL | F18: 104000 | G18: 22.71 | H18: BSE
A19: 2019-03-06 | B19: 540903 | C19: CRPRISK | D19: JHAVERI TRADING & INVESTMENT PVT LTD | E19: SELL | F19: 108000 | G19: 23.55 | H19: BSE
A20: 2019-03-06 | B20: 540938 | C20: GUJHYSPIN | D20: BHAVIN R SHAH | E20: SELL | F20: 450000 | G20: 6.15 | H20: BSE
A21: 2019-03-06 | B21: 540938 | C21: GUJHYSPIN | D21: SAMIR HARSHAD MEHTA | E21: BUY | F21: 520000 | G21: 6.16 | H21: BSE
A22: 2019-03-06 | B22: 526967 | C22: HEERAISP | D22: BRHAM NARAYAN DUBEY | E22: BUY | F22: 35000 | G22: 2.75 | H22: BSE
A23: 2019-03-06 | B23: 526967 | C23: HEERAISP | D23: SANGEETA SULTANIA | E23: SELL | F23: 100,000 | G23: 2.75 | H23: BSE
A24: 2019-03-06 | B24: 526967 | C24: HEERAISP | D24: DIVYAKANDA | E24: BUY | F24: 29,670 | G24: 2.75 | H24: BSE
A25: 2019-03-06 | B25: 531337 | C25: IRISMEDIA | D25: ARVIND SHANTILAL SHAH | E25: BUY | F25: 455,000 | G25: 34.32 | H25: BSE
A26: 2019-03-06 | B26: 531337 | C26: IRISMEDIA | D26: ARVIND SHANTILAL SHAH | E26: SELL | F26: 500,000 | G26: 33.02 | H26: BSE
A27: 2019-03-06 | B27: 505840 | C27: JAIPAN | D27: CAPGROW CAPITAL ADVISORS LLP | E27: SELL | F27: 36,618 | G27: 16.7 | H27: BSE
A28: 2019-03-06 | B28: 539229 | C28: MRSS | D28: VEER ENTERPRISE | E28: SELL | F28: 103,200 | G28: 30.33 | H28: BSE
A29: 2019-03-06 | B29: 541444 | C29: PALMJEWELS | D29: ARUNA PRAMODRAY RAVAL | E29: BUY | F29: 68,000 | G29: 30.95 | H29: BSE
A30: 2019-03-06 | B30: 541444 | C30: PALMJEWELS | D30: HARSHA RAJESHBHAI JHAVERI | E30: SELL | F30: 68,000 | G30: 30.95 | H30: BSE
A31: 2019-03-06 | B31: 504335 | C31: PAZEL | D31: NIVEDITA SAKLECHA | E31: BUY | F31: 966,657 | G31: 1.23 | H31: BSE
A32: 2019-03-06 | B32: 504335 | C32: PAZEL | D32: NIVEDITA SAKLECHA | E32: SELL | F32: 304,558 | G32: 1.25 | H32: BSE
A33: 2019-03-06 | B33: 511557 | C33: PROFINC | D33: NISHIL SURENDRABHAI MARFATIA | E33: BUY | F33: 48,090 | G33: 285.61 | H33: BSE
A34: 2019-03-06 | B34: 511557 | C34: PROFINC | D34: NISHIL SURENDRABHAI MARFATIA | E34: SELL | F34: 54,511 | G34: 284.65 | H34: BSE
A35: 2019-03-06 | B35: 530517 | C35: RELAXO | D35: AFIS A/C AMERICAN FUNDS INSURANCE SERIES GROWTH INCOME FUND | E35: BUY | F35: 867,238 | G35: 715 | H35: BSE
A36: 2019-03-06 | B36: 539520 | C36: SHAILJA | D36: ARTI UPENDRA NANAVATI | E36: SELL | F36: 25,000 | G36: 18 | H36: BSE
A37: 2019-03-06 | B37: 539520 | C37: SHAILJA | D37: SAVITRI KOCHHAR | E37: SELL | F37: 32000 | G37: 18 | H37: BSE
A38: 2019-03-06 | B38: 539520 | C38: SHAILJA | D38: AMARATLAL SHAH | E38: BUY | F38: 19345 | G38: 17.97 | H38: BSE
A39: 2019-03-06 | B39: 512179 | C39: SUNTECK | D39: BNP PARIBAS ARBITRAGE | E39: BUY | F39: 2016540 | G39: 370 | H39: BSE
A40: 2019-03-06 | B40: 504220 | C40: WSIND | D40: PARI WASHINGTON CO PRIVATE LIMITED A/C EAST SAIL MAURITIUS | E40: SELL | F40: 427059 | G40: 1.46 | H40: BSE
A41: 2019-03-06 | B41: AGROPHOS | C41: Agro Phos India Limited | D41: PURAN CHAND CHOUDHARY | E41: BUY | F41: 102000 | G41: 57.81 | H41: NSE
A42: 2019-03-06 | B42: BEML | C42: BEML Limited | D42: ALPHAGREP SECURITIES PRIVATE LIMITED | E42: BUY | F42: 307969 | G42: 923.21 | H42: NSE
A43: 2019-03-06 | B43: BEML | C43: BEML Limited | D43: CROSSLAND TRADING CO | E43: BUY | F43: 217624 | G43: 923.5 | H43: NSE
A44: 2019-03-06 | B44: DHFL | C44: Dewan Housing Fin Corp | D44: A.P.T. PORTFOLIO PRIVATE LIMITED | E44: BUY | F44: 1961726 | G44: 154.2 | H44: NSE
A45: 2019-03-06 | B45: DHFL | C45: Dewan Housing Fin Corp | D45: CROSSLAND TRADING CO | E45: BUY | F45: 1712799 | G45: 153.38 | H45: NSE
A46: 2019-03-06 | B46: DHFL | C46: Dewan Housing Fin Corp | D46: TOWER RESEARCH CAPITAL MARKETS INDIA PRIVATE LIMITED | E46: BUY | F46: 2253256 | G46: 153.57 | H46: NSE
A47: 2019-03-06 | B47: EVEREADY | C47: Eveready Industries India | D47: INDIA OPPORTUNITIES GROWTH FUND LTD-PINEWOOD STRATEGY | E47: BUY | F47: 700000 | G47: 200 | H47: NSE
A48: 2019-03-06 | B48: EVEREADY | C48: Eveready Industries India | D48: OHM ENTERPRISES | E48: BUY | F48: 600000 | G48: 200 | H48: NSE
A49: 2019-03-06 | B49: EVEREADY | C49: Eveready Industries India | D49: OHM JUNIPER LONGTERM FUND LTD | E49: BUY | F49: 500000 | G49: 200 | H49: NSE
A50: 2019-03-06 | B50: JETAIRWAYS | C50: Jet Airways (India) Ltd. | D50: TOWER RESEARCH CAPITAL MARKETS INDIA PRIVATE LIMITED | E50: BUY | F50: 687563 | G50: 241.21 | H50: NSE
A51: 2019-03-06 | B51: LUXIND | C51: Lux Industries Limited | D51: ABAKKUS GROWTH FUND - 1 | E51: BUY | F51: 300000 | G51: 1228.04 | H51: NSE
A52: 2019-03-06 | B52: ONMOBILE | C52: OnMobile Global Limited | D52: ALTRUIST TECHNOLOGIES PRIVATE LIMITED | E52: BUY | F52: 570763 | G52: 33.04 | H52: NSE
A53: 2019-03-06 | B53: PCJEWELLER | C53: PC Jeweller Ltd | D53: DIVYA PORTFOLIO PRIVATE LIMITED | E53: BUY | F53: 2073171 | G53: 80.92 | H53: NSE
A54: 2019-03-06 | B54: REFEX | C54: Refex Industries Limited | D54: ANIL JAIN | E54: BUY | F54: 373163 | G54: 38.55 | H54: NSE
A55: 2019-03-06 | B55: REPCOHOME | C55: Repco Home Finance Ltd | D55: CROSSLAND TRADING CO | E55: BUY | F55: 617661 | G55: 452.48 | H55: NSE
A56: 2019-03-06 | B56: REPCOHOME | C56: Repco Home Finance Ltd | D56: GRAVITON RESEARCH CAPITAL LLP | E56: BUY | F56: 405598 | G56: 453.38 | H56: NSE
A57: 2019-03-06 | B57: SUNTECK | C57: Sunteck Realty Limited | D57: BNP PARIBAS ARBITRAGE | E57: BUY | F57: 2110027 | G57: 370.06 | H57: NSE
A58: 2019-03-06 | B58: SURANI | C58: Surani Steel Tubes Ltd. | D58: HITESHKUMAR DAMODARBHAI PATEL | E58: BUY | F58: 100000 | G58: 52.4 | H58: NSE
A59: 2019-03-06 | B59: SUZLON | C59: Suzlon Energy Limited | D59: ADROIT FINANCIAL SERVICES PRIVATE LIMITED | E59: BUY | F59: 26835512 | G59: 7.94 | H59: NSE
A60: 2019-03-06 | B60: SUZLON | C60: Suzlon Energy Limited | D60: MANSINGH HOTELS AND RESORTS LIMITED | E60: BUY | F60: 24251352 | G60: 7.94 | H60: NSE
A61: 2019-03-06 | B61: AGROPHOS | C61: Agro Phos India Limited | D61: PURAN CHAND CHOUDHARY | E61: SELL | F61: 102000 | G61: 54.07 | H61: NSE
A62: 2019-03-06 | B62: BEML | C62: BEML Limited | D62: ALPHAGREP SECURITIES PRIVATE LIMITED | E62: SELL | F62: 307958 | G62: 923.41 | H62: NSE
A63: 2019-03-06 | B63: BEML | C63: BEML Limited | D63: CROSSLAND TRADING CO | E63: SELL | F63: 217624 | G63: 924.17 | H63: NSE
A64: 2019-03-06 | B64: DHFL | C64: Dewan Housing Fin Corp | D64: A.P.T. PORTFOLIO PRIVATE LIMITED | E64: SELL | F64: 1961726 | G64: 154.29 | H64: NSE
A65: 2019-03-06 | B65: DHFL | C65: Dewan Housing Fin Corp | D65: CROSSLAND TRADING CO | E65: SELL | F65: 1712799 | G65: 153.28 | H65: NSE
A66: 2019-03-06 | B66: DHFL | C66: Dewan Housing Fin Corp | D66: INDIA INFOLINE INVESTMENT SERVICES PVT LTD | E66: SELL | F66: 3576035 | G66: 150.44 | H66: NSE
A67: 2019-03-06 | B67: DHFL | C67: Dewan Housing Fin Corp | D67: TOWER RESEARCH CAPITAL MARKETS INDIA PRIVATE LIMITED | E67: SELL | F67: 2253256 | G67: 153.56 | H67: NSE
A68: 2019-03-06 | B68: EVEREADY | C68: Eveready Industries India | D68: DSP MUTUAL FUND A/C DSP SMALL CAP FUND | E68: SELL | F68: 2173738 | G68: 200 | H68: NSE
A69: 2019-03-06 | B69: JETAIRWAYS | C69: Jet Airways (India) Ltd. | D69: TOWER RESEARCH CAPITAL MARKETS INDIA PRIVATE LIMITED | E69: SELL | F69: 687563 | G69: 241.17 | H69: NSE
A70: 2019-03-06 | B70: KEERTI | C70: Keerti Know & Skill Ltd. | D70: AJIT LAXMICHAND JAIN HUF | E70: SELL | F70: 20000 | G70: 70 | H70: NSE
A71: 2019-03-06 | B71: LAKSHVILAS | C71: Lakshmi Vilas Bank Ltd | D71: PREMJAYANTI ENTERPRISE PVT LTD | E71: SELL | F71: 1450000 | G71: 76.59 | H71: NSE
A72: 2019-03-06 | B72: LUXIND | C72: Lux Industries Limited | D72: MONET SECURITIES PRIVATE LTD | E72: SELL | F72: 246000 | G72: 1230.08 | H72: NSE
A73: 2019-03-06 | B73: PCJEWELLER | C73: PC Jeweller Ltd | D73: DIVYA PORTFOLIO PRIVATE LIMITED | E73: SELL | F73: 2075033 | G73: 81.01 | H73: NSE
A74: 2019-03-06 | B74: REFEX | C74: Refex Industries Limited | D74: ARIHANTS SECURITIES LTD | E74: SELL | F74: 100000 | G74: 38.55 | H74: NSE
A75: 2019-03-06 | B75: REFEX | C75: Refex Industries Limited | D75: MANJU DEVI | E75: SELL | F75: 100000 | G75: 38.55 | H75: NSE
A76: 2019-03-06 | B76: REFEX | C76: Refex Industries Limited | D76: RAVI KIRAN HIRANI | E76: SELL | F76: 100000 | G76: 38.55 | H76: NSE
A77: 2019-03-06 | B77: REFEX | C77: Refex Industries Limited | D77: SUNIL R HIRANI | E77: SELL | F77: 100000 | G77: 38.55 | H77: NSE
A78: 2019-03-06 | B78: REPCOHOME | C78: Repco Home Finance Ltd | D78: CROSSLAND TRADING CO | E78: SELL | F78: 617661 | G78: 452.84 | H78: NSE
A79: 2019-03-06 | B79: REPCOHOME | C79: Repco Home Finance Ltd | D79: GRAVITON RESEARCH CAPITAL LLP | E79: SELL | F79: 405598 | G79: 454.07 | H79: NSE
A80: 2019-03-06 | B80: SURANI | C80: Surani Steel Tubes Ltd. | D80: SATYANARAYAN JAGANNATH KABRA | E80: SELL | F80: 120000 | G80: 52.51 | H80: NSE
A81: 2019-03-06 | B81: SUZLON | C81: Suzlon Energy Limited | D81: ADROIT FINANCIAL SERVICES PRIVATE LIMITED | E81: SELL | F81: 26934451 | G81: 7.95 | H81: NSE
A82: 2019-03-06 | B82: SUZLON | C82: Suzlon Energy Limited | D82: MANSINGH HOTELS AND RESORTS LIMITED | E82: SELL | F82: 28431352 | G82: 7.95 | H82: NSE

Sheet Call Tracker (Equity & F&O)
M5: Back To Main Page
A6: Retail Research Technical Calls & Fundamental Performance Report for the month of March -2019
M7: =Main!B10 -> 2019-03-07
B8: Positional Call
A9: Sr.no | B9: Date | D9: Company | E9: Rec | F9: Rec Price | G9: Stop Loss*** | H9: Call Closed At | I9: Target | J9: Remark | K9: Profit / Loss per Share | L9: Gain / Loss % | M9: Status | N9: Closed Date | O9: NSE Closed Price
A10: 1 | B10: 2019-01-24 | D10: ITC | E10: Buy | F10: 279-281 | G10: 268 | I10: 305 | J10: Open | O10: =VLOOKUP(D10,Sheet2!A10:M1505,6,0) -> 285.75 | R10: R
A11: 2 | B11: 2019-03-01 | D11: UPL | E11: Sell | F11: 879-884 | G11: 922.2 | I11: 800 | J11: Open | O11: =VLOOKUP(D11,Sheet2!A11:M1806,6,0) -> 877.35 | R11: R
A12: 3 | B12: 2019-03-01 | D12: BEL | E12: Buy | F12: 83 | G12: 78.5 | H12: 86.25 | I12: 92 | J12: Profit of Rs.3.25/- | K12: =H12-F12 -> 3.25 | L12: =K12/F12 -> 3.92% | M12: Successful | N12: 2019-03-05 | R12: H
A13: 4 | B13: 2019-03-01 | D13: ZEEL | E13: Sell | F13: 477-480 | G13: 507.3 | I13: 435-425 | J13: Open | O13: =VLOOKUP(D13,Sheet2!A13:M1808,6,0) -> 470.9 | R13: R
A14: 5 | B14: 2019-03-06 | D14: MARUTI | E14: Buy | F14: 7010-7040 | G14: 6700 | I14: 7500-7600 | J14: Open | O14: =VLOOKUP(D14,Sheet2!A14:M1809,6,0) -> 7056.9 | R14: H
A18: CLBS = Closing Basis *** | F18: Reinitiated $
A19: Dividend adjusted <> | F19: Revised stoploss #
A20: Part book {}
A21: Master Trade High Risk
A22: Sr.no | B22: Date | D22: Company | E22: Rec | F22: Rec Price | G22: Stop Loss | H22: Call Closed At | I22: Target | J22: Remark | K22: Profit / Loss per share | L22: Gain / Loss per Lot | M22: Lot | N22: Status | O22: Closed Date
A23: 1 | B23: 2019-03-01 | D23: BATAINDIA MAR FUT | E23: Sell | F23: 1288 | G23: 1335 | H23: 1322 | I23: 1240 | J23: Loss of Rs.21/- | K23: =F23-H23 -> -34 | L23: =-M23*21 -> -11550 | M23: 550 | N23: UnSuccessful | O23: 2019-03-06 | R23: H
D24: BATAINDIA MAR 1240 PE | E24: Sell | F24: 23.5 | H24: 10.5 | K24: =F24-H24 -> 13 | R24: H
A25: 2 | B25: 2019-03-05 | D25: NIFTY MAR | E25: Sell | F25: 10940 | G25: 11166.6 | H25: 11065 | I25: 10700 | J25: Loss of Rs.125/- | K25: =F25-H25 -> -125 | L25: =M25*K25 -> -9375 | M25: 75 | N25: UnSuccessful | O25: 2019-03-06 | R25: R
A37: Master Trade Medium Risk
A38: Sr.no | B38: Date | D38: Company | E38: Rec | F38: Rec Price | G38: Stop Loss | H38: Call Closed At | I38: Target | J38: Remark | K38: Profit/ Loss per lot | L38: Gain / Loss per Lot | M38: Lot | N38: Status | O38: Closed Date
A39: 1 | B39: 2019-03-01 | D39: LT Mar 1320 CE | E39: Buy | F39: 24-26 | J39: Open | R39: H
D40: LT Mar 1360 CE | E40: Sell | F40: 11.5-12.5 | R40: H
A41: 2 | B41: 2019-03-05 | D41: NIFTY 07-Mar 10850 PE | E41: Buy | F41: 50-54 | I41: 80-100 | J41: Open | R41: R
A42: 3 | B42: 2019-03-06 | D42: HDFCBANK MAR 2100 CE | E42: Buy | F42: 34-36 | G42: 18 | I42: 60 | J42: Open | R42: H
B52: Smart Delivery Trade
A53: Sr.no | B53: Date | D53: Company | E53: Rec | F53: Rec Price | G53: Stop Loss*** | H53: Call Closed At | I53: Target | J53: Remark | K53: Profit / Loss per Share | L53: Gain / Loss % | M53: Status | N53: Closed Date | O53: NSE Closed Price
A54: 1 | B54: 2019-02-21 | D54: ICICIBANK | E54: Buy | F54: 351.5 | G54: 339 | H54: 360.5 | I54: 370-375 | J54: Profit of Rs.9/- | K54: =H54-F54 -> 9 | L54: =K54/F54 -> 2.56% | M54: Successful | N54: 2019-03-05 | R54: H
A55: 2 | B55: 2019-02-22 | D55: HDFC | E55: Buy | F55: 1877-1883 | G55: 1819 | I55: 2000 | J55: Open | O55: =VLOOKUP(D55,Sheet2!A77:M1572,6,0) -> 1885.2 | R55: H
A56: 3 | B56: 2019-02-27 | D56: CONCOR | E56: Buy | F56: 474.5 | G56: 458.7 | H56: 486 | I56: 500-510 | J56: Profit of Rs.11.5/- | K56: =H56-F56 -> 11.5 | L56: =K56/F56 -> 2.42% | M56: Successful | N56: 2019-03-05 | R56: R
A57: 4 | B57: 2019-03-01 | D57: MINDTREE | E57: Buy | F57: 916 | G57: 888.8 | H57: 933.5 | I57: 970 | J57: Profit of Rs.17.5/- | K57: =H57-F57 -> 17.5 | L57: =K57/F57 -> 1.91% | M57: Successful | N57: 2019-03-01 | R57: R
A58: 5 | B58: 2019-03-05 | D58: TATACHEM | E58: Buy | F58: 574-578 | G58: 548 | I58: 620 | J58: Open | O58: =VLOOKUP(D58,Sheet2!A80:M1575,6,0) -> 577 | R58: H
A59: 6 | B59: 2019-03-06 | D59: DLF | E59: Buy | F59: 174 | G59: 167 | H59: 178.5 | I59: 182 | J59: Profit of Rs.4.5/- | K59: =H59-F59 -> 4.5 | L59: =K59/F59 -> 2.59% | M59: Successful | N59: 2019-03-06 | R59: H
A60: 7 | B60: 2019-03-06 | D60: DISHTV | E60: Sell | F60: 41-41.5 | G60: 43.2 | I60: 38-37 | J60: Open | O60: =VLOOKUP(D60,Sheet2!A82:M1577,6,0) -> 40.5 | R60: H
A69: CLBS = Closing Basis *** | F69: Reinitiated $
A70: Dividend adjusted <> | F70: Revised stoploss #
B73: Momentum Call
A74: Sr.no | B74: Date | D74: Company | E74: Rec | F74: Rec Price | G74: Stop Loss | H74: Call Closed At | I74: Target | J74: Remark | K74: Profit / Loss per Share/Lot | L74: Gain / Loss % | M74: Gain / Loss per Lot | N74: Lot | O74: Status | P74: Closed Date
A75: 1 | B75: 2019-02-26 | D75: INDUSINDBK MAR FUT | E75: Buy | F75: 1492.5 | G75: 1455 | H75: 1511 | I75: 1550-1560 | J75: Profit of Rs.18.5/- | K75: =H75-F75 -> 18.5 | M75: =N75*K75 -> 5550 | N75: 300 | O75: Successful | P75: 2019-03-01 | R75: H
A76: 2 | B76: 2019-03-01 | D76: TORNTPHARM MAR FUT | E76: Buy | F76: 1802.5 | G76: 1780 | H76: 1780 | I76: 1840 | J76: Loss of Rs 22.5/- | K76: -22.5 | M76: -11250 | N76: 500 | O76: UnSuccessful | P76: 2019-03-05 | R76: N
A77: 3 | B77: 2019-03-05 | D77: TATAMOTORS MAR FUT | E77: Sell | F77: 185.5 | G77: 192 | H77: 192 | I77: 173 | J77: Loss of Rs 6.5/- | K77: =F77-H77 -> -6.5 | M77: =N77*K77 -> -13000 | N77: 2000 | O77: UnSuccessful | P77: 2019-03-05 | R77: R
A78: 4 | B78: 2019-03-05 | D78: ASIANPAINT MAR FUT | E78: Buy | F78: 1398 | G78: 1378 | H78: 1409 | I78: 1430 | J78: Profit of Rs.11/- | K78: =H78-F78 -> 11 | M78: 6600 | N78: 600 | O78: Successful | P78: 2019-03-05 | R78: N
A79: 5 | B79: 2019-03-05 | D79: COLPAL MAR FUT | E79: Buy | F79: 1249 | G79: 1233 | H79: 1260 | I79: 1275 | J79: Profit of Rs.11/- | K79: 11 | M79: 7700 | N79: 700 | O79: Successful | P79: 2019-03-06 | R79: N
A80: 6 | B80: 2019-03-06 | D80: PIDILITIND MAR FUT | E80: Buy | F80: 1156-1158 | G80: 1135 | I80: 1200 | J80: Open | R80: N
A81: 7 | B81: 2019-03-06 | D81: SUNPHARMA MAR FUT | E81: Buy | F81: 460 | G81: 448 | H81: 469.5 | I81: 480 | J81: Profit of Rs.9.5/- | K81: =H81-F81 -> 9.5 | M81: =N81*K81 -> 11400 | N81: 1200 | O81: Successful | P81: 2019-03-06 | R81: H
A82: 8 | B82: 2019-03-06 | D82: ASIANPAINT MAR FUT | E82: Buy | F82: 1397-1399 | G82: 1378 | I82: 1430 | J82: Open | R82: N
A89: CLBS = Closing Basis ***
A90: Dividend adjusted <> | F90: Reinitiated $
F91: Revised stoploss #
B92: Quick Pick Intraday
A93: Sr.no | B93: Date | D93: Company | E93: Rec | F93: Rec Price | G93: Stop Loss*** | H93: Call Closed At | I93: Target | J93: Remark | K93: Profit / Loss per Share | L93: Status | M93: Closed Date
A107: Techno -Funda (positional)
A108: Sr.no | B108: Date | D108: Company | E108: Rec | F108: Rec Price | G108: Stop Loss*** | H108: Call Closed At | I108: Target | J108: Remark | K108: Profit / Loss per Share | L108: Gain / Loss % | M108: Status | N108: Closed Date | O108: NSE Closed Price
A111: CLBS = Closing Basis *** | F111: Reinitiated $
A112: Dividend adjusted <> | F112: Revised stoploss #
B117: Investment Idea
A118: Sr.no | B118: Date | D118: Company | E118: Rec | F118: Rec Price | G118: Point of Review | H118: Close Rate | I118: Target | J118: Remark | K118: Profit / Loss per Share | L118: Gain / Loss % | M118: Status | N118: Closed Date
A119: 1 | B119: 2013-11-01 | D119: L&T Finance Holding | E119: Accu | F119: 82.00 | G119: - | H119: 100 | I119: 100.00 | J119: Target Achieved | K119: =H119-F119 -> 18.00 | L119: =K119/F119 -> 21.95% | M119: Successful | N119: 2016-10-14
A120: 2 | B120: 2014-06-04 | D120: Finolex Inds | E120: Buy | F120: 257.00 | G120: - | H120: 300 | I120: 300.00 | J120: Target Achieved | K120: =H120-F120 -> 43.00 | L120: 16.73% | M120: Successful | N120: 2014-07-02
A121: =1+A120 -> 3 | B121: 2014-07-08 | D121: JK Cement | E121: Buy | F121: 393.00 | G121: - | H121: 468 | I121: 468.00 | J121: Target Achieved | K121: =H121-F121 -> 75.00 | L121: 19.08% | M121: Successful | N121: 2014-08-12
A122: 4 | B122: 2014-08-06 | D122: Finolex Cables | E122: Buy | F122: 205.00 | G122: - | H122: 275 | I122: 250.00 | J122: Target Achieved | K122: 70.00 | L122: 34.15% | M122: Successful | N122: 2014-11-19
A123: 5 | B123: 2014-09-04 | D123: Exide Inds | E123: Buy | F123: 162.00 | G123: - | H123: 190 | I123: 190.00 | J123: Target Achieved | K123: 28.00 | L123: 17.28% | M123: Successful | N123: 2015-01-02
A124: 6 | B124: 2014-09-04 | D124: Deepak Nitrite | E124: Buy | F124: 75.00 | G124: - | H124: 91.5 | I124: 95-100 | J124: Profit of Rs.16.50/- | K124: 16.50 | L124: 22.00% | M124: Successful | N124: 2014-11-11
A125: 7 | B125: 2014-10-01 | D125: Mercks | E125: Buy | F125: 850.00 | G125: - | H125: 982.5 | I125: 1050.00 | J125: Profit of Rs.132.50/- | K125: 132.50 | L125: 15.59% | M125: Successful | N125: 2015-02-04
A126: 8 | B126: 2014-10-01 | D126: Grindwell Norton | E126: Buy | F126: 475.00 | G126: - | H126: 515 | I126: 600.00 | J126: Profit of Rs.40/- | K126: 40.00 | L126: 8.42% | M126: Successful | N126: 2014-10-27
A127: 9 | B127: 2014-10-01 | D127: Snowman Logistics | E127: Buy | F127: 86.00 | G127: - | H127: 99 | I127: 140.00 | J127: Profit of Rs.13.00/- | K127: 13.00 | L127: 15.12% | M127: Successful | N127: 2014-10-27
A128: 10 | B128: 2014-10-14 | D128: Birla Corp | E128: Buy | F128: 496.60 | G128: - | H128: 621 | I128: 580.00 | J128: Target Achieved | K128: 124.40 | L128: 25.05% | M128: Successful | N128: 2016-08-23
A129: 11 | B129: 2014-10-14 | D129: Ultratech Cem | E129: Buy | F129: 2481.90 | G129: - | H129: 2840 | I129: 2870.00 | J129: Profit of Rs.358.10/- | K129: 358.10 | L129: 14.43% | M129: Successful | N129: 2015-01-13
A130: =1+A127 -> 10 | B130: 2014-10-16 | D130: Sintex Inds | E130: Buy | F130: 84.50 | G130: - | H130: 93 | I130: 110.00 | J130: Profit of Rs.8.50/- | K130: 8.50 | L130: 10.06% | M130: Successful | N130: 2014-10-27
A131: =1+A130 -> 11 | B131: 2014-10-16 | D131: HSIL | E131: Buy | F131: 401.00 | G131: - | H131: 428 | I131: 450.00 | J131: Profit of Rs.27.00/- | K131: 27.00 | L131: 6.73% | M131: Successful | N131: 2015-01-16
A132: 12 | B132: 2014-10-16 | D132: Eveready Inds | E132: Buy | F132: 101.00 | G132: - | H132: 112 | I132: 120.00 | J132: Profit of Rs.11.00/- | K132: 11.00 | L132: 10.89% | M132: Successful | N132: 2014-10-27
A133: 13 | B133: 2014-11-11 | D133: Pennar Inds | E133: Buy | F133: 59.00 | G133: - | H133: 76 | I133: 76.00 | J133: Target Achieved | K133: 17.00 | L133: 28.81% | M133: Successful | N133: 2017-10-24
A134: 14 | B134: 2014-11-11 | D134: Snowman Logistics | E134: Buy | F134: 99.00 | G134: - | H134: 120 | I134: 120.00 | J134: Profit of Rs.21/- | K134: 21.00 | L134: 21.21% | M134: Successful | N134: 2014-11-17
A135: 15 | B135: 2014-11-13 | D135: Dharamsi Morarji Chem | E135: Buy | F135: 22.00 | G135: - | H135: 33.55 | I135: 32.00 | J135: Profit of Rs 11.55/- | K135: 11.55 | L135: 52.50% | M135: Successful | N135: 2015-07-03
A136: 16 | B136: 2014-12-03 | D136: Tatachem | E136: Buy | F136: 440.00 | G136: - | H136: 520 | I136: 520.00 | J136: Profit of Rs 80.00/- | K136: 80.00 | L136: 18.18% | M136: Successful | N136: 2015-07-23
A137: 17 | B137: 2014-12-03 | D137: Advanta | E137: Buy | F137: 360.00 | G137: - | H137: 427 | I137: 425.00 | J137: Profit of Rs.67.00/- | K137: 67.00 | L137: 18.61% | M137: Successful | N137: 2015-02-23
A138: 18 | B138: 2015-01-08 | D138: GDL | E138: Buy | F138: 360.00 | G138: - | H138: 455 | I138: 420.00 | J138: Profit of Rs.95.00/- | K138: 95.00 | L138: 26.39% | M138: Successful | N138: 2015-01-20
A139: 19 | B139: 2015-01-08 | D139: NRB Bearing | E139: Buy | F139: 130.00 | H139: 175.5 | I139: 165.00 | J139: Profit of Rs 45.50/- | K139: 45.50 | L139: 35.00% | M139: Successful | N139: 2017-12-19
A140: 20 | B140: 2015-02-05 | D140: GSFC | E140: Accu | F140: 98.00 | H140: 120 | I140: 120.00 | J140: Target Achieved | K140: 22.00 | L140: 22.45% | M140: Successful | N140: 2017-01-18
A141: 21 | B141: 2015-02-05 | D141: Sundrmfast | E141: Accu | F141: 196.00 | H141: 262 | I141: 255.00 | J141: Target Achieved | K141: 66.00 | L141: 33.67% | M141: Successful | N141: 2016-08-17
A142: 22 | B142: 2015-03-04 | D142: GPPL | E142: Accu | F142: 235 | H142: 77.00 | I142: 280-285 | J142: Loss of Rs.158/- | K142: =H142-F142 -> -158.00 | L142: -67.23% | M142: Unsuccessful | N142: 2019-02-26
A143: 23 | B143: 2015-03-04 | D143: ORIENTCEM | E143: Accu | F143: 185.00 | H143: 224 | I143: 220-225 | J143: Target Achieved | K143: 39.00 | L143: =K143/F143 -> 21.08% | M143: Successful | N143: 2016-10-04
A144: 24 | B144: 2015-03-27 | D144: PFS | E144: Accu | F144: 49-50 | I144: 67.00 | J144: Open
A145: 25 | B145: 2015-03-30 | D145: Walchandnagar Ind Ltd | E145: Accu | F145: 183.50 | H145: 219 | I145: 218.00 | J145: Profit of Rs.35.50/- | K145: 35.50 | L145: =K145/F145 -> 19.35% | M145: Successful | N145: 2015-04-09
A146: 26 | B146: 2015-04-20 | D146: Kalpataru Power Transmission Ltd | E146: Accu | F146: =(227+237)/2 -> 232.00 | H146: 298 | I146: 298.00 | J146: Target Achieved | K146: 66.00 | L146: 28.45% | M146: Successful | N146: 2017-03-29
A147: 27 | B147: 2015-05-04 | D147: Mastek Ltd | E147: Buy | F147: 385.00 | H147: =212.5+331 -> 543.5 | I147: 510.00 | J147: Profit of Rs 158.50/- | K147: 158.50 | L147: 41.17% | M147: Successful | N147: 2015-08-19
A148: 28 | B148: 2015-05-04 | D148: Suprajit Eng | E148: Buy | F148: 115.50 | H148: 146 | I148: 142.00 | J148: Profit of Rs 30.50/- | K148: 30.50 | L148: 26.41% | M148: Successful | N148: 2015-07-17
A149: 29 | B149: 2015-05-27 | D149: TCI | E149: Buy | F149: 237.50 | H149: 279.5 | I149: 278.00 | J149: Target Achieved | K149: 42.00 | L149: 17.68% | M149: Successful | N149: 2015-08-06
A150: 30 | B150: 2015-06-19 | D150: HSIL | E150: Accu | F150: 340.00 | H150: 448 | I150: 448.00 | J150: Target Achieved | K150: 108.00 | L150: 31.76% | M150: Successful | N150: 2017-10-10
A151: 31 | B151: 2015-07-06 | D151: Capital First | E151: Accu | F151: 390.00 | H151: 460 | I151: 460.00 | J151: Target Achieved | K151: 70.00 | L151: 17.95% | M151: Successful | N151: 2016-04-18
A152: 32 | B152: 2015-07-10 | D152: Dolphin OffShore | E152: Accu | F152: 122.5 | H152: 61.00 | I152: 172.00 | J152: Loss of Rs.61.50/- | K152: -61.50 | L152: -50.20% | M152: Unsuccessful | N152: 2018-08-21
A153: 33 | B153: 2015-08-03 | D153: Allcargo logistics | E153: Accu | F153: 297.50 | H153: 350 | I153: 360.00 | J153: Profit of Rs 52.50/- | K153: 52.50 | L153: =K153/F153 -> 17.65% | M153: Successful | N153: 2015-08-16
A154: 34 | B154: 2015-08-03 | D154: Camline Fine | E154: Accu | F154: 115.50 | H154: 149 | I154: 140.00 | J154: Profit of Rs 33.50/- | K154: 33.50 | L154: 29.00% | M154: Successful | N154: 2017-01-05
A155: 35 | B155: 2015-09-04 | D155: TCI | E155: Accu | F155: 226.00 | H155: 292 | I155: 292.00 | J155: Target Achieved | K155: 66.00 | L155: 29.20% | M155: Successful | N155: 2015-10-09
A156: 36 | B156: 2015-09-07 | D156: Kalpataru Power Transmission Ltd | E156: Accu | F156: 232.50 | H156: 312.5 | I156: 310.00 | J156: Target Achieved | K156: 80.00 | L156: 34.41% | M156: Successful | N156: 2017-03-29
A157: 37 | B157: 2015-09-21 | D157: LLOYD ELECTRIC & ENG LTD | E157: Accu | F157: 196.50 | H157: 238 | I157: 238.00 | J157: Target Achieved | K157: 41.50 | L157: 21.12% | M157: Successful | N157: 2015-10-14
A158: 38 | B158: 2015-09-24 | D158: L&T Finance Holding | E158: Accu | F158: 65.00 | H158: 82 | I158: 82.00 | J158: Target Achieved | K158: 17.00 | L158: 26.15% | M158: Successful | N158: 2016-07-27
A159: 39 | B159: 2015-10-14 | D159: KEC International ltd | E159: Accu | F159: 144.00 | H159: 182.5 | I159: 181.00 | J159: Target Achieved | K159: 38.50 | L159: 26.74% | M159: Successful | N159: 2017-03-23
A160: 40 | B160: 2015-10-14 | D160: Gruh Finance | E160: Accu | F160: 264.00 | H160: 311 | I160: 311.00 | J160: Target Achieved | K160: 47.00 | L160: 17.80% | M160: Successful | N160: 2016-08-22
A161: 41 | B161: 2015-11-10 | D161: Pidilitind | E161: Buy | F161: 549.50 | H161: 630 | I161: 630.00 | J161: Target Achieved | K161: 80.50 | L161: 14.65% | M161: Successful | N161: 2016-02-19
A162: 42 | B162: 2015-12-04 | D162: Zensar Technology | E162: Accu | F162: 1027.50 | H162: 1315 | I162: 1250.00 | J162: Target Achieved | K162: =H162-F162 -> 287.50 | L162: 27.98% | M162: Successful | N162: 2018-05-24
A163: 43 | B163: 2015-12-29 | D163: Vinati Organics Ltd | E163: Accu | F163: 465.00 | H163: 540 | I163: 540.00 | J163: Target Achieved | K163: 75.00 | L163: =K163/F163 -> 16.13% | M163: Successful | N163: 2016-06-09
A164: 44 | B164: 2016-01-11 | D164: GSFC | E164: Buy | F164: 81.00 | H164: 110 | I164: 110.00 | J164: Target Achieved | K164: 29.00 | L164: 35.80% | M164: Successful | N164: 2017-01-10
A165: 45 | B165: 2016-01-13 | D165: SSWL | E165: Buy | F165: 417.50 | H165: 547 | I165: 535.00 | J165: Target Achieved | K165: 129.50 | L165: 31.02% | M165: Successful | N165: 2016-07-27
A166: 46 | B166: 2016-02-08 | D166: Persistent System Ltd | E166: Accu | F166: 650.00 | H166: 800 | I166: 800.00 | J166: Target Achieved | K166: 150.00 | L166: 23.08% | M166: Successful | N166: 2018-02-23
A167: 47 | B167: 2016-03-04 | D167: UPL | E167: Accu | F167: 437.50 | H167: 504.5 | I167: 522.00 | J167: Profit of Rs.67/- | K167: 67.00 | L167: 15.31% | M167: Successful | N167: 2016-04-20
A168: 48 | B168: 2016-03-09 | D168: Ashoka Buildcon Ltd | E168: Accu | F168: 189.50 | H168: 218 | I168: 218.00 | J168: Target Achieved | K168: 28.50 | L168: 15.04% | M168: Successful | N168: 2017-10-26
A169: 49 | B169: 2016-04-11 | D169: PTC INDIA FIN SERV LTD | E169: Accu | F169: 36-37 | I169: 60.00 | J169: Open
A170: 50 | B170: 2016-04-12 | D170: CAMLINFINE $ | E170: Accu | F170: 93.00 | H170: 149 | I170: 140.00 | J170: Profit of Rs 56/- | K170: 56.00 | L170: =K170/F170 -> 60.22% | M170: Successful | N170: 2017-01-05
A171: 51 | B171: 2016-04-12 | D171: Greaves Cotton Ltd. | E171: Accu | F171: 130.00 | H171: 150 | I171: 150-155 | J171: Target Achieved | K171: 20.00 | L171: 15.38% | M171: Successful | N171: 2016-07-13
A172: 52 | B172: 2016-04-13 | D172: DHFL | E172: Accu | F172: 196.00 | H172: 299 | I172: 299.00 | J172: Target Achieved | K172: 103.00 | L172: 52.55% | M172: Successful | N172: 2016-09-07
A173: 53 | B173: 2016-04-13 | D173: Magma | E173: Accu | F173: 88.00 | H173: 103 | I173: 103.00 | J173: Target Achieved | K173: 15.00 | L173: 17.05% | M173: Successful | N173: 2016-06-09
A174: 54 | B174: 2016-05-02 | D174: KEC International ltd $ | E174: Accu | F174: 127.50 | H174: 148 | I174: 148-150 | J174: Target Achieved | K174: 20.50 | L174: 16.08% | M174: Successful | N174: 2016-07-13
A175: 55 | B175: 2016-05-03 | D175: Mindtree | E175: Accu | F175: 675.00 | H175: 815 | I175: 790-800 | J175: Target Achieved | K175: 140.00 | L175: 20.74% | M175: Successful | N175: 2018-02-23
A176: 56 | B176: 2016-06-01 | D176: Atulauto | E176: Accu | F176: 495-505 | I176: 565-570 | J176: Open
A177: 57 | B177: 2016-06-06 | D177: TRITURBINE | E177: Accu | F177: 110.00 | H177: 126.5 | I177: 125.00 | J177: Profit of Rs.16.50/- | K177: 16.50 | L177: =K177/F177 -> 15.00% | M177: Successful | N177: 2016-07-01
A178: 58 | B178: 2016-06-17 | D178: Pennar Industries Ltd | E178: Accu | F178: 44.00 | H178: 69.5 | I178: 69.50 | J178: Profit of Rs.25.50/- | K178: 25.50 | L178: =K178/F178 -> 57.95% | M178: Successful | N178: 2017-08-30
A179: 59 | B179: 2016-06-28 | D179: EVEREADY INDS. IND. LTD. | E179: Accu | F179: 262.50 | H179: 340 | I179: 333.00 | J179: Profit of Rs.77.50/- | K179: 77.50 | L179: =K179/F179 -> 29.52% | M179: Successful | N179: 2017-10-09
A180: 60 | B180: 2016-06-28 | D180: FIEM INDUSTRIES LIMITED | E180: Accu | F180: 840.00 | H180: 1230 | I180: 1230.00 | J180: Target Achieved | K180: 390.00 | L180: =K180/F180 -> 46.43% | M180: Successful | N180: 2016-10-06
A181: 61 | B181: 2016-07-05 | D181: Bajaj Corp Ltd | E181: Accu | F181: 395 | H181: 468.50 | I181: 510.00 | J181: Part profit of Rs.73.50/- | K181: 73.50 | L181: =K181/F181 -> 19% | M181: Successful | N181: 2017-08-30
A182: 62 | B182: 2016-08-02 | D182: GPPL $ | E182: Buy | F182: 169.5 | H182: 77.00 | I182: 198-200 | J182: Loss of Rs.92.5/- | K182: -92.50 | L182: =K182/F182 -> -54.57% | M182: Unsuccessful | N182: 2019-02-26
A183: 63 | B183: 2016-08-04 | D183: WONDERLA HOLIDAYS LTD | E183: Accu | F183: 395-405 | I183: 475.00 | J183: Open
A184: 64 | B184: 2016-08-11 | D184: CAMLINFINE | E184: Accu | F184: 86.50 | H184: 130 | I184: 130.00 | J184: Profit of Rs.43.50/- | K184: =H184-F184 -> 43.50 | L184: =K184/F184 -> 50.29% | M184: Successful | N184: 2017-12-22
A185: 65 | B185: 2016-08-18 | D185: GRANULES | E185: Accu | F185: 133.5 | H185: 126.50 | I185: 178.00 | J185: Exit | K185: -7.00 | L185: -5.24% | M185: Unsuccessful | N185: 2016-09-02
A186: 66 | B186: 2016-08-31 | D186: VA TECH WABAG | E186: Accu | F186: 560.00 | H186: 725 | I186: 725.00 | J186: Target Achieved | K186: 165.00 | L186: 29.46% | M186: Successful | N186: 2016-03-27
A187: 67 | B187: 2016-09-01 | D187: SKIPPER LIMITED | E187: Accu | F187: 160.50 | H187: 210 | I187: 210.00 | J187: Target Achieved | K187: 49.50 | L187: 30.84% | M187: Successful | N187: 2017-05-16
A188: 68 | B188: 2016-10-03 | D188: IFB Industries | E188: Accu | F188: 430.00 | H188: 596 | I188: 575.00 | J188: Profit of Rs.166/- | K188: 166.00 | L188: 38.60% | M188: Successful | N188: 2017-02-03
A189: 69 | B189: 2016-10-14 | D189: ASIANTILES | E189: Accu | F189: 280.00 | H189: 345 | I189: 345.00 | J189: Target Achieved | K189: 65.00 | L189: 23.21% | M189: Successful | N189: 2017-03-20
A190: 70 | B190: 2016-10-14 | D190: DEEPIND | E190: Accu | F190: 245.00 | H190: 325.5 | I190: 330.00 | J190: Profit of Rs.80.5/- | K190: 80.50 | L190: 32.86% | M190: Successful | N190: 2017-02-03
A191: 71 | B191: 2016-10-17 | D191: DCBBANK | E191: Accu | F191: 125.00 | H191: 160 | I191: 160.00 | J191: Target Achieved | K191: 35.00 | L191: 28.00% | M191: Successful | N191: 2017-03-09
A192: 72 | B192: 2016-10-17 | D192: ORIENTREF | E192: Accu | F192: 114.00 | H192: 145 | I192: 145.00 | J192: Target Achieved | K192: 31.00 | L192: =K192/F192 -> 27.19% | M192: Successful | N192: 2017-05-04
A193: 73 | B193: 2016-10-17 | D193: GANECOS | E193: Accu | F193: 212.00 | H193: 280 | I193: 276.00 | J193: Profit of Rs.68/- | K193: 68.00 | L193: =K193/F193 -> 32.08% | M193: Successful | N193: 2017-05-03
A194: 74 | B194: 2016-11-04 | D194: NBCC | E194: Accu | F194: 155.00 | H194: 210 | I194: 210.00 | J194: Profit of Rs.55/- | K194: 55.00 | L194: =K194/F194 -> 35.48% | M194: Successful | N194: 2017-07-28
A195: 75 | B195: 2016-12-06 | D195: PRECAM | E195: Accu | F195: 150.5 | H195: 72.50 | I195: 174.00 | J195: Loss of Rs.78/- | K195: -78.00 | L195: =K195/F195 -> -51.83% | M195: Unsuccessful | N195: 2018-08-21
A196: 76 | B196: 2016-12-08 | D196: INFRATEL | E196: Accu | F196: 380.00 | H196: 478 | I196: 468.00 | J196: Target Achieved | K196: 98.00 | L196: =K196/F196 -> 25.79% | M196: Successful | N196: 2017-10-17
A197: 77 | B197: 2016-12-30 | D197: GODREJPROP | E197: Accu | F197: 305.00 | H197: 375 | I197: 375.00 | J197: Target Achieved | K197: 70.00 | L197: 22.95% | M197: Successful | N197: 2017-02-02
A198: 78 | B198: 2017-01-04 | D198: DEEPAKNTR | E198: Accu | F198: 99.50 | H198: 158 | I198: 158.00 | J198: Target Achieved | K198: 58.50 | L198: 58.79% | M198: Successful | N198: 2017-06-12
A199: 79 | B199: 2017-02-20 | D199: SUBROS | E199: Accu | F199: 202.50 | H199: 234 | I199: 234.00 | J199: Target Achieved | K199: 31.50 | L199: 15.56% | M199: Successful | N199: 2017-04-11
A200: 80 | B200: 2017-02-20 | D200: RECLTD | E200: Accu | F200: 140.50 | H200: 220 | I200: 220.00 | J200: Target Achieved | K200: 79.50 | L200: 56.58% | M200: Successful | N200: 2017-05-09
A201: 81 | B201: 2017-03-24 | D201: VRLLOG | E201: Accu | F201: 300.50 | H201: 417.5 | I201: 420.00 | J201: Profit of Rs.117/- | K201: 117.00 | L201: 38.94% | M201: Successful | N201: 2017-12-01
A202: 82 | B202: 2017-03-24 | D202: FIEMIND | E202: Accu | F202: 850.00 | H202: 1042.5 | I202: 1023.00 | J202: Profit of Rs 192.50/- | K202: 192.50 | L202: 22.65% | M202: Successful | N202: 2017-04-05
A203: 83 | B203: 2017-04-05 | D203: RATNAMANI | E203: Accu | F203: 785.00 | H203: 930 | I203: 920.00 | J203: Profit of Rs.145/- | K203: 145.00 | L203: 18.47% | M203: Successful | N203: 2017-08-29
A204: 84 | B204: 2017-04-06 | D204: ZEEMEDIA | E204: Accu | F204: 40 | H204: 13.10 | I204: 60.00 | J204: Loss of Rs.26.9/- | K204: =H204-F204 -> -26.90 | L204: -67.25% | M204: Unsuccessful | N204: 2018-02-07
A205: 85 | B205: 2017-04-12 | D205: DABUR | E205: Accu | F205: 289.50 | H205: 354 | I205: 360.00 | J205: Profit of Rs.64.5/- | K205: 64.50 | L205: =K205/F205 -> 22.28% | M205: Successful | N205: 2017-11-01
A206: 86 | B206: 2017-04-20 | D206: KPRMILL | E206: Accu | F206: 700.00 | H206: 840 | I206: 840.00 | J206: Profit of Rs.140/- | K206: 140.00 | L206: =K206/F206 -> 20.00% | M206: Successful | N206: 2017-06-07
A207: 87 | B207: 2017-05-22 | D207: GREAVESCOT | E207: Accu | F207: 153-158 | I207: 190.00 | J207: Open
A208: 88 | B208: 2017-06-01 | D208: ESSELPACK | E208: Accu | F208: 130 | H208: 155.50 | I208: 170.00 | J208: Part profit of Rs.51/- | K208: =H208-F208 -> 25.50 | L208: =K208/F208 -> 20% | M208: Successful | N208: 2017-11-17
A209: 89 | B209: 2017-06-15 | D209: KEI | E209: Accu | F209: 214.50 | H209: 262 | I209: 262.00 | J209: Profit of Rs.47.5/- | K209: =H209-F209 -> 47.50 | L209: 22.14% | M209: Successful | N209: 2017-08-30
A210: 90 | B210: 2017-07-17 | D210: MAYURUNIQ | E210: Accu | F210: 370.00 | H210: 447.5 | I210: 450.00 | J210: Target Achieved | K210: 77.50 | L210: 20.95% | M210: Successful | N210: 2017-10-27
A211: 91 | B211: 2017-07-27 | D211: RAMCOCEM | E211: Accu | F211: 657.50 | H211: 825 | I211: 820.00 | J211: Target Achieved | K211: 167.50 | L211: 25.48% | M211: Successful | N211: 2017-12-21
A212: 92 | B212: 2017-08-17 | D212: FINPIPE | E212: Accu | F212: 605.00 | H212: 750 | I212: 750.00 | J212: Profit of Rs.145/- | K212: 145.00 | L212: 23.97% | M212: Successful | N212: 2017-10-19
A213: 93 | B213: 2017-09-01 | D213: SHK | E213: Accu | F213: 255 | H213: 307.50 | I213: 320.00 | J213: Part profit of Rs.52.5/- | K213: 52.50 | L213: 21% | M213: Successful | N213: 2017-12-29
A214: 94 | B214: 2017-09-19 | D214: SKIPPER | E214: Accu | F214: 215.00 | H214: 258 | I214: 258.00 | J214: Target Achieved | K214: 43.00 | L214: 20.00% | M214: Successful | N214: 2017-11-01
A215: 95 | B215: 2017-09-20 | D215: CAMLINFINE | E215: Accu | F215: 75.00 | H215: 90 | I215: 90.00 | J215: Profit of Rs.15.00/- | K215: 15.00 | L215: 20.00% | M215: Successful | N215: 2017-10-11
A216: 96 | B216: 2017-10-03 | D216: GNA | E216: Accu | F216: 315.00 | H216: 392 | I216: 384.00 | J216: Profit of Rs.77/- | K216: 77.00 | L216: 24.44% | M216: Successful | N216: 2017-10-09
A217: 97 | B217: 2017-10-05 | D217: NOCIL | E217: Accu | F217: 145.00 | H217: 179 | I217: 180.00 | J217: Profit of Rs.34/- | K217: 34.00 | L217: 23.45% | M217: Successful | N217: 2017-10-17
A218: 98 | B218: 2017-10-06 | D218: CENTURYPLY | E218: Accu | F218: 256.00 | H218: 323 | I218: 320.00 | J218: Target Achieved | K218: 67.00 | L218: 26.17% | M218: Successful | N218: 2017-11-28
A219: 99 | B219: 2017-10-09 | D219: RECLTD | E219: Accu | F219: 152.5 | H219: 183.50 | I219: 210.00 | J219: Part Profit of Rs.31/- | K219: 31.00 | L219: 20% | M219: Successful | N219: 2017-11-03
A220: 100 | B220: 2017-10-09 | D220: EIHOTEL | E220: Accu | F220: 137.50 | H220: 184 | I220: 183.00 | J220: Profit of Rs.46.5/- | K220: 46.50 | L220: 33.82% | M220: Successful | N220: 2018-01-08
A221: 101 | B221: 2017-10-10 | D221: BOROSIL | E221: Accu | F221: 895.00 | H221: 1122.5 | I221: 1078.00 | J221: Profit of Rs.227.5/- | K221: 227.50 | L221: 25.42% | M221: Successful | N221: 2018-01-17
A222: 102 | B222: 2017-10-10 | D222: NRBBEARING | E222: Accu | F222: 125.50 | H222: 158 | I222: 155.00 | J222: Profit of Rs.32.5/- | K222: 32.50 | L222: 25.90% | M222: Successful | N222: 2017-11-28
A223: 103 | B223: 2017-10-12 | D223: CYIENT | E223: Accu | F223: 525.00 | H223: 629 | I223: 629.00 | J223: Target Achieved | K223: 104.00 | L223: 19.81% | M223: Successful | N223: 2018-01-19
A224: 104 | B224: 2017-11-07 | D224: HATSUN | E224: Accu | F224: 740.00 | H224: 892.5 | I224: 900.00 | J224: Profit of Rs.152.5/- | K224: 152.50 | L224: 20.61% | M224: Successful | N224: 2017-11-13
A225: 105 | B225: 2017-12-04 | D225: SANGHIIND | E225: Accu | F225: 118.50 | H225: 143.5 | I225: 145.00 | J225: Profit of Rs.25/- | K225: 25.00 | L225: 21.10% | M225: Successful | N225: 2017-12-28
A226: 106 | B226: 2017-12-05 | D226: ALLCARGO | E226: Accu | F226: 177.5 | H226: 215.00 | I226: 230.00 | J226: Part Profit of Rs.37.5/- | K226: 37.50 | L226: 21% | M226: Successful | N226: 2017-12-27
A227: 107 | B227: 2017-12-21 | D227: KAJARIACER | E227: Accu | F227: 710-720 | I227: 872.00 | J227: Open
A228: 108 | B228: 2017-12-29 | D228: GNA | E228: Accu | F228: 435.00 | H228: 542.5 | I228: 539.00 | J228: Target Achieved | K228: =H228-F228 -> 107.50 | L228: =K228/F228 -> 24.71% | M228: Successful | N228: 2018-04-16
A229: 109 | B229: 2017-12-29 | D229: ZENSARTECH | E229: Accu | F229: 885.00 | H229: 1090 | I229: 1084.00 | J229: Target Achieved | K229: 205.00 | L229: =K229/F229 -> 23.16% | M229: Successful | N229: 2018-04-23
A230: 110 | B230: 2018-02-07 | D230: GREAVESCOT | E230: Accu | F230: 130-132 | I230: 190.00 | J230: Open
A231: 111 | B231: 2018-02-27 | D231: MOLDTKPAC | E231: Accu | F231: 320-330 | I231: 398.00 | J231: Open
A232: 112 | B232: 2018-03-05 | D232: LICHSGFIN | E232: Accu | F232: 505-515 | I232: 672.00 | J232: Open
A233: 113 | B233: 2018-04-02 | D233: EVERESTIND | E233: Accu | F233: 492.5 | H233: 589.00 | I233: 613.00 | J233: Part Profit of Rs.37.5/- | K233: =H233-F233 -> 96.50 | L233: =K233/F233 -> 20% | M233: Successful | N233: 2018-08-21
A234: 114 | B234: 2018-04-04 | D234: GPPL | E234: Accu | F234: 141.5 | H234: 77.00 | I234: 180.00 | J234: Loss of Rs.64.5/- | K234: -64.50 | L234: -45.58% | M234: Unsuccessful | N234: 2019-02-26
A235: 115 | B235: 2018-04-19 | D235: MANPASAND | E235: Accu | F235: 430 | H235: 220.00 | I235: 537.00 | J235: Loss of Rs.210/- | K235: =H235-F235 -> -210.00 | L235: =K235/F235 -> -48.84% | M235: Unsuccessful | N235: 2018-06-01
A236: 116 | B236: 2018-04-30 | D236: HEIDELBERG | E236: Accu | F236: 154-158 | I236: 196.00 | J236: Open
A237: 117 | B237: 2018-05-17 | D237: PHILIPCARB | E237: Accu | F237: 230-240 | I237: 348.00 | J237: Open
A238: 118 | B238: 2018-06-07 | D238: KEC | E238: Accu | F238: 340-345 | I238: 439.00 | J238: Open
A239: 119 | B239: 2018-07-04 | D239: ASHOKLEY | E239: Accu | F239: 125-130 | I239: 170.00 | J239: Open
A240: 120 | B240: 2018-07-13 | D240: FCONSUMER | E240: Accu | F240: 46-47 | I240: 59.00 | J240: Open
A241: 121 | B241: 2018-07-25 | D241: ZEEMEDIA | E241: Accu | F241: 27.5 | H241: 13.10 | I241: 60.00 | J241: Loss of Rs.14.40/- | K241: =H241-F241 -> -14.40 | L241: =K241/F241 -> -52.36% | M241: Unsuccessful | N241: 2018-02-07
A242: 122 | B242: 2018-08-06 | D242: GABRIEL | E242: Accu | F242: 148-152 | I242: 182.00 | J242: Open
A243: 123 | B243: 2018-08-23 | D243: INDIANHUME | E243: Accu | F243: 285.00 | H243: 355 | I243: 364.00 | J243: Profit of Rs.70/- | K243: =H243-F243 -> 70.00 | L243: =K243/F243 -> 24.56% | M243: Successful | N243: 2018-12-21
A244: 124 | B244: 2018-08-29 | D244: GRINDWELL | E244: Accu | F244: 520-530 | I244: 635.00 | J244: Open
A245: 125 | B245: 2018-10-22 | D245: FINPIPE | E245: Accu | F245: 475.00 | H245: 574 | I245: 570.00 | J245: Target Achieved | K245: =H245-F245 -> 99.00 | L245: =K245/F245 -> 20.84% | M245: Successful | N245: 2018-10-30
A246: 126 | B246: 2018-10-23 | D246: JKPAPER | E246: Accu | F246: 158-162 | I246: 191.00 | J246: Open
A247: 127 | B247: 2018-10-24 | D247: GULFOILLUB | E247: Accu | F247: 707.50 | H247: 872 | I247: 872.00 | J247: Target Achieved | K247: =H247-F247 -> 164.50 | L247: =K247/F247 -> 23.25% | M247: Successful | N247: 2019-01-17
A248: 128 | B248: 2018-10-25 | D248: GODREJCP | E248: Accu | F248: 707.5 | H248: 850.00 | I248: 890.00 | J248: Part Profit of Rs.142.5/- | K248: =H248-F248 -> 142.50 | L248: =K248/F248 -> 20% | M248: Successful | N248: 2018-12-19
A249: 129 | B249: 2018-10-25 | D249: DBCORP | E249: Accu | F249: 164 | H249: 195.50 | I249: 209.00 | J249: Part Profit of Rs.31.5/- | K249: =H249-F249 -> 31.50 | L249: =K249/F249 -> 19% | M249: Successful | N249: 2019-03-06
A250: 130 | B250: 2018-10-26 | D250: RITES | E250: Accu | F250: 240.00 | H250: 297 | I250: 297.00 | J250: Target Achieved | K250: =H250-F250 -> 57.00 | L250: =K250/F250 -> 23.75% | M250: Successful | N250: 2018-11-13
A251: 131 | B251: 2018-12-05 | D251: CCL | E251: Accu | F251: 260-270 | I251: 321.00 | J251: Open
A252: 132 | B252: 2018-12-05 | D252: VARROC | E252: Accu | F252: 710-720 | I252: 840.00 | J252: Open
A253: 133 | B253: 2018-12-05 | D253: BRIGADE | E253: Accu | F253: 202.5 | H253: 242.50 | I253: 252.00 | J253: Part Profit of Rs.40/- | K253: =H253-F253 -> 40.00 | L253: =K253/F253 -> 20% | M253: Successful | N253: 2018-12-26
A254: 134 | B254: 2018-12-31 | D254: JKCEMENT | E254: Accu | F254: 705-715 | I254: 866.00 | J254: Open
A255: 135 | B255: 2019-01-04 | D255: MGL | E255: Accu | F255: 890-900 | I255: 1185.00 | J255: Open
A256: 136 | B256: 2019-02-26 | D256: MARICO | E256: Accu | F256: 335-345 | I256: 411.00 | J256: Open
F260: Reinitiated $
A262: Disclaimer:
A263: This document has been prepared by the Retail Research Desk of Asit C Mehta
A264: Investment Intermediates Ltd. and is meant for use of the recipient only
A265: and is not for circulation. This document is not to be reported or
A266: copied or made available to others. It should not be considered to be
... 6 more rows

Sheet Sheet2 (hidden)
A1: SYMBOL | B1: SERIES | C1: OPEN | D1: HIGH | E1: LOW | F1: CLOSE | G1: LAST | H1: PREVCLOSE | I1: TOTTRDQTY | J1: TOTTRDVAL | K1: TIMESTAMP | L1: TOTALTRADES | M1: ISIN | N1: ISIN
A2: 20MICRONS | B2: EQ | C2: 40.4 | D2: 41.45 | E2: 39.75 | F2: 40.55 | G2: 40.4 | H2: 39.85 | I2: 38445 | J2: 1564699.7 | K2: 2019-03-06 | L2: 401 | M2: INE144J01027
A3: 21STCENMGM | B3: EQ | C3: 18.45 | D3: 18.45 | E3: 18.35 | F3: 18.45 | G3: 18.35 | H3: 18.1 | I3: 1871 | J3: 34469.55 | K3: 2019-03-06 | L3: 22 | M3: INE253B01015
A4: 3IINFOTECH | B4: EQ | C4: 3.75 | D4: 3.9 | E4: 3.6 | F4: 3.8 | G4: 3.85 | H4: 3.7 | I4: 5807248 | J4: 22099084.55 | K4: 2019-03-06 | L4: 1444 | M4: INE748C01020
A5: 3MINDIA | B5: EQ | C5: 23628 | D5: 24000.05 | E5: 22951 | F5: 23252.1 | G5: 22952 | H5: 23450.65 | I5: 6683 | J5: 158291512.9 | K5: 2019-03-06 | L5: 2514 | M5: INE470A01017
A6: 3PLAND | B6: EQ | C6: 11 | D6: 11.65 | E6: 10.7 | F6: 10.7 | G6: 10.7 | H6: 11.2 | I6: 45 | J6: 499.2 | K6: 2019-03-06 | L6: 5 | M6: INE105C01023
A7: 5PAISA | B7: EQ | C7: 245 | D7: 247.05 | E7: 226.05 | F7: 229.2 | G7: 235 | H7: 234.6 | I7: 14621 | J7: 3446108.95 | K7: 2019-03-06 | L7: 377 | M7: INE618L01018
A8: 63MOONS | B8: EQ | C8: 86.2 | D8: 87.1 | E8: 84.65 | F8: 85.25 | G8: 85.3 | H8: 85.5 | I8: 198616 | J8: 17010838.4 | K8: 2019-03-06 | L8: 2931 | M8: INE111B01023
A9: 8KMILES | B9: EQ | C9: 116 | D9: 116 | E9: 109 | F9: 110 | G9: 109.8 | H9: 111.9 | I9: 452309 | J9: 50755105.1 | K9: 2019-03-06 | L9: 5031 | M9: INE650K01021
A10: A2ZINFRA | B10: BE | C10: 19.1 | D10: 19.35 | E10: 18.6 | F10: 19.2 | G10: 19.35 | H10: 18.45 | I10: 715466 | J10: 13738881.85 | K10: 2019-03-06 | L10: 1107 | M10: INE619I01012
A11: AARTIDRUGS | B11: EQ | C11: 591 | D11: 631.35 | E11: 588.5 | F11: 628.75 | G11: 630 | H11: 592.1 | I11: 33275 | J11: 20663278.25 | K11: 2019-03-06 | L11: 1997 | M11: INE767A01016
A12: AARTIIND | B12: EQ | C12: 1487 | D12: 1520 | E12: 1478.05 | F12: 1517.35 | G12: 1518 | H12: 1463.95 | I12: 160500 | J12: 241601748.1 | K12: 2019-03-06 | L12: 9446 | M12: INE769A01020
A13: AARVEEDEN | B13: EQ | C13: 24 | D13: 24 | E13: 22.15 | F13: 23.25 | G13: 23.25 | H13: 22.8 | I13: 16400 | J13: 376171.25 | K13: 2019-03-06 | L13: 447 | M13: INE273D01019
A14: AAVAS | B14: EQ | C14: 1124.7 | D14: 1190 | E14: 1120 | F14: 1166.2 | G14: 1154.75 | H14: 1113.85 | I14: 203998 | J14: 237375825.2 | K14: 2019-03-06 | L14: 6255 | M14: INE216P01012
A15: ABAN | B15: EQ | C15: 60.95 | D15: 72.1 | E15: 60.3 | F15: 72.1 | G15: 72.1 | H15: 60.1 | I15: 3386567 | J15: 228158514.9 | K15: 2019-03-06 | L15: 20172 | M15: INE421A01028
A16: ABB | B16: EQ | C16: 1238 | D16: 1251 | E16: 1225 | F16: 1244.55 | G16: 1250 | H16: 1233.7 | I16: 169943 | J16: 209557908.4 | K16: 2019-03-06 | L16: 4274 | M16: INE117A01022
A17: ABBOTINDIA | B17: EQ | C17: 7320 | D17: 7400 | E17: 7310 | F17: 7362.7 | G17: 7370 | H17: 7297.35 | I17: 4894 | J17: 36062450.9 | K17: 2019-03-06 | L17: 783 | M17: INE358A01014
A18: ABCAPITAL | B18: EQ | C18: 100.6 | D18: 101.5 | E18: 99.3 | F18: 99.8 | G18: 99.95 | H18: 99.5 | I18: 3118084 | J18: 312177741.3 | K18: 2019-03-06 | L18: 35418 | M18: INE674K01013
A19: ABFRL | B19: EQ | C19: 226.1 | D19: 226.1 | E19: 218.75 | F19: 219.85 | G19: 219.25 | H19: 225.55 | I19: 612206 | J19: 135673974.8 | K19: 2019-03-06 | L19: 9425 | M19: INE647O01011
A20: ABSLNN50ET | B20: EQ | C20: 279.95 | D20: 284 | E20: 278 | F20: 284 | G20: 284 | H20: 284 | I20: 35 | J20: 9838.96 | K20: 2019-03-06 | L20: 5 | M20: INF209KB1B87
A21: ACC | B21: EQ | C21: 1533 | D21: 1561.9 | E21: 1533 | F21: 1554.4 | G21: 1548.35 | H21: 1531.9 | I21: 2035880 | J21: 3162642460 | K21: 2019-03-06 | L21: 66391 | M21: INE012A01025
A22: ACCELYA | B22: EQ | C22: 933.55 | D22: 940.85 | E22: 930 | F22: 934.95 | G22: 935 | H22: 933.55 | I22: 11287 | J22: 10551367.4 | K22: 2019-03-06 | L22: 346 | M22: INE793A01012
A23: ACE | B23: EQ | C23: 90.1 | D23: 94.7 | E23: 89 | F23: 93.85 | G23: 94.25 | H23: 90.15 | I23: 392630 | J23: 36349771.45 | K23: 2019-03-06 | L23: 3729 | M23: INE731H01025
A24: ADANIENT | B24: EQ | C24: 142.75 | D24: 143.75 | E24: 138.2 | F24: 139.25 | G24: 138.7 | H24: 141.8 | I24: 4856085 | J24: 682183468.1 | K24: 2019-03-06 | L24: 25264 | M24: INE423A01024
A25: ADANIGAS | B25: EQ | C25: 111.4 | D25: 114 | E25: 100.6 | F25: 113.1 | G25: 113.5 | H25: 110.65 | I25: 1096455 | J25: 122849196.5 | K25: 2019-03-06 | L25: 6539 | M25: INE399L01023
A26: ADANIGREEN | B26: EQ | C26: 36.75 | D26: 37.45 | E26: 35 | F26: 35.4 | G26: 35.2 | H26: 36.25 | I26: 976586 | J26: 35354649 | K26: 2019-03-06 | L26: 3819 | M26: INE364U01010
A27: ADANIPORTS | B27: EQ | C27: 342.5 | D27: 349.2 | E27: 334.05 | F27: 337.05 | G27: 336.3 | H27: 339.25 | I27: 7949482 | J27: 2719277249 | K27: 2019-03-06 | L27: 77481 | M27: INE742F01042
A28: ADANIPOWER | B28: EQ | C28: 51.7 | D28: 51.7 | E28: 49.8 | F28: 50.7 | G28: 50.6 | H28: 51.15 | I28: 17876199 | J28: 906808797.5 | K28: 2019-03-06 | L28: 32648 | M28: INE814H01011
A29: ADANITRANS | B29: EQ | C29: 210.1 | D29: 218.45 | E29: 207.1 | F29: 208.25 | G29: 208.25 | H29: 209.55 | I29: 381332 | J29: 81161127.45 | K29: 2019-03-06 | L29: 28382 | M29: INE931S01010
A30: ADFFOODS | B30: EQ | C30: 271.4 | D30: 271.4 | E30: 258.75 | F30: 262.95 | G30: 260.95 | H30: 263.2 | I30: 47347 | J30: 12501113.7 | K30: 2019-03-06 | L30: 1140 | M30: INE982B01019
A31: ADHUNIK | B31: EQ | C31: 1.7 | D31: 1.7 | E31: 1.7 | F31: 1.7 | G31: 1.7 | H31: 1.65 | I31: 10611 | J31: 18038.7 | K31: 2019-03-06 | L31: 8 | M31: INE400H01019
A32: ADHUNIKIND | B32: EQ | C32: 53.85 | D32: 54.7 | E32: 52.55 | F32: 53.65 | G32: 53 | H32: 52.7 | I32: 13484 | J32: 727214 | K32: 2019-03-06 | L32: 142 | M32: INE452L01012
A33: ADLABS | B33: EQ | C33: 9.4 | D33: 9.75 | E33: 9.25 | F33: 9.5 | G33: 9.6 | H33: 9.3 | I33: 205442 | J33: 1974353.3 | K33: 2019-03-06 | L33: 452 | M33: INE172N01012
A34: ADORWELD | B34: EQ | C34: 346.85 | D34: 350 | E34: 336.25 | F34: 340.55 | G34: 341.45 | H34: 344.55 | I34: 10396 | J34: 3547526.75 | K34: 2019-03-06 | L34: 439 | M34: INE045A01017
A35: ADROITINFO | B35: EQ | C35: 19.2 | D35: 21.85 | E35: 19.2 | F35: 19.6 | G35: 19.8 | H35: 18.5 | I35: 20461 | J35: 423317.55 | K35: 2019-03-06 | L35: 199 | M35: INE737B01033
A36: ADSL | B36: EQ | C36: 14.25 | D36: 14.7 | E36: 13.5 | F36: 13.85 | G36: 13.7 | H36: 14.25 | I36: 10861 | J36: 152354.15 | K36: 2019-03-06 | L36: 120 | M36: INE102I01027
A37: ADVANIHOTR | B37: EQ | C37: 65.6 | D37: 67.9 | E37: 64 | F37: 66.75 | G37: 67.5 | H37: 66.05 | I37: 2283 | J37: 151171.3 | K37: 2019-03-06 | L37: 78 | M37: INE199C01026
A38: ADVENZYMES | B38: EQ | C38: 152 | D38: 161 | E38: 151.5 | F38: 156.05 | G38: 155.95 | H38: 151.4 | I38: 2041451 | J38: 317054756.8 | K38: 2019-03-06 | L38: 8537 | M38: INE837H01020
A39: AEGISCHEM | B39: EQ | C39: 208.55 | D39: 208.6 | E39: 200.75 | F39: 205.05 | G39: 205 | H39: 206.75 | I39: 141766 | J39: 29037357.5 | K39: 2019-03-06 | L39: 6169 | M39: INE208C01025
A40: AGARIND | B40: EQ | C40: 177.95 | D40: 178 | E40: 170.4 | F40: 171.05 | G40: 171.9 | H40: 169.15 | I40: 969 | J40: 168476.3 | K40: 2019-03-06 | L40: 66 | M40: INE204E01012
A41: AGCNET | B41: EQ | C41: 103 | D41: 108.7 | E41: 103 | F41: 103.85 | G41: 103.5 | H41: 103.6 | I41: 6741 | J41: 711251.05 | K41: 2019-03-06 | L41: 88 | M41: INE676A01019
A42: AGLSL | B42: EQ | C42: 64.8 | D42: 65.5 | E42: 60 | F42: 61.05 | G42: 62.5 | H42: 63.3 | I42: 14482 | J42: 885212.6 | K42: 2019-03-06 | L42: 151 | M42: INE517U01013
A43: AGRITECH | B43: EQ | C43: 53.05 | D43: 54.05 | E43: 52.55 | F43: 53.05 | G43: 53 | H43: 52.85 | I43: 9273 | J43: 493758.8 | K43: 2019-03-06 | L43: 136 | M43: INE449G01018
A44: AHLEAST | B44: EQ | C44: 239.95 | D44: 247 | E44: 239.95 | F44: 240.6 | G44: 240.5 | H44: 239.45 | I44: 455 | J44: 110036.5 | K44: 2019-03-06 | L44: 210 | M44: INE926K01017
A45: AHLUCONT | B45: EQ | C45: 316.65 | D45: 325 | E45: 310 | F45: 319.15 | G45: 318 | H45: 316.6 | I45: 49243 | J45: 15604232.9 | K45: 2019-03-06 | L45: 1735 | M45: INE758C01029
A46: AHLWEST | B46: EQ | C46: 340.05 | D46: 359 | E46: 340.05 | F46: 349.9 | G46: 349.9 | H46: 345 | I46: 274 | J46: 94991 | K46: 2019-03-06 | L46: 17 | M46: INE915K01010
A47: AIAENG | B47: EQ | C47: 1810.6 | D47: 1834.2 | E47: 1780 | F47: 1798.5 | G47: 1780 | H47: 1792.65 | I47: 66056 | J47: 119334173.5 | K47: 2019-03-06 | L47: 3036 | M47: INE212H01026
A48: AIFL | B48: BE | C48: 16.95 | D48: 16.95 | E48: 16.95 | F48: 16.95 | G48: 16.95 | H48: 16.15 | I48: 10722 | J48: 181737.9 | K48: 2019-03-06 | L48: 28 | M48: INE428O01016
A49: AIONJSW | B49: EQ | C49: 31.3 | D49: 31.7 | E49: 30.5 | F49: 30.7 | G49: 30.95 | H49: 31.15 | I49: 62137 | J49: 1921803.5 | K49: 2019-03-06 | L49: 258 | M49: INE743C01021
A50: AJANTPHARM | B50: EQ | C50: 997.4 | D50: 1003.45 | E50: 984.15 | F50: 991.95 | G50: 991.85 | H50: 992.45 | I50: 368274 | J50: 366253932.9 | K50: 2019-03-06 | L50: 11691 | M50: INE031B01049
A51: AJMERA | B51: EQ | C51: 171.45 | D51: 176.2 | E51: 169.95 | F51: 171.45 | G51: 172.4 | H51: 170.15 | I51: 132574 | J51: 22900738.55 | K51: 2019-03-06 | L51: 2490 | M51: INE298G01027
A52: AKSHARCHEM | B52: EQ | C52: 349.95 | D52: 350 | E52: 343.1 | F52: 345.2 | G52: 347.9 | H52: 348.85 | I52: 2783 | J52: 970050.55 | K52: 2019-03-06 | L52: 194 | M52: INE542B01011
A53: AKSHOPTFBR | B53: EQ | C53: 21.15 | D53: 21.9 | E53: 20.8 | F53: 21.1 | G53: 21.15 | H53: 21.05 | I53: 1226324 | J53: 26105816.7 | K53: 2019-03-06 | L53: 3922 | M53: INE523B01011
A54: AKZOINDIA | B54: EQ | C54: 1800 | D54: 1812 | E54: 1750 | F54: 1756.75 | G54: 1750 | H54: 1802.3 | I54: 6982 | J54: 12410158.9 | K54: 2019-03-06 | L54: 775 | M54: INE133A01011
A55: ALANKIT | B55: EQ | C55: 28.5 | D55: 28.7 | E55: 27.2 | F55: 27.55 | G55: 27.6 | H55: 28.3 | I55: 541641 | J55: 15135387.05 | K55: 2019-03-06 | L55: 1236 | M55: INE914E01040
A56: ALBERTDAVD | B56: EQ | C56: 435.3 | D56: 439.9 | E56: 422 | F56: 423.3 | G56: 423.1 | H56: 435.3 | I56: 7196 | J56: 3110403.55 | K56: 2019-03-06 | L56: 344 | M56: INE155C01010
A57: ALBK | B57: EQ | C57: 52.3 | D57: 53.2 | E57: 50.8 | F57: 51.45 | G57: 51.45 | H57: 52.3 | I57: 8059766 | J57: 416477305.9 | K57: 2019-03-06 | L57: 15146 | M57: INE428A01015
A58: ALCHEM | B58: BE | C58: 1.8 | D58: 1.85 | E58: 1.8 | F58: 1.85 | G58: 1.85 | H58: 1.8 | I58: 9157 | J58: 16868.45 | K58: 2019-03-06 | L58: 25 | M58: INE964B01033
A59: ALEMBICLTD | B59: EQ | C59: 43.25 | D59: 44.3 | E59: 42.9 | F59: 43.25 | G59: 43.35 | H59: 42.75 | I59: 225671 | J59: 9815333 | K59: 2019-03-06 | L59: 1327 | M59: INE426A01027
A60: ALICON | B60: EQ | C60: 572 | D60: 580 | E60: 570 | F60: 572.5 | G60: 572.05 | H60: 569.1 | I60: 1198 | J60: 685885.85 | K60: 2019-03-06 | L60: 145 | M60: INE062D01024
A61: ALKALI | B61: EQ | C61: 46.85 | D61: 54.45 | E61: 46 | F61: 53.35 | G61: 53 | H61: 46.45 | I61: 90925 | J61: 4748281.05 | K61: 2019-03-06 | L61: 567 | M61: INE773I01017
A62: ALKEM | B62: EQ | C62: 1756 | D62: 1778 | E62: 1740 | F62: 1746.8 | G62: 1744.9 | H62: 1750.25 | I62: 52958 | J62: 92516533.6 | K62: 2019-03-06 | L62: 13381 | M62: INE540L01014
A63: ALKYLAMINE | B63: EQ | C63: 787 | D63: 792.05 | E63: 770 | F63: 785.2 | G63: 780.85 | H63: 774.7 | I63: 6558 | J63: 5139561.15 | K63: 2019-03-06 | L63: 407 | M63: INE150B01021
A64: ALLCARGO | B64: EQ | C64: 107.8 | D64: 109 | E64: 106.25 | F64: 108.35 | G64: 108.45 | H64: 105.9 | I64: 181210 | J64: 19581887.55 | K64: 2019-03-06 | L64: 2302 | M64: INE418H01029
A65: ALLSEC | B65: EQ | C65: 193.35 | D65: 193.35 | E65: 182 | F65: 185.6 | G65: 186 | H65: 189.6 | I65: 13481 | J65: 2512570.1 | K65: 2019-03-06 | L65: 443 | M65: INE835G01018
A66: ALMONDZ | B66: EQ | C66: 22.9 | D66: 23.4 | E66: 22.9 | F66: 23.05 | G66: 23.05 | H66: 22.9 | I66: 1002 | J66: 23074.9 | K66: 2019-03-06 | L66: 11 | M66: INE326B01027
A67: ALOKTEXT | B67: EQ | C67: 3.65 | D67: 3.8 | E67: 3.65 | F67: 3.7 | G67: 3.75 | H67: 3.7 | I67: 2349302 | J67: 8739298.95 | K67: 2019-03-06 | L67: 845 | M67: INE270A01011
A68: ALPA | B68: EQ | C68: 25 | D68: 25.9 | E68: 23.9 | F68: 24.4 | G68: 24.1 | H68: 25.25 | I68: 29994 | J68: 747836.55 | K68: 2019-03-06 | L68: 214 | M68: INE385I01010
A69: ALPHAGEO | B69: EQ | C69: 437.9 | D69: 460.05 | E69: 429.1 | F69: 441.8 | G69: 441.15 | H69: 433.65 | I69: 20503 | J69: 9139004.7 | K69: 2019-03-06 | L69: 1563 | M69: INE137C01018
A70: AMARAJABAT | B70: EQ | C70: 739.15 | D70: 752 | E70: 736.65 | F70: 747.05 | G70: 747 | H70: 735.3 | I70: 626767 | J70: 468676255.6 | K70: 2019-03-06 | L70: 9680 | M70: INE885A01032
A71: AMBER | B71: EQ | C71: 724.95 | D71: 747 | E71: 717.9 | F71: 722.75 | G71: 729.85 | H71: 718.5 | I71: 8160 | J71: 5984377.75 | K71: 2019-03-06 | L71: 758 | M71: INE371P01015
A72: AMBIKCO | B72: EQ | C72: 1149.95 | D72: 1152.05 | E72: 1148.2 | F72: 1149.95 | G72: 1149.4 | H72: 1149.95 | I72: 8279 | J72: 9520586.2 | K72: 2019-03-06 | L72: 189 | M72: INE540G01014
A73: AMBUJACEM | B73: EQ | C73: 222.9 | D73: 226.4 | E73: 219.55 | F73: 220.25 | G73: 221.5 | H73: 222 | I73: 4240764 | J73: 942947774.4 | K73: 2019-03-06 | L73: 33227 | M73: INE079A01024
A74: AMDIND | B74: EQ | C74: 22.05 | D74: 24 | E74: 21.7 | F74: 22.85 | G74: 22.85 | H74: 22.05 | I74: 6871 | J74: 159456.65 | K74: 2019-03-06 | L74: 112 | M74: INE005I01014
A75: AMJLAND | B75: EQ | C75: 20.65 | D75: 21 | E75: 20.2 | F75: 20.6 | G75: 20.7 | H75: 20.9 | I75: 5527 | J75: 115222.65 | K75: 2019-03-06 | L75: 44 | M75: INE606A01024
A76: AMRUTANJAN | B76: EQ | C76: 294 | D76: 310 | E76: 294 | F76: 299.5 | G76: 298.3 | H76: 296.2 | I76: 48087 | J76: 14521926.85 | K76: 2019-03-06 | L76: 1256 | M76: INE098F01031
A77: ANANTRAJ | B77: EQ | C77: 34.55 | D77: 35.2 | E77: 33.55 | F77: 34 | G77: 33.9 | H77: 34.25 | I77: 629950 | J77: 21621708.8 | K77: 2019-03-06 | L77: 2644 | M77: INE242C01024
A78: ANDHRABANK | B78: EQ | C78: 26.4 | D78: 26.85 | E78: 26.2 | F78: 26.4 | G78: 26.4 | H78: 26.25 | I78: 1020108 | J78: 27070485.45 | K78: 2019-03-06 | L78: 2272 | M78: INE434A01013
A79: ANDHRACEMT | B79: EQ | C79: 6.55 | D79: 6.55 | E79: 6.3 | F79: 6.35 | G79: 6.4 | H79: 6.15 | I79: 502637 | J79: 3232576 | K79: 2019-03-06 | L79: 879 | M79: INE666E01012
A80: ANDHRSUGAR | B80: EQ | C80: 355.25 | D80: 371.75 | E80: 354 | F80: 362.7 | G80: 362 | H80: 355.1 | I80: 106960 | J80: 39072002.85 | K80: 2019-03-06 | L80: 2751 | M80: INE715B01013
A81: ANGIND | B81: BE | C81: 1.1 | D81: 1.2 | E81: 1.1 | F81: 1.1 | G81: 1.1 | H81: 1.15 | I81: 14837 | J81: 16525.1 | K81: 2019-03-06 | L81: 21 | M81: INE017D01010
A82: ANIKINDS | B82: EQ | C82: 17.5 | D82: 17.9 | E82: 16.95 | F82: 17.6 | G82: 17.7 | H82: 17.3 | I82: 3205 | J82: 55941.4 | K82: 2019-03-06 | L82: 30 | M82: INE087B01017
A83: ANKITMETAL | B83: BE | C83: 0.45 | D83: 0.5 | E83: 0.45 | F83: 0.5 | G83: 0.5 | H83: 0.45 | I83: 12427 | J83: 5705.15 | K83: 2019-03-06 | L83: 16 | M83: INE106I01010
A84: ANSALAPI | B84: EQ | C84: 11.9 | D84: 12.3 | E84: 11.4 | F84: 11.55 | G84: 11.4 | H84: 11.9 | I84: 190911 | J84: 2254354.5 | K84: 2019-03-06 | L84: 648 | M84: INE436A01026
A85: ANSALHSG | B85: BE | C85: 13.3 | D85: 13.5 | E85: 13 | F85: 13.1 | G85: 13.2 | H85: 13.4 | I85: 54763 | J85: 726846.85 | K85: 2019-03-06 | L85: 156 | M85: INE880B01015
A86: ANTGRAPHIC | B86: BE | C86: 0.45 | D86: 0.5 | E86: 0.45 | F86: 0.5 | G86: 0.5 | H86: 0.5 | I86: 24986 | J86: 11675.1 | K86: 2019-03-06 | L86: 17 | M86: INE414B01021
A87: ANUP | B87: BE | C87: 520.9 | D87: 520.9 | E87: 520.9 | F87: 520.9 | G87: 520.9 | H87: 496.1 | I87: 17251 | J87: 8986045.9 | K87: 2019-03-06 | L87: 230 | M87: INE294Z01018
A88: APARINDS | B88: EQ | C88: 644.3 | D88: 669 | E88: 644.3 | F88: 656.4 | G88: 653.2 | H88: 664.85 | I88: 5874 | J88: 3867262.7 | K88: 2019-03-06 | L88: 310 | M88: INE372A01015
A89: APCL | B89: EQ | C89: 131.05 | D89: 146.95 | E89: 131.05 | F89: 137.3 | G89: 139.3 | H89: 130.5 | I89: 10321 | J89: 1446317.2 | K89: 2019-03-06 | L89: 370 | M89: INE071F01012
A90: APCOTEXIND | B90: EQ | C90: 468 | D90: 474.4 | E90: 465.2 | F90: 469.35 | G90: 466.1 | H90: 467.35 | I90: 4481 | J90: 2111446.7 | K90: 2019-03-06 | L90: 321 | M90: INE116A01024
A91: APEX | B91: EQ | C91: 337.4 | D91: 356.9 | E91: 329 | F91: 351.15 | G91: 350.5 | H91: 334.9 | I91: 279927 | J91: 96724364.25 | K91: 2019-03-06 | L91: 8726 | M91: INE346W01013
A92: APLAPOLLO | B92: EQ | C92: 1388 | D92: 1405 | E92: 1378 | F92: 1393 | G92: 1390 | H92: 1393.65 | I92: 25103 | J92: 34987969.95 | K92: 2019-03-06 | L92: 1492 | M92: INE702C01019
A93: APLLTD | B93: EQ | C93: 550 | D93: 555.5 | E93: 541.3 | F93: 548.25 | G93: 546.55 | H93: 549.75 | I93: 28297 | J93: 15570842.3 | K93: 2019-03-06 | L93: 5124 | M93: INE901L01018
A94: APOLLO | B94: EQ | C94: 106.7 | D94: 115.5 | E94: 106.65 | F94: 111 | G94: 110 | H94: 104.85 | I94: 47024 | J94: 5225441.85 | K94: 2019-03-06 | L94: 1355 | M94: INE713T01010
A95: APOLLOHOSP | B95: EQ | C95: 1186.9 | D95: 1212.85 | E95: 1183.5 | F95: 1192.75 | G95: 1188.9 | H95: 1191.9 | I95: 1679631 | J95: 2008071175 | K95: 2019-03-06 | L95: 50126 | M95: INE437A01024
A96: APOLLOTYRE | B96: EQ | C96: 224.2 | D96: 225 | E96: 218.65 | F96: 219.45 | G96: 219.3 | H96: 223.1 | I96: 2297209 | J96: 508301658.4 | K96: 2019-03-06 | L96: 22937 | M96: INE438A01022
A97: APOLSINHOT | B97: BE | C97: 970 | D97: 970 | E97: 930 | F97: 954.9 | G97: 954.9 | H97: 949 | I97: 375 | J97: 355635.55 | K97: 2019-03-06 | L97: 25 | M97: INE451F01024
A98: APTECHT | B98: EQ | C98: 176.45 | D98: 184.2 | E98: 174.05 | F98: 178.6 | G98: 178.5 | H98: 175.3 | I98: 444359 | J98: 79864742.75 | K98: 2019-03-06 | L98: 7935 | M98: INE266F01018
A99: ARCHIDPLY | B99: EQ | C99: 42.8 | D99: 45.75 | E99: 42.15 | F99: 44.2 | G99: 44.45 | H99: 41.8 | I99: 69352 | J99: 3073835.6 | K99: 2019-03-06 | L99: 941 | M99: INE877I01016
A100: ARCHIES | B100: EQ | C100: 24.5 | D100: 26.7 | E100: 23.85 | F100: 25 | G100: 25.25 | H100: 23.7 | I100: 193797 | J100: 4874827.05 | K100: 2019-03-06 | L100: 1464 | M100: INE731A01020
A101: ARCOTECH | B101: EQ | C101: 5.75 | D101: 5.75 | E101: 5.55 | F101: 5.75 | G101: 5.75 | H101: 5.5 | I101: 53418 | J101: 306478.5 | K101: 2019-03-06 | L101: 66 | M101: INE574I01035
A102: ARENTERP | B102: EQ | C102: 12.65 | D102: 12.65 | E102: 12.65 | F102: 12.65 | G102: 12.65 | H102: 12.65 | I102: 600 | J102: 7590 | K102: 2019-03-06 | L102: 3 | M102: INE610C01014
A103: ARIES | B103: EQ | C103: 83.85 | D103: 84.7 | E103: 82 | F103: 82.7 | G103: 82.95 | H103: 81.4 | I103: 46297 | J103: 3856987 | K103: 2019-03-06 | L103: 821 | M103: INE298I01015
A104: ARIHANT | B104: EQ | C104: 31.25 | D104: 31.25 | E104: 29.2 | F104: 30 | G104: 30 | H104: 31.3 | I104: 1479 | J104: 45038.1 | K104: 2019-03-06 | L104: 24 | M104: INE413D01011
A105: ARIHANTSUP | B105: EQ | C105: 54.8 | D105: 56.35 | E105: 52 | F105: 55 | G105: 55.15 | H105: 54.7 | I105: 20210 | J105: 1111676.15 | K105: 2019-03-06 | L105: 266 | M105: INE643K01018
A106: ARMANFIN | B106: EQ | C106: 394.45 | D106: 398 | E106: 380 | F106: 382.5 | G106: 384.75 | H106: 386.7 | I106: 5541 | J106: 2151822.7 | K106: 2019-03-06 | L106: 127 | M106: INE109C01017
A107: AROGRANITE | B107: EQ | C107: 48.45 | D107: 52.9 | E107: 48.1 | F107: 51.7 | G107: 52.45 | H107: 48.1 | I107: 43996 | J107: 2272203.45 | K107: 2019-03-06 | L107: 547 | M107: INE210C01013
A108: ARROWGREEN | B108: BE | C108: 81 | D108: 81 | E108: 77 | F108: 78.85 | G108: 79 | H108: 77.95 | I108: 12940 | J108: 1022356.75 | K108: 2019-03-06 | L108: 99 | M108: INE570D01018
A109: ARROWTEX | B109: EQ | C109: 19.1 | D109: 19.7 | E109: 18.75 | F109: 19.05 | G109: 19.35 | H109: 19.1 | I109: 17873 | J109: 340853.85 | K109: 2019-03-06 | L109: 130 | M109: INE933J01015
A110: ARSHIYA | B110: EQ | C110: 31.25 | D110: 32.5 | E110: 30.5 | F110: 31.05 | G110: 30.8 | H110: 30.7 | I110: 115008 | J110: 3633030.1 | K110: 2019-03-06 | L110: 1006 | M110: INE968D01022
A111: ARSSINFRA | B111: EQ | C111: 37.25 | D111: 37.8 | E111: 35.35 | F111: 35.9 | G111: 36.5 | H111: 37.2 | I111: 60766 | J111: 2175865.1 | K111: 2019-03-06 | L111: 260 | M111: INE267I01010
A112: ARVIND | B112: EQ | C112: 85.35 | D112: 86.7 | E112: 84.75 | F112: 85.55 | G112: 85.1 | H112: 85.25 | I112: 2602946 | J112: 222757938.1 | K112: 2019-03-06 | L112: 10206 | M112: INE034A01011
A113: ARVSMART | B113: EQ | C113: 125.95 | D113: 131.3 | E113: 124.45 | F113: 128.05 | G113: 128.45 | H113: 126.65 | I113: 24328 | J113: 3121112.35 | K113: 2019-03-06 | L113: 563 | M113: INE034S01021
A114: ASAHIINDIA | B114: EQ | C114: 278 | D114: 283.85 | E114: 275.2 | F114: 276.95 | G114: 278.95 | H114: 277.25 | I114: 20515 | J114: 5729539.95 | K114: 2019-03-06 | L114: 831 | M114: INE439A01020
A115: ASAHISONG | B115: EQ | C115: 172.05 | D115: 178 | E115: 170.1 | F115: 171.5 | G115: 170.35 | H115: 172.3 | I115: 4188 | J115: 729448.05 | K115: 2019-03-06 | L115: 193 | M115: INE228I01012
A116: ASAL | B116: EQ | C116: 58 | D116: 60.85 | E116: 55 | F116: 56.9 | G116: 56.6 | H116: 55.35 | I116: 13287 | J116: 766679.85 | K116: 2019-03-06 | L116: 138 | M116: INE900C01027
A117: ASHAPURMIN | B117: EQ | C117: 28.7 | D117: 32.75 | E117: 28.25 | F117: 30.9 | G117: 31.25 | H117: 27.3 | I117: 937806 | J117: 29607134.35 | K117: 2019-03-06 | L117: 4565 | M117: INE348A01023
A118: ASHIANA | B118: EQ | C118: 111.05 | D118: 114 | E118: 111.05 | F118: 112.8 | G118: 112.2 | H118: 112.75 | I118: 22674 | J118: 2562517.45 | K118: 2019-03-06 | L118: 309 | M118: INE365D01021
A119: ASHIMASYN | B119: BE | C119: 13.2 | D119: 13.95 | E119: 13.2 | F119: 13.5 | G119: 13.4 | H119: 13.5 | I119: 38954 | J119: 527114.3 | K119: 2019-03-06 | L119: 60 | M119: INE440A01010
A120: ASHOKA | B120: EQ | C120: 130.8 | D120: 141.7 | E120: 130.15 | F120: 137.55 | G120: 138 | H120: 129.55 | I120: 1462862 | J120: 200650816.1 | K120: 2019-03-06 | L120: 19051 | M120: INE442H01029
A121: ASHOKLEY | B121: EQ | C121: 91.95 | D121: 92.85 | E121: 89.9 | F121: 90.6 | G121: 90.45 | H121: 90.5 | I121: 37509378 | J121: 3435106763 | K121: 2019-03-06 | L121: 105607 | M121: INE208A01029
A122: ASIANHOTNR | B122: EQ | C122: 146.05 | D122: 148.85 | E122: 142 | F122: 144.8 | G122: 143.05 | H122: 148 | I122: 4013 | J122: 583225.15 | K122: 2019-03-06 | L122: 80 | M122: INE363A01022
A123: ASIANPAINT | B123: EQ | C123: 1408 | D123: 1410 | E123: 1386.55 | F123: 1393.7 | G123: 1396.75 | H123: 1403.85 | I123: 720335 | J123: 1006850643 | K123: 2019-03-06 | L123: 42633 | M123: INE021A01026
A124: ASIANTILES | B124: EQ | C124: 189.05 | D124: 199.3 | E124: 189.05 | F124: 195.3 | G124: 195.25 | H124: 187.55 | I124: 178777 | J124: 34599794.6 | K124: 2019-03-06 | L124: 4473 | M124: INE022I01019
A125: ASPINWALL | B125: EQ | C125: 175.45 | D125: 175.45 | E125: 170 | F125: 172.15 | G125: 170.1 | H125: 174.45 | I125: 1725 | J125: 300861.75 | K125: 2019-03-06 | L125: 45 | M125: INE991I01015
A126: ASSAMCO | B126: BE | C126: 2.55 | D126: 2.55 | E126: 2.55 | F126: 2.55 | G126: 2.55 | H126: 2.45 | I126: 168666 | J126: 430098.3 | K126: 2019-03-06 | L126: 62 | M126: INE442A01024
A127: ASTEC | B127: EQ | C127: 526.1 | D127: 538 | E127: 519.05 | F127: 523.7 | G127: 528.05 | H127: 519.65 | I127: 7227 | J127: 3813723 | K127: 2019-03-06 | L127: 513 | M127: INE563J01010
A128: ASTERDM | B128: EQ | C128: 154.5 | D128: 157.85 | E128: 153.5 | F128: 156.9 | G128: 156.05 | H128: 152.9 | I128: 41823 | J128: 6513230.5 | K128: 2019-03-06 | L128: 1639 | M128: INE914M01019
A129: ASTRAL | B129: EQ | C129: 1110 | D129: 1175 | E129: 1110 | F129: 1165.8 | G129: 1168 | H129: 1107.15 | I129: 89589 | J129: 102561642.7 | K129: 2019-03-06 | L129: 12062 | M129: INE006I01046
A130: ASTRAMICRO | B130: EQ | C130: 85.25 | D130: 86.15 | E130: 81.9 | F130: 82.2 | G130: 82.1 | H130: 84.85 | I130: 190517 | J130: 15921201 | K130: 2019-03-06 | L130: 1942 | M130: INE386C01029
A131: ASTRAZEN | B131: EQ | C131: 2076 | D131: 2135 | E131: 2050 | F131: 2068.3 | G131: 2050 | H131: 2070.6 | I131: 37005 | J131: 77525969.3 | K131: 2019-03-06 | L131: 3597 | M131: INE203A01020
A132: ASTRON | B132: EQ | C132: 102.25 | D132: 104.4 | E132: 99.4 | F132: 101.9 | G132: 102 | H132: 101.3 | I132: 284144 | J132: 29411120.6 | K132: 2019-03-06 | L132: 1884 | M132: INE646X01014
A133: ATFL | B133: EQ | C133: 570 | D133: 590.2 | E133: 563 | F133: 571.85 | G133: 570 | H133: 570.25 | I133: 17430 | J133: 9991421.05 | K133: 2019-03-06 | L133: 967 | M133: INE209A01019
A134: ATLANTA | B134: EQ | C134: 17.4 | D134: 18.25 | E134: 17.4 | F134: 18.25 | G134: 18.25 | H134: 17.4 | I134: 30640 | J134: 554943.35 | K134: 2019-03-06 | L134: 241 | M134: INE285H01022
A135: ATLASCYCLE | B135: BE | C135: 74.7 | D135: 74.7 | E135: 71.05 | F135: 74.7 | G135: 74.7 | H135: 71.15 | I135: 2496 | J135: 185368.05 | K135: 2019-03-06 | L135: 41 | M135: INE446A01025
A136: ATUL | B136: EQ | C136: 3448.8 | D136: 3448.8 | E136: 3400.1 | F136: 3415.95 | G136: 3400.1 | H136: 3419.65 | I136: 3933 | J136: 13477948.95 | K136: 2019-03-06 | L136: 688 | M136: INE100A01010
A137: ATULAUTO | B137: EQ | C137: 347.3 | D137: 351 | E137: 342 | F137: 346.25 | G137: 344.15 | H137: 344.05 | I137: 24781 | J137: 8583393.05 | K137: 2019-03-06 | L137: 1055 | M137: INE951D01028
A138: AUBANK | B138: EQ | C138: 578 | D138: 594.9 | E138: 577.95 | F138: 589.15 | G138: 590 | H138: 581.25 | I138: 227989 | J138: 134538935.8 | K138: 2019-03-06 | L138: 8424 | M138: INE949L01017
A139: AURIONPRO | B139: EQ | C139: 122.05 | D139: 123.4 | E139: 118.3 | F139: 121.2 | G139: 118.65 | H139: 121.25 | I139: 29912 | J139: 3634092.4 | K139: 2019-03-06 | L139: 573 | M139: INE132H01018
A140: AUROPHARMA | B140: EQ | C140: 743.8 | D140: 745.35 | E140: 730.85 | F140: 733.35 | G140: 731 | H140: 736.1 | I140: 1846913 | J140: 1360962934 | K140: 2019-03-06 | L140: 69578 | M140: INE406A01037
A141: AUSOMENT | B141: EQ | C141: 34.4 | D141: 36.9 | E141: 34.4 | F141: 36.05 | G141: 36.05 | H141: 35.15 | I141: 4395 | J141: 158740.85 | K141: 2019-03-06 | L141: 33 | M141: INE218C01016
A142: AUTOAXLES | B142: EQ | C142: 1341.3 | D142: 1341.3 | E142: 1280.9 | F142: 1291.85 | G142: 1283 | H142: 1321.45 | I142: 12802 | J142: 16749333.55 | K142: 2019-03-06 | L142: 1387 | M142: INE449A01011
A143: AUTOIND | B143: EQ | C143: 59.7 | D143: 59.7 | E143: 57 | F143: 58.25 | G143: 57.8 | H143: 56.7 | I143: 28855 | J143: 1672942.75 | K143: 2019-03-06 | L143: 395 | M143: INE718H01014
A144: AUTOLITIND | B144: EQ | C144: 34 | D144: 40.1 | E144: 34 | F144: 39.05 | G144: 38.5 | H144: 33.45 | I144: 97832 | J144: 3791864.85 | K144: 2019-03-06 | L144: 774 | M144: INE448A01013
A145: AVADHSUGAR | B145: EQ | C145: 494.35 | D145: 524.95 | E145: 490.3 | F145: 514.7 | G145: 524 | H145: 489.95 | I145: 190662 | J145: 96402364.35 | K145: 2019-03-06 | L145: 4858 | M145: INE349W01017
A146: AVANTIFEED | B146: EQ | C146: 363 | D146: 389 | E146: 354.65 | F146: 384.7 | G146: 386.8 | H146: 358.6 | I146: 977593 | J146: 368290599.5 | K146: 2019-03-06 | L146: 25680 | M146: INE871C01038
A147: AVTNPL | B147: EQ | C147: 26.55 | D147: 27.1 | E147: 26.55 | F147: 26.85 | G147: 26.8 | H147: 26.45 | I147: 31402 | J147: 841367.15 | K147: 2019-03-06 | L147: 241 | M147: INE488D01021
A148: AXISBANK | B148: EQ | C148: 733.9 | D148: 733.9 | E148: 712.55 | F148: 720.6 | G148: 719.2 | H148: 732.05 | I148: 10510670 | J148: 7580982553 | K148: 2019-03-06 | L148: 188198 | M148: INE238A01034
A149: AXISCADES | B149: EQ | C149: 68 | D149: 70.3 | E149: 65.6 | F149: 67.7 | G149: 67.6 | H149: 67.25 | I149: 52967 | J149: 3612434.85 | K149: 2019-03-06 | L149: 887 | M149: INE555B01013
A150: AXISGOLD | B150: EQ | C150: 2812.05 | D150: 2859 | E150: 2812.05 | F150: 2826.9 | G150: 2822.5 | H150: 2828.55 | I150: 107 | J150: 302840 | K150: 2019-03-06 | L150: 35 | M150: INF846K01347
A151: AXISNIFTY | B151: EQ | C151: 1134 | D151: 1134.01 | E151: 1124.02 | F151: 1126.03 | G151: 1126.03 | H151: 1118.9 | I151: 84 | J151: 94576.65 | K151: 2019-03-06 | L151: 10 | M151: INF846K01ZL0
A152: AYMSYNTEX | B152: EQ | C152: 38.75 | D152: 39.45 | E152: 36.75 | F152: 37 | G152: 37 | H152: 37.25 | I152: 24106 | J152: 892895.3 | K152: 2019-03-06 | L152: 132 | M152: INE193B01039
A153: BAFNAPHARM | B153: EQ | C153: 10.5 | D153: 11.65 | E153: 10.3 | F153: 11.15 | G153: 11.5 | H153: 10.7 | I153: 33231 | J153: 366322.05 | K153: 2019-03-06 | L153: 180 | M153: INE878I01014
A154: BAGFILMS | B154: EQ | C154: 5.05 | D154: 5.4 | E154: 5.05 | F154: 5.2 | G154: 5.25 | H154: 5.05 | I154: 254828 | J154: 1337071.85 | K154: 2019-03-06 | L154: 325 | M154: INE116D01028
A155: BAJAJ-AUTO | B155: EQ | C155: 2895.65 | D155: 2942 | E155: 2876.25 | F155: 2927.6 | G155: 2910 | H155: 2903.75 | I155: 748391 | J155: 2172045158 | K155: 2019-03-06 | L155: 25461 | M155: INE917I01010
A156: BAJAJCON | B156: EQ | C156: 352 | D156: 361 | E156: 350 | F156: 352.85 | G156: 352 | H156: 349.85 | I156: 340683 | J156: 119600616.7 | K156: 2019-03-06 | L156: 2688 | M156: INE933K01021
A157: BAJAJELEC | B157: EQ | C157: 480.95 | D157: 484 | E157: 473.05 | F157: 476.9 | G157: 475.95 | H157: 478.6 | I157: 253932 | J157: 121405484 | K157: 2019-03-06 | L157: 7321 | M157: INE193E01025
A158: BAJAJFINSV | B158: EQ | C158: 6610 | D158: 6625 | E158: 6518.35 | F158: 6609.15 | G158: 6601 | H158: 6543.75 | I158: 236921 | J158: 1558680899 | K158: 2019-03-06 | L158: 28690 | M158: INE918I01018
A159: BAJAJHIND | B159: EQ | C159: 8.95 | D159: 9.25 | E159: 8.85 | F159: 9.05 | G159: 9.1 | H159: 8.9 | I159: 3897646 | J159: 35401484.65 | K159: 2019-03-06 | L159: 3214 | M159: INE306A01021
A160: BAJAJHLDNG | B160: EQ | C160: 3188.05 | D160: 3248 | E160: 3164.2 | F160: 3220.1 | G160: 3220 | H160: 3161.4 | I160: 19548 | J160: 62893626 | K160: 2019-03-06 | L160: 3523 | M160: INE118A01012
A161: BAJFINANCE | B161: EQ | C161: 2715 | D161: 2774.2 | E161: 2700 | F161: 2766.7 | G161: 2766 | H161: 2695.15 | I161: 1543424 | J161: 4234034087 | K161: 2019-03-06 | L161: 65299 | M161: INE296A01024
A162: BALAJITELE | B162: EQ | C162: 88.3 | D162: 89.7 | E162: 83.6 | F162: 84.1 | G162: 84.6 | H162: 86.1 | I162: 52527 | J162: 4494046.05 | K162: 2019-03-06 | L162: 831 | M162: INE794B01026
A163: BALAMINES | B163: EQ | C163: 429.05 | D163: 433 | E163: 423.4 | F163: 430.1 | G163: 431 | H163: 426.85 | I163: 11966 | J163: 5128400.65 | K163: 2019-03-06 | L163: 675 | M163: INE050E01027
A164: BALKRISHNA | B164: EQ | C164: 40 | D164: 41 | E164: 39 | F164: 40.1 | G164: 41 | H164: 39.4 | I164: 9307 | J164: 373956.4 | K164: 2019-03-06 | L164: 171 | M164: INE875R01011
A165: BALKRISIND | B165: EQ | C165: 919.7 | D165: 926.95 | E165: 905.8 | F165: 911.95 | G165: 911 | H165: 911.5 | I165: 315202 | J165: 288666062.1 | K165: 2019-03-06 | L165: 9042 | M165: INE787D01026
A166: BALLARPUR | B166: EQ | C166: 4.15 | D166: 4.3 | E166: 3.85 | F166: 4 | G166: 3.95 | H166: 4.15 | I166: 2829411 | J166: 11438443.3 | K166: 2019-03-06 | L166: 1199 | M166: INE294A01037
A167: BALMLAWRIE | B167: EQ | C167: 196 | D167: 197.95 | E167: 191 | F167: 192 | G167: 191.85 | H167: 187.25 | I167: 124687 | J167: 24205927.2 | K167: 2019-03-06 | L167: 3037 | M167: INE164A01016
A168: BALPHARMA | B168: EQ | C168: 73.65 | D168: 75.35 | E168: 73.05 | F168: 73.85 | G168: 73.75 | H168: 72.95 | I168: 68670 | J168: 5102853.05 | K168: 2019-03-06 | L168: 575 | M168: INE083D01012
A169: BALRAMCHIN | B169: EQ | C169: 138.1 | D169: 144.1 | E169: 138.1 | F169: 141.55 | G169: 142.45 | H169: 137.55 | I169: 3918285 | J169: 554898523.5 | K169: 2019-03-06 | L169: 21458 | M169: INE119A01028
A170: BANARBEADS | B170: EQ | C170: 44 | D170: 44.6 | E170: 44 | F170: 44.3 | G170: 44.6 | H170: 44.55 | I170: 242 | J170: 10720.3 | K170: 2019-03-06 | L170: 8 | M170: INE655B01011
A171: BANARISUG | B171: EQ | C171: 1575.05 | D171: 1690 | E171: 1575 | F171: 1617.55 | G171: 1622 | H171: 1575.25 | I171: 2480 | J171: 4064013.2 | K171: 2019-03-06 | L171: 373 | M171: INE459A01010
A172: BANCOINDIA | B172: EQ | C172: 157.75 | D172: 168 | E172: 157 | F172: 165.3 | G172: 165.5 | H172: 156.35 | I172: 130624 | J172: 21339662.3 | K172: 2019-03-06 | L172: 2081 | M172: INE213C01025
A173: BANDHANBNK | B173: EQ | C173: 493 | D173: 508 | E173: 486.5 | F173: 501.05 | G173: 499 | H173: 486.5 | I173: 1584714 | J173: 791098761.3 | K173: 2019-03-06 | L173: 29988 | M173: INE545U01014
A174: BANG | B174: EQ | C174: 37.85 | D174: 37.9 | E174: 36.6 | F174: 37.05 | G174: 37.05 | H174: 37.1 | I174: 22206 | J174: 823240.65 | K174: 2019-03-06 | L174: 269 | M174: INE863I01016
A175: BANKBARODA | B175: EQ | C175: 112.5 | D175: 113.55 | E175: 111 | F175: 112.1 | G175: 111.85 | H175: 112.55 | I175: 11474316 | J175: 1290499436 | K175: 2019-03-06 | L175: 35507 | M175: INE028A01039
A176: BANKBEES | B176: EQ | C176: 2795.5 | D176: 2814 | E176: 2795.5 | F176: 2805.84 | G176: 2805.41 | H176: 2798.4 | I176: 5296 | J176: 14830906.11 | K176: 2019-03-06 | L176: 208 | M176: INF732E01078
A177: BANKINDIA | B177: EQ | C177: 90.5 | D177: 92.45 | E177: 89.2 | F177: 89.8 | G177: 89.65 | H177: 90.75 | I177: 9593204 | J177: 870245026 | K177: 2019-03-06 | L177: 25214 | M177: INE084A01016
A178: BANSWRAS | B178: EQ | C178: 69.9 | D178: 78 | E178: 67.15 | F178: 70.8 | G178: 70.15 | H178: 70 | I178: 21524 | J178: 1576413.25 | K178: 2019-03-06 | L178: 303 | M178: INE629D01012
A179: BARTRONICS | B179: EQ | C179: 7 | D179: 7.15 | E179: 6.8 | F179: 6.8 | G179: 6.9 | H179: 6.95 | I179: 45639 | J179: 314928.4 | K179: 2019-03-06 | L179: 209 | M179: INE855F01034
A180: BASF | B180: EQ | C180: 1403 | D180: 1433.4 | E180: 1400 | F180: 1411.35 | G180: 1404 | H180: 1389.55 | I180: 7657 | J180: 10872622.05 | K180: 2019-03-06 | L180: 1106 | M180: INE373A01013
A181: BASML | B181: EQ | C181: 198.05 | D181: 198.05 | E181: 195 | F181: 195.35 | G181: 195 | H181: 192.7 | I181: 141 | J181: 27678.65 | K181: 2019-03-06 | L181: 6 | M181: INE186H01014
A182: BATAINDIA | B182: EQ | C182: 1310 | D182: 1348.6 | E182: 1292.65 | F182: 1344.35 | G182: 1346.1 | H182: 1305.65 | I182: 1547417 | J182: 2061873511 | K182: 2019-03-06 | L182: 50026 | M182: INE176A01028
A183: BAYERCROP | B183: EQ | C183: 4347.8 | D183: 4355.8 | E183: 4280 | F183: 4325.4 | G183: 4281 | H183: 4304.8 | I183: 6926 | J183: 29893187.05 | K183: 2019-03-06 | L183: 1930 | M183: INE462A01022
A184: BBL | B184: EQ | C184: 1125 | D184: 1133 | E184: 1111 | F184: 1124.8 | G184: 1129.5 | H184: 1118.65 | I184: 6328 | J184: 7103438.8 | K184: 2019-03-06 | L184: 757 | M184: INE464A01028
A185: BBTC | B185: EQ | C185: 1280.45 | D185: 1315 | E185: 1260 | F185: 1282.2 | G185: 1280.1 | H185: 1275.65 | I185: 246593 | J185: 319640969.4 | K185: 2019-03-06 | L185: 9838 | M185: INE050A01025
A186: BCG | B186: EQ | C186: 3.05 | D186: 3.3 | E186: 3.05 | F186: 3.1 | G186: 3.1 | H186: 3 | I186: 868909 | J186: 2748166.75 | K186: 2019-03-06 | L186: 389 | M186: INE425B01027
A187: BDL | B187: EQ | C187: 290 | D187: 292.4 | E187: 284 | F187: 284.95 | G187: 284 | H187: 288.1 | I187: 91048 | J187: 26108005.45 | K187: 2019-03-06 | L187: 2296 | M187: INE171Z01018
A188: BEARDSELL | B188: EQ | C188: 15.9 | D188: 16.2 | E188: 15.6 | F188: 15.75 | G188: 15.7 | H188: 15.9 | I188: 11377 | J188: 180033.5 | K188: 2019-03-06 | L188: 37 | M188: INE520H01022
A189: BEDMUTHA | B189: EQ | C189: 17.95 | D189: 17.95 | E189: 16.75 | F189: 16.75 | G189: 16.75 | H189: 16.5 | I189: 1235 | J189: 21870.35 | K189: 2019-03-06 | L189: 8 | M189: INE844K01012
A190: BEL | B190: EQ | C190: 90.85 | D190: 93.9 | E190: 90.05 | F190: 92.1 | G190: 91.95 | H190: 90.15 | I190: 17065207 | J190: 1569704604 | K190: 2019-03-06 | L190: 74661 | M190: INE263A01024
A191: BEML | B191: EQ | C191: 916.95 | D191: 949.45 | E191: 902.7 | F191: 910.65 | G191: 905.45 | H191: 907.85 | I191: 3711618 | J191: 3429839595 | K191: 2019-03-06 | L191: 73451 | M191: INE258A01016
A192: BEPL | B192: EQ | C192: 79.9 | D192: 81.2 | E192: 75.2 | F192: 76.9 | G192: 76.9 | H192: 79.15 | I192: 1114305 | J192: 87004930.25 | K192: 2019-03-06 | L192: 8159 | M192: INE922A01025
A193: BERGEPAINT | B193: EQ | C193: 305.6 | D193: 308.3 | E193: 301.5 | F193: 304.55 | G193: 303.9 | H193: 304.95 | I193: 473998 | J193: 144396823.5 | K193: 2019-03-06 | L193: 11038 | M193: INE463A01038
A194: BFINVEST | B194: EQ | C194: 258.7 | D194: 266.8 | E194: 247.35 | F194: 250.75 | G194: 250 | H194: 256.65 | I194: 289268 | J194: 74298350.2 | K194: 2019-03-06 | L194: 4792 | M194: INE878K01010
A195: BFUTILITIE | B195: EQ | C195: 190.75 | D195: 196.05 | E195: 188.35 | F195: 191.3 | G195: 190.95 | H195: 189.65 | I195: 766767 | J195: 147920987.8 | K195: 2019-03-06 | L195: 13196 | M195: INE243D01012
A196: BGLOBAL | B196: BE | C196: 2.5 | D196: 2.5 | E196: 2.45 | F196: 2.45 | G196: 2.45 | H196: 2.5 | I196: 2492 | J196: 6130 | K196: 2019-03-06 | L196: 12 | M196: INE224M01013
A197: BGRENERGY | B197: EQ | C197: 61.25 | D197: 63.35 | E197: 58.1 | F197: 60.95 | G197: 61.05 | H197: 60.95 | I197: 344110 | J197: 20800288.1 | K197: 2019-03-06 | L197: 3167 | M197: INE661I01014
A198: BHAGERIA | B198: EQ | C198: 256.95 | D198: 262.9 | E198: 255 | F198: 258.8 | G198: 261 | H198: 254.25 | I198: 9778 | J198: 2516403.6 | K198: 2019-03-06 | L198: 614 | M198: INE354C01027
A199: BHAGYANGR | B199: EQ | C199: 31.95 | D199: 32 | E199: 30.75 | F199: 31.1 | G199: 30.75 | H199: 30.7 | I199: 28544 | J199: 897263.25 | K199: 2019-03-06 | L199: 69 | M199: INE458B01036
A200: BHAGYAPROP | B200: EQ | C200: 29 | D200: 30.95 | E200: 28.3 | F200: 28.4 | G200: 28.35 | H200: 29.95 | I200: 6234 | J200: 180193.15 | K200: 2019-03-06 | L200: 41 | M200: INE363W01018
... 1440 more rows

Sheet Sheet1 (hidden)

Sheet Sheet3 (hidden)
